{"text_format":"1","workbook":"xlsx","n_sheets":47,"sheets":["Frontispiece","3D Matrix","EQF LEVELS","1-PA","2-PRO","3-TEC","4-OW","MAN1","COO1","MOD1","SPE1","USE1","MAN2","COO2","MOD2","SPE2","USE2","MAN3","COO3","MOD3","SPE3","USE3","MAN4","COO4","MOD4","SPE4","USE4","MAN5","COO5","MOD5","SPE5","USE5","MAN6","COO6","MOD6","SPE6","USE6","MAN7","COO7","MOD7","SPE7","USE7","MAN8","COO8","MOD8","SPE8","USE8"],"not_rendered":{"charts":0,"images":61,"macros":1,"external_links":3,"defined_names":2,"comments":0,"pivot_tables":0},"unopened":[],"bounds":{"document_bytes":16777216,"sheet_cells":100000,"rows_first":2000,"rows_last":500,"rows_between":2000,"halvings":0,"cell_chars":16384,"cell_head_chars":4096},"cells_cut":0,"cells_raw":0,"read":"whole","date_system":"1900"}

{"sheet":"Frontispiece","index":0,"n_rows":39,"n_cols":4,"rows_kept":39,"cut":false,"hidden":false,"merged":[[32,1,34,4],[38,1,62,10]]}
[]
[]
[]
[]
[]
[]
[]
[]
[]
[null,"DELIVERABLE: D28 - D4.8"]
[null,"Review of the three-dimensional Matrix"]
[]
[null,"Version: 01"]
[null,"Data: 05/09/2019"]
[]
[]
[]
[null,"WP Leader: University of Zagreb, Faculty of Civil Engineering"]
[null,"Authors: CSA - CENTRO SERVIZI AZIENDALE - University of Zagreb, Faculty of Civil Engineering"]
[null,"Contribution: all partners"]
[]
[]
[]
[]
[]
[null,"Network for Using BIM to Increase the Energy Performance"]
[]
[null,"Grant Agreement Number: ",null,"754016"]
[null,null,null," Net-UBIEP H2020"]
[]
[]
[]
[null,"www.net-ubiep.eu\nnetubiep.project@net-ubiep.eu"]
[]
[]
[]
[]
[]
[null,"This project has received funding from the European Union’s Horizon 2020 research and innovation programme under grant agreement N° 754016.\n\nThis deliverable reflects only the author's view. The Agency is not responsible for any use that may be made of the information it contains.\n\n---------------------------------------------------------------------------------------------------------------------------------------------\n\nThe present deliverable will be update during the project in order to align the outcome to the market needs as well as to other BIM related projects realized within Horizon 2020 program.\nThe updated version of the deliverable will be only available in the website of the project www.net-ubiep.eu. \nSome deliverables could also be translated in partners national languages and could be find in the respective national web pages. Click on the flags to open the correspondence pages:\n\n                                                                International web page                                                                         Italian web page\n\n   \n                                                                Croatian web page                                                                                  Slovak web page\n\n   \n                                                                Spanish web page                                                                                    Dutch web page\n\n   \n                                                                Estonian web page                                                                                  Lithuanian web page\n"]

{"sheet":"3D Matrix","index":1,"n_rows":18,"n_cols":26,"rows_kept":18,"cut":false,"hidden":false,"merged":[[19,29,25,29],[19,30,25,30],[1,0,2,0],[1,1,2,25]]}
[]
[null,"3D Matrix"]
[]
[]
[null,"BIM Profiles","Strategic Definition","Preparation and Brief","Concept Design","Developed Design","Technical Design","Construction","Handover and Close Out","In use",null,null,"Strategic Definition","Preparation and Brief","Concept Design","Developed Design","Technical Design","Construction","Handover and Close Out","In use",null,null,"Owner","Technician","Professional","Public Administration"]
[]
[null,"BIM Manager",0.31,0.36,0.35,0.43,0.44,0.43,0.39,0.43,null,null,{"$f":"C7","v":0.31},{"$f":"D7","v":0.36},0.35,0.43,0.44,0.43,0.39,0.43,null,"BIM Manager"]
[null,"BIM Coordinator",0.28000000000000003,0.38,0.42,0.54,0.57999999999999996,0.49,0.43,0.49,null,"BIM Coordinator",{"$f":"C8","v":0.28000000000000003},0.38,0.42,0.54,0.57999999999999996,0.49,0.43,0.49,null,"BIM Coordinator"]
[null,"BIM Model Evaluator",0.22,0.28000000000000003,0.32,0.39,0.41,0.34,0.33,0.31,null,"BIM Model Evaluator",{"$f":"C9","v":0.22},0.28000000000000003,0.32,0.39,0.41,0.34,0.33,0.31,null,"BIM Model Evaluator"]
[null,"BIM Specialist-Expert",0.22,0.28999999999999998,0.37,0.39,0.43,0.35,0.36,0.38,null,"BIM Specialist-Expert",{"$f":"C10","v":0.22},0.28999999999999998,0.37,0.39,0.43,0.35,0.36,0.38,null,"BIM Specialist-Expert"]
[null,"BIM User",0.1,0.1,0.13,0.16,0.17,0.18,0.19,0.2,null,"BIM User",{"$f":"C11","v":0.1},0.1,0.13,0.16,0.17,0.18,0.19,0.2,null,"BIM User"]
[]
[null,"Target Group","Strategic Definition","Preparation and Brief","Concept Design","Developed Design","Technical Design","Construction","Handover and Close Out","In use",null,null,"Strategic Definition","Preparation and Brief","Concept Design","Developed Design","Technical Design","Construction","Handover and Close Out","In use"]
[]
[null,"Public Administration",0.24,0.26,0.24,0.32,0.33,0.32,0.3,0.34,null,"Public Administration",{"$f":"C15","v":0.24},{"$f":"D15","v":0.26},0.24,0.32,0.33,0.32,0.3,0.34]
[null,"Professional",0.34,0.5,0.52,0.66,0.73,0.64,0.52,0.62,null,"Professional",{"$f":"C16","v":0.34},0.5,0.52,0.66,0.73,0.64,0.52,0.62]
[null,"Technician",0.1,0.17,0.17,0.22,0.23,0.23,0.2,0.24,null,"Technician",{"$f":"C17","v":0.1},0.17,0.17,0.22,0.23,0.23,0.2,0.24]
[null,"Owner",0.16,0.19,0.19,0.21,0.22,0.22,0.22,0.26,null,"Owner",{"$f":"C18","v":0.16},0.19,0.19,0.21,0.22,0.22,0.22,0.26]

{"sheet":"EQF LEVELS","index":2,"n_rows":18,"n_cols":4,"rows_kept":18,"cut":false,"hidden":false,"merged":[[1,0,2,3],[4,0,8,0],[4,1,8,1],[4,2,8,2],[4,3,8,3]]}
[]
["EQF LEVELS"]
[]
[]
["LEGEND:","KNOWLEDGE",null,"RESPONSABILITY AND AUTONOMY"]
[]
[]
[]
[]
[null,"In the context of EQF, knowledge is described as theoretical and/or factual.","In the context of EQF, skills are described as cognitive (involving the use of logical, intuitive and creative thinking) and practical (involving manual dexterity and the use of methods, materials, tools and instruments).","In the context of the EQF responsibility and autonomy is described as the ability of the learner to apply knowledge and skills autonomously and with responsibility"]
["Level 1\nThe learning outcomes relevant to Level 1 are","basic general knowledge","basic skills required to carry out simple tasks","work or study under direct supervision in a structured context"]
["Level 2\nThe learning outcomes relevant to Level 2 are","basic factual knowledge of a field of work or study","basic cognitive and practical skills required to use relevant information in order to carry out tasks and to solve routine problems using simple rules and tools","work or study under supervision with some autonomy"]
["Level 3\nThe learning outcomes relevant to Level 3 are","knowledge of facts, principles, processes and general concepts, in a field of work or study","a range of cognitive and practical skills required to accomplish tasks and solve problems by selecting and applying basic methods, tools, materials and information","take responsibility for completion of tasks in work or study\nadapt own behaviour to circumstances in solving problems"]
["Level 4\nThe learning outcomes relevant to Level 4 are","factual and theoretical knowledge in broad contexts within a field of work or study","a range of cognitive and practical skills required to generate solutions to specific problems in a field of work or study","exercise self-management within the guidelines of work or study contexts that are usually predictable, but are subject to change\nsupervise the routine work of others, taking some responsibility for the evaluation and improvement of work or study activities"]
["Level 5*\nThe learning outcomes relevant to Level 5 are","comprehensive, specialised, factual and theoretical knowledge within a field of work or study and an awareness of the boundaries of that knowledge","a comprehensive range of cognitive and practical skills required to develop creative solutions to abstract problems","exercise management and supervision in contexts of work or study activities where there is unpredictable change\nreview and develop performance of self and others"]
["Level 6**\nThe learning outcomes relevant to Level 6 are","advanced knowledge of a field of work or study, involving a critical understanding of theories and principles","advanced skills, demonstrating mastery and innovation, required to solve complex and unpredictable problems in a specialised field of work or study","manage complex technical or professional activities or projects, taking responsibility for decision-making in unpredictable work or study contexts\ntake responsibility for managing professional development of individuals and groups"]
["Level 7***\nThe learning outcomes relevant to Level 7 are","highly specialised knowledge, some of which is at the forefront of knowledge in a field of work or study, as the basis for original thinking and/or research\ncritical awareness of knowledge issues in a field and at the interface between different fields","specialised problem-solving skills required in research and/or innovation in order to develop new knowledge and procedures and to integrate knowledge from different fields","manage and transform work or study contexts that are complex, unpredictable and require new strategic approaches\ntake responsibility for contributing to professional knowledge and practice and/or for reviewing the strategic performance of teams"]
["Level 8**** \nThe learning outcomes relevant to Level 8 are","knowledge at the most advanced frontier of a field of work or study and at the interface between fields","the most advanced and specialised skills and techniques, including synthesis and evaluation, required to solve critical problems in research and/or innovation and to extend and redefine existing knowledge or professional practice","demonstrate substantial authority, innovation, autonomy, scholarly and professional integrity and sustained commitment to the development of new ideas or processes at the forefront of work or study contexts including research"]

{"sheet":"1-PA","index":3,"n_rows":54,"n_cols":17,"rows_kept":54,"cut":false,"hidden":false,"merged":[[49,1,49,10],[50,1,50,10],[51,1,51,10],[52,1,52,10],[53,1,53,10],[43,1,43,10],[44,1,44,10],[45,1,45,10],[46,1,46,10],[47,1,47,10],[48,1,48,10],[37,1,37,10],[38,1,38,10],[39,1,39,10],[40,1,40,10],[41,1,41,10],[42,1,42,10],[31,1,31,10],[32,0,33,16],[34,0,34,16],[35,1,35,10],[35,11,35,16],[36,1,36,10],[25,1,25,10],[26,1,26,10],[27,1,27,10],[28,1,28,10],[29,1,29,10],[30,1,30,10],[19,1,19,10],[20,1,20,10],[21,1,21,10],[22,1,22,10],[23,1,23,10],[24,1,24,10],[13,1,13,10],[14,1,14,10],[15,1,15,10],[16,1,16,10],[17,1,17,10],[18,1,18,10],[7,1,7,10],[8,1,8,10],[9,1,9,10],[10,1,10,10],[11,1,11,10],[12,1,12,10],[1,0,2,16],[3,0,3,16],[4,1,4,10],[4,11,4,16],[5,1,5,10],[6,1,6,10]]}
[]
["Competences & Learning outcomes"]
[]
["Public Administration"]
["N","Competence",null,null,null,null,null,null,null,null,null,"Learning outcome (D3.2-A)"]
["C0","Have basic BIM knowledge and skills",null,null,null,null,null,null,null,null,null,"PA.L01","PA.L02","PA.L03","PA.L04","PA.L05","PA.L06"]
["C0.K1","BIM basic concepts, terminology, principles, strategies and its value proposition"]
["C0.K2","Benefits and uses of BIM compared to traditional methods for improving energy efficiency of new or existing buildings"]
["C0.K3","Project information development cycle: information specification, development, exchange and maintenance throughout all the building life cycle"]
["C0.K4","Reasons for open and interoperable solutions to ensure collaboration among professionals of different disciplines"]
["C0.K5","Methodology to identify, plan, develop and evaluate organization's BIM implementation capabilities and BIM uses"]
["C0.K6","Relevance of maintenance for maintaing the foreseen energy performance"]
["C0.S1","Read a BIM Execution Plan (BEP)"]
["C0.S2","Read a Information Delivery Manual"]
["C0.S3","Identify information requirements for his own role"]
["C0.S4","Identify the format to read information and transfer information within the supply chain"]
["C0.S5","Identify the EIR (Employer Information Requirements)"]
["C0.S6","Identify and/or verify the stages of PIM (Project Information Management)"]
["C1","Understand BIM tools",null,null,null,null,null,null,null,null,null,"PA.L01","PA.L02","PA.L03","PA.L04","PA.L05","PA.L06"]
["C1.K1","Principle of economic subjects for the cost estimation and evaluation of energy refurbishment"]
["C1.S1","Specialised skills to incorporate information into BIM Model, evaluating openBIM software"]
["C1.S2","Stay up to date on BIM trends, current developments and new directions of BIM technologies"]
["C2","Apply information management",null,null,null,null,null,null,null,null,null,"PA.L01","PA.L02","PA.L03","PA.L04","PA.L05","PA.L06"]
["C2.K1","Principle of data mining, data base and back up in the CDE (Common Data Environment)"]
["C2.K2","Principle of data transferring among different software and/or data federating into an integrated design"]
["C2.K3","Principle of data security and administrative law in the archiving of data in a CDE (Common Data Environment)      "]
["C2.K4","Principle of information management in building sustainability and lean design"]
["C2.K5","Principle of reusing and recycling of materials and components of a building"]
["C2.S1","Manage and coordinate information related to energy performance"]
["C2.S6","Verify the correspondence between the \"as built\" and the final BIM model"]
["C2.S7","Identify requirements for the management of data in the CDE (Common Data Environment) for any professionals involved in the process"]
["C2.S11","Use BIM for assessing the reusability and recycling of building materials and components"]
["Competences & Learning outcomes"]
[]
["Public Administration"]
["N","Competence",null,null,null,null,null,null,null,null,null,"Learning outcome (D3.2-A)"]
["C3","Apply procurement management",null,null,null,null,null,null,null,null,null,"PA.L01","PA.L02","PA.L03","PA.L04","PA.L05","PA.L06"]
["C3.K1","Processes, methods and principles of decision-making on procuring services and suppliers"]
["C3.K3","Legal and technical aspects on green procurement, state and rules for using public funding and international good practices of energy performance contracting"]
["C3.K4","Strategies for training programs to increase energy efficiency with the support of BIM"]
["C3.S1","Select or evaluate selected companies with experience in the technologies defined"]
["C3.S3","List and collaborate with several stakeholders who participate in the sustainable project, distinguishing roles/needs and involving them in the information delivery plan preparation and management"]
["C3.S4","Apply change management, identifying and handling deviations / breach of the contract with particular guarantees"]
["C3.S5","Negotiate and take necessary legal steps if the contractual requirements were not met"]
["C3.S6","Include measureable Quality Analysis criteria as part of the contract"]
["C4","Use BIM technology",null,null,null,null,null,null,null,null,null,"PA.L01","PA.L02","PA.L03","PA.L04","PA.L05","PA.L06"]
["C4.K7","Techniques of automatic code checking and management of software e-permit"]
["C4.K8","Principle of information maturity level representation of the model defining the methodology for BIM maturity level"]
["C4.S10","Use 4D and 5D BIM technologies to evaluate time and cost"]
["C5","Analyse the BIM Model",null,null,null,null,null,null,null,null,null,"PA.L01","PA.L02","PA.L03","PA.L04","PA.L05","PA.L06"]
["C5.K1","Principle of global environmental impact of different building products and technologies (RES use, insulation, HVAC systems and building automation systems)"]
["C5.S1","Coordinate the work of different disciplines in order to obtain a consolidate BIM model that satisfy all the requirements"]
["C5.S2","Apply Quality Management and coordinate team members of different disciplines"]
["C5.S6","Use BIM models to communicate installation instructions"]

{"sheet":"2-PRO","index":4,"n_rows":82,"n_cols":23,"rows_kept":82,"cut":false,"hidden":false,"merged":[[80,1,80,10],[81,1,81,10],[78,1,78,10],[79,1,79,10],[2,0,3,22],[4,0,4,22],[5,11,5,22],[36,1,36,10],[37,1,37,10],[38,0,39,22],[74,1,74,10],[75,1,75,10],[60,1,60,10],[61,1,61,10],[62,1,62,10],[63,1,63,10],[64,1,64,10],[65,1,65,10],[76,1,76,10],[77,1,77,10],[66,1,66,10],[67,1,67,10],[68,1,68,10],[69,1,69,10],[70,1,70,10],[71,1,71,10],[72,1,72,10],[73,1,73,10],[54,1,54,10],[55,1,55,10],[56,1,56,10],[57,1,57,10],[58,1,58,10],[59,1,59,10],[48,1,48,10],[49,1,49,10],[50,1,50,10],[51,1,51,10],[52,1,52,10],[53,1,53,10],[42,1,42,10],[43,1,43,10],[44,1,44,10],[45,1,45,10],[46,1,46,10],[47,1,47,10],[29,1,29,10],[41,1,41,10],[30,1,30,10],[31,1,31,10],[32,1,32,10],[33,1,33,10],[34,1,34,10],[35,1,35,10],[40,0,40,22],[41,11,41,22],[23,1,23,10],[24,1,24,10],[25,1,25,10],[26,1,26,10],[27,1,27,10],[28,1,28,10],[17,1,17,10],[18,1,18,10],[19,1,19,10],[20,1,20,10],[21,1,21,10],[22,1,22,10],[11,1,11,10],[12,1,12,10],[13,1,13,10],[14,1,14,10],[15,1,15,10],[16,1,16,10],[5,1,5,10],[6,1,6,10],[7,1,7,10],[8,1,8,10],[9,1,9,10],[10,1,10,10]]}
[]
[]
["Competences & Learning outcomes"]
[]
["Professional"]
["N","Competence",null,null,null,null,null,null,null,null,null,"Learning outcome (D3.2-A)"]
["C0","Have basic BIM knowledge and skills",null,null,null,null,null,null,null,null,null,"PR.L01","PR.L02","PR.L03","PR.L04","PR.L05","PR.L06","PR.L07","PR.L08","PR.L09","PR.L10","PR.L11","PR.L12"]
["C0.K1","BIM basic concepts, terminology, principles, strategies and its value proposition"]
["C0.K2","Benefits and uses of BIM compared to traditional methods for improving energy efficiency of new or existing buildings"]
["C0.K3","Project information development cycle: information specification, development, exchange and maintenance throughout all the building life cycle"]
["C0.K4","Reasons for open and interoperable solutions to ensure collaboration among professionals of different disciplines"]
["C0.K5","Methodology to identify, plan, develop and evaluate organization's BIM implementation capabilities and BIM uses"]
["C0.K6","Relevance of maintenance for maintaing the foreseen energy performance"]
["C0.S1","Read a BIM Execution Plan (BEP)"]
["C0.S2","Read a Information Delivery Manual"]
["C0.S3","Identify information requirements for his own role"]
["C0.S4","Identify the format to read information and transfer information within the supply chain"]
["C0.S5","Identify the EIR (Employer Information Requirements)"]
["C0.S6","Identify and/or verify the stages of PIM (Project Information Management)"]
["C1","Understand BIM tools",null,null,null,null,null,null,null,null,null,"PR.L01","PR.L02","PR.L03","PR.L04","PR.L05","PR.L06","PR.L07","PR.L08","PR.L09","PR.L10","PR.L11","PR.L12"]
["C1.K1","Principle of economic subjects for the cost estimation and evaluation of energy refurbishment"]
["C1.S1","Specialised skills to incorporate information into BIM Model, evaluating openBIM software"]
["C1.S2","Stay up to date on BIM trends, current developments and new directions of BIM technologies"]
["C1.S3","Decrease the life cycle cost of the building using methods described in ISO 15686-5"]
["C1.S4","Evaluate and compare different plans and related Return of Investments using methods described in ISO 15686-5"]
["C2","Apply information management",null,null,null,null,null,null,null,null,null,"PR.L01","PR.L02","PR.L03","PR.L04","PR.L05","PR.L06","PR.L07","PR.L08","PR.L09","PR.L10","PR.L11","PR.L12"]
["C2.K1","Principle of data mining, data base and back up in the CDE (Common Data Environment)"]
["C2.K2","Principle of data transferring among different software and/or data federating into an integrated design"]
["C2.K3","Principle of data security and administrative law in the archiving of data in a CDE (Common Data Environment)      "]
["C2.K4","Principle of information management in building sustainability and lean design"]
["C2.S1","Manage and coordinate information related to energy performance"]
["C2.S2","Identify which graphic and/or non-graphic information are necessary for a better management of works and for define the completeness of the Information Delivery Plan in relation to energy performance"]
["C2.S3","Archive the model ensuring that the information provided is kept intact and not manipulated for any future use"]
["C2.S4","Evaluate the completeness of the maintenance plan to be used in EPC (Energy Performance Contracting)"]
["C2.S6","Verify the correspondence between the \"as built\" and the final BIM model"]
["C2.S7","Identify requirements for the management of data in the CDE (Common Data Environment) for any professionals involved in the process"]
["C2.S8","Transfer building information using BIM to facility managers and final users"]
["C2.S9","Ensure that construction process and product information is transferred into BIM Model / Technical Specifications and provide status of works when request"]
["Competences & Learning outcomes"]
[]
["Professional"]
["N","Competence",null,null,null,null,null,null,null,null,null,"Learning outcome (D3.2-A)"]
["C2.S10","Ensure the update of the BIM Model / Technical Specification when a maintenance is performed"]
["C2.S11","Use BIM for assessing the reusability and recycling of building materials and components"]
["C2.S12","Develop a CDE (Common Data Environment) to exchange data through the building life cycle as well as through the supply chain"]
["C3","Apply procurement management",null,null,null,null,null,null,null,null,null,"PR.L01","PR.L02","PR.L03","PR.L04","PR.L05","PR.L06","PR.L07","PR.L08","PR.L09","PR.L10","PR.L11","PR.L12"]
["C3.K1","Processes, methods and principles of decision-making on procuring services and suppliers"]
["C3.K2","Processes, methods and principles of decision-making on materials and products"]
["C3.K4","Strategies for training programs to increase energy efficiency with the support of BIM"]
["C3.S1","Select or evaluate selected companies with experience in the technologies defined"]
["C3.S2","Select products that fit specifications and demands on given quality aspects making financial calculation related to contracting phase"]
["C3.S3","List and collaborate with several stakeholders who participate in the sustainable project, distinguishing roles/needs and involving them in the information delivery plan preparation and management"]
["C3.S5","Define building environmental impact as part of the contract"]
["C4","Use BIM technology",null,null,null,null,null,null,null,null,null,"PR.L01","PR.L02","PR.L03","PR.L04","PR.L05","PR.L06","PR.L07","PR.L08","PR.L09","PR.L10","PR.L11","PR.L12"]
["C4.K1","Techniques and principles of integrated digital production and rendering"]
["C4.K2","Principle of integrated design and data transferring, with particular knowledge of IFC (Industry Foundation Classes) structure using international standard"]
["C4.K3","Principle of planning and scheduling for BEP (BIM Execution Plan)"]
["C4.K4","Principles of interplays between all aspects of building design, building use and outdoor climate for dynamic evaluation"]
["C4.K5","Principles and systems of sustainable buildings, including renewable energy production"]
["C4.K6","Design techniques for different scenarios for new resilient buildings to future climate changes and for the refurbishment of existing buildings"]
["C4.K7","Techniques of automatic code checking and management of software e-permit"]
["C4.K8","Principle of information maturity level representation of the model defining the methodology for BIM maturity level"]
["C4.S1","Produce a digital 3D model of building / any BIM objects needed for the library in the Common Data Environment"]
["C4.S2","Develop a BEP (BIM Execution Plan)"]
["C4.S3","Develop site utilization planning, set-up organized management systems, tack the effectiveness distribution of appropriate spaces and related resources"]
["C4.S4","Use laser scanning in order to produce a point of cloud of existing buildings, comparing and evaluating facilities and related systems"]
["C4.S5","Use BIM enabled simulation techniques to reduce the environmental impact"]
["C4.S6","Integrate different RES (Renewable Energy Sources) and energy efficiency systems into buildings without clash detection"]
["C4.S7","Produce a maintenance plan and a maintenance manual for building systems"]
["C4.S8","Produce a visualization design in order to report back to costumers, users and reviewers"]
["C4.S9","Use code checking to verify the respect of energy performance requirements"]
["C4.S10","Use 4D and 5D BIM technologies to evaluate time and cost"]
["C5","Analyse the BIM Model",null,null,null,null,null,null,null,null,null,"PR.L01","PR.L02","PR.L03","PR.L04","PR.L05","PR.L06","PR.L07","PR.L08","PR.L09","PR.L10","PR.L11","PR.L12"]
["C5.K1","Principle of global environmental impact of different building products and technologies (RES use, insulation, HVAC systems and building automation systems)"]
["C5.K2","Techniques of passive measures needed for the management of nZEB"]
["C5.K3","Principle of integrated design and data transferring, with particular knowledge of IFC (Industry Foundation Classes) structure using international standard"]
["C5.S1","Coordinate the work of different disciplines in order to obtain a consolidate BIM model that satisfy all the requirements"]
["C5.S2","Apply Quality Management and coordinate team members of different disciplines"]
["C5.S3","Apply BIM enabled energy and lighting analysis with periodic monitoring"]
["C5.S4","Validate BIM Model"]
["C5.S5","Use BIM to assure the technical supervision of construction works"]
["C5.S6","Use BIM models to communicate installation instructions"]

{"sheet":"3-TEC","index":5,"n_rows":39,"n_cols":16,"rows_kept":39,"cut":false,"hidden":false,"merged":[[37,1,37,10],[38,1,38,10],[31,1,31,10],[32,1,32,10],[33,1,33,10],[34,1,34,10],[35,1,35,10],[36,1,36,10],[25,1,25,10],[26,1,26,10],[27,1,27,10],[28,1,28,10],[29,1,29,10],[30,1,30,10],[19,1,19,10],[20,1,20,10],[21,1,21,10],[22,1,22,10],[23,1,23,10],[24,1,24,10],[13,1,13,10],[14,1,14,10],[15,1,15,10],[16,1,16,10],[17,1,17,10],[18,1,18,10],[7,1,7,10],[8,1,8,10],[9,1,9,10],[10,1,10,10],[11,1,11,10],[12,1,12,10],[1,0,2,15],[3,0,3,15],[4,1,4,10],[4,11,4,15],[5,1,5,10],[6,1,6,10]]}
[]
["Competences & Learnign outcomes"]
[]
["Technician"]
["N","Competence",null,null,null,null,null,null,null,null,null,"Learning outcome (D3.2-A)"]
["C0","Have basic BIM knowledge and skills",null,null,null,null,null,null,null,null,null,"TE.L01","TE.L02","TE.L03","TE.L04","TE.L05"]
["C0.K1","BIM basic concepts, terminology, principles, strategies and its value proposition"]
["C0.K2","Benefits and uses of BIM compared to traditional methods for improving energy efficiency of new or existing buildings"]
["C0.K3","Project information development cycle: information specification, development, exchange and maintenance throughout all the building life cycle"]
["C0.K4","Reasons for open and interoperable solutions to ensure collaboration among professionals of different disciplines"]
["C0.K5","Methodology to identify, plan, develop and evaluate organization's BIM implementation capabilities and BIM uses"]
["C0.K6","Relevance of maintenance for maintaing the foreseen energy performance"]
["C0.S1","Read a BIM Execution Plan (BEP)"]
["C0.S2","Read a Information Delivery Manual"]
["C0.S3","Identify information requirements for his own role"]
["C0.S4","Identify the format to read information and transfer information within the supply chain"]
["C2","Apply information management",null,null,null,null,null,null,null,null,null,"TE.L01","TE.L02","TE.L03","TE.L04","TE.L05"]
["C2.K2","Principle of data transferring among different software and/or data federating into an integrated design"]
["C2.K3","Principle of data security and administrative law in the archiving of data in a CDE (Common Data Environment)      "]
["C2.K4","Principle of information management in building sustainability and lean design"]
["C2.K5","Principle of reusing and recycling of materials and components of a building"]
["C2.S1","Manage and coordinate information related to energy performance"]
["C2.S2","Identify which graphic and/or non-graphic information are necessary for a better management of works and for define the completeness of the Information Delivery Plan in relation to energy performance"]
["C2.S3","Archive the model ensuring that the information provided is kept intact and not manipulated for any future use"]
["C2.S4","Evaluate the completeness of the maintenance plan to be used in EPC (Energy Performance Contracting)"]
["C2.S7","Identify requirements for the management of data in the CDE (Common Data Environment) for any professionals involved in the process"]
["C2.S9","Ensure that construction process and product information is transferred into BIM Model / Technical Specifications and provide status of works when request"]
["C3","Apply procurement management",null,null,null,null,null,null,null,null,null,"TE.L01","TE.L02","TE.L03","TE.L04","TE.L05"]
["C3.K2","Processes, methods and principles of decision-making on materials and products"]
["C3.S2","Select products that fit specifications and demands on given quality aspects making financial calculation related to contracting phase"]
["C3.S3","List and collaborate with several stakeholders who participate in the sustainable project, distinguishing roles/needs and involving them in the information delivery plan preparation and management"]
["C4","Use BIM technology",null,null,null,null,null,null,null,null,null,"TE.L01","TE.L02","TE.L03","TE.L04","TE.L05"]
["C4.K4","Principles of interplays between all aspects of building design, building use and outdoor climate for dynamic evaluation"]
["C4.K5","Principles and systems of sustainable buildings, including renewable energy production"]
["C4.S4","Use laser scanning in order to produce a point of cloud of existing buildings, comparing and evaluating facilities and related systems"]
["C4.S5","Use BIM enabled simulation techniques to reduce the environmental impact"]
["C5","Analyse the BIM Model",null,null,null,null,null,null,null,null,null,"TE.L01","TE.L02","TE.L03","TE.L04","TE.L05"]
["C5.K1","Principle of global environmental impact of different building products and technologies (RES use, insulation, HVAC systems and building automation systems)"]
["C5.S6","Use BIM models to communicate installation instructions"]

{"sheet":"4-OW","index":6,"n_rows":54,"n_cols":19,"rows_kept":54,"cut":false,"hidden":false,"merged":[[49,1,49,10],[50,1,50,10],[51,1,51,10],[52,1,52,10],[53,1,53,10],[43,1,43,10],[44,1,44,10],[45,1,45,10],[46,1,46,10],[47,1,47,10],[48,1,48,10],[38,1,38,10],[38,11,38,18],[39,1,39,10],[40,1,40,10],[41,1,41,10],[42,1,42,10],[31,1,31,10],[32,1,32,10],[33,1,33,10],[34,1,34,10],[35,0,36,18],[37,0,37,18],[25,1,25,10],[26,1,26,10],[27,1,27,10],[28,1,28,10],[29,1,29,10],[30,1,30,10],[19,1,19,10],[20,1,20,10],[21,1,21,10],[22,1,22,10],[23,1,23,10],[24,1,24,10],[13,1,13,10],[14,1,14,10],[15,1,15,10],[16,1,16,10],[17,1,17,10],[18,1,18,10],[7,1,7,10],[8,1,8,10],[9,1,9,10],[10,1,10,10],[11,1,11,10],[12,1,12,10],[1,0,2,18],[3,0,3,18],[4,1,4,10],[4,11,4,18],[5,1,5,10],[6,1,6,10]]}
[]
["Competences & Learning outcomes"]
[]
["Owner"]
["N","Competence",null,null,null,null,null,null,null,null,null,"Learning outcome (D3.2-A)"]
["C0","Have basic BIM knowledge and skills",null,null,null,null,null,null,null,null,null,"OW.LO1","OW.LO2","OW.LO3","OW.LO4","OW.LO5","OW.LO6","OW.LO7","OW.LO8"]
["C0.K1","BIM basic concepts, terminology, principles, strategies and its value proposition"]
["C0.K2","Benefits and uses of BIM compared to traditional methods for improving energy efficiency of new or existing buildings"]
["C0.K3","Project information development cycle: information specification, development, exchange and maintenance throughout all the building life cycle"]
["C0.K4","Reasons for open and interoperable solutions to ensure collaboration among professionals of different disciplines"]
["C0.K5","Methodology to identify, plan, develop and evaluate organization's BIM implementation capabilities and BIM uses"]
["C0.K6","Relevance of maintenance for maintaing the foreseen energy performance"]
["C0.S1","Read a BIM Execution Plan (BEP)"]
["C0.S2","Read a Information Delivery Manual"]
["C0.S3","Identify information requirements for his own role"]
["C0.S4","Identify the format to read information and transfer information within the supply chain"]
["C1","Understand BIM tools",null,null,null,null,null,null,null,null,null,"OW.LO1","OW.LO2","OW.LO3","OW.LO4","OW.LO5","OW.LO6","OW.LO7","OW.LO8"]
["C1.K1","Principle of economic subjects for the cost estimation and evaluation of energy refurbishment"]
["C1.S1","Specialised skills to incorporate information into BIM Model, evaluating openBIM software"]
["C1.S3","Decrease the life cycle cost of the building using methods described in ISO 15686-5"]
["C1.S4","Evaluate and compare different plans and related Return of Investments using methods described in ISO 15686-5"]
["C2","Apply information management",null,null,null,null,null,null,null,null,null,"OW.LO1","OW.LO2","OW.LO3","OW.LO4","OW.LO5","OW.LO6","OW.LO7","OW.LO8"]
["C2.K1","Principle of data mining, data base and back up in the CDE (Common Data Environment)"]
["C2.K2","Principle of data transferring among different software and/or data federating into an integrated design"]
["C2.K3","Principle of data security and administrative law in the archiving of data in a CDE (Common Data Environment)      "]
["C2.K4","Principle of information management in building sustainability and lean design"]
["C2.K5","Principle of reusing and recycling of materials and components of a building"]
["C2.S1","Manage and coordinate information related to energy performance"]
["C2.S2","Identify which graphic and/or non-graphic information are necessary for a better management of works and for define the completeness of the Information Delivery Plan in relation to energy performance"]
["C2.S3","Archive the model ensuring that the information provided is kept intact and not manipulated for any future use"]
["C2.S4","Evaluate the completeness of the maintenance plan to be used in EPC (Energy Performance Contracting)"]
["C2.S5","Evaluate the completeness of the handover strategy"]
["C2.S6","Verify the correspondence between the \"as built\" and the final BIM model"]
["C2.S7","Identify requirements for the management of data in the CDE (Common Data Environment) for any professionals involved in the process"]
["C2.S11","Use BIM for assessing the reusability and recycling of building materials and components"]
["Competences & Learning outcomes"]
[]
["Owner"]
["N","Competence",null,null,null,null,null,null,null,null,null,"Learning outcome (D3.2-A)"]
["C3","Apply procurement management",null,null,null,null,null,null,null,null,null,"OW.LO1","OW.LO2","OW.LO3","OW.LO4","OW.LO5","OW.LO6","OW.LO7","OW.LO8"]
["C3.K1","Processes, methods and principles of decision-making on procuring services and suppliers"]
["C3.K3","Legal and technical aspects on green procurement, state and rules for using public funding and international good practices of energy performance contracting"]
["C3.S1","Select or evaluate selected companies with experience in the technologies defined"]
["C3.S3","List and collaborate with several stakeholders who participate in the sustainable project, distinguishing roles/needs and involving them in the information delivery plan preparation and management"]
["C3.S4","Apply change management, identifying and handling deviations / breach of the contract with particular guarantees"]
["C3.S5","Negotiate and take necessary legal steps if the contractual requirements were not met"]
["C4","Use BIM technology",null,null,null,null,null,null,null,null,null,"OW.LO1","OW.LO2","OW.LO3","OW.LO4","OW.LO5","OW.LO6","OW.LO7","OW.LO8"]
["C4.K5","Principles and systems of sustainable buildings, including renewable energy production"]
["C4.S5","Use BIM enabled simulation techniques to reduce the environmental impact"]
["C4.S10","Use 4D and 5D BIM technologies to evaluate time and cost"]
["C5","Analyse the BIM Model",null,null,null,null,null,null,null,null,null,"OW.LO1","OW.LO2","OW.LO3","OW.LO4","OW.LO5","OW.LO6","OW.LO7","OW.LO8"]
["C5.K1","Principle of global environmental impact of different building products and technologies (RES use, insulation, HVAC systems and building automation systems)"]
["C5.K2","Techniques of passive measures needed for the management of nZEB"]
["C5.S6","Use BIM models to communicate installation instructions"]

{"sheet":"MAN1","index":7,"n_rows":49,"n_cols":20,"rows_kept":49,"cut":false,"hidden":false,"merged":[[57,2,57,11],[58,2,58,11],[59,2,59,11],[42,2,42,11],[43,2,43,11],[47,2,47,11],[55,2,55,11],[56,2,56,11],[50,2,50,11],[51,2,51,11],[52,2,52,11],[53,2,53,11],[54,2,54,11],[49,2,49,11],[20,2,20,11],[21,2,21,11],[48,2,48,11],[22,2,22,11],[23,2,23,11],[44,2,44,11],[40,2,40,11],[24,2,24,11],[41,2,41,11],[34,2,34,11],[2,0,3,0],[2,1,3,19],[4,1,4,7],[4,8,4,19],[5,2,5,11],[5,12,5,19],[60,2,60,11],[61,2,61,11],[62,2,62,11],[63,2,63,11],[64,2,64,11],[68,2,68,11],[69,2,69,11],[65,2,65,11],[66,2,66,11],[67,2,67,11],[6,2,6,11],[7,2,7,11],[8,2,8,11],[9,2,9,11],[10,2,10,11],[11,2,11,11],[12,2,12,11],[13,2,13,11],[14,2,14,11],[15,2,15,11],[16,2,16,11],[17,2,17,11],[18,2,18,11],[45,2,45,11],[26,2,26,11],[27,2,27,11],[28,2,28,11],[29,2,29,11],[30,2,30,11],[31,2,31,11],[32,2,32,11],[33,2,33,11],[19,2,19,19],[25,2,25,19],[39,12,39,19],[46,2,46,19],[35,2,35,11],[36,0,37,0],[36,1,37,19],[38,1,38,7],[38,8,38,19],[39,2,39,11]]}
[]
[]
[null,"List of Competences"]
[]
[null,"BIM Manager",null,null,null,null,null,null,"Strategic Definition"]
[null,"N","Competence",null,null,null,null,null,null,null,null,null,"EQF Level"]
[null,"C0","Have basic BIM knowledge and skills",null,null,null,null,null,null,null,null,null,1,2,3,4,5,6,7,8]
[null,"C0.K1","BIM basic concepts, terminology, principles, strategies and its value proposition"]
[null,"C0.K2","Benefits and uses of BIM compared to traditional methods for improving energy efficiency of new or existing buildings"]
[null,"C0.K3","Project information development cycle: information specification, development, exchange and maintenance throughout all the building life cycle"]
[null,"C0.K4","Reasons for open and interoperable solutions to ensure collaboration among professionals of different disciplines"]
[null,"C0.K5","Methodology to identify, plan, develop and evaluate organization's BIM implementation capabilities and BIM uses"]
[null,"C0.K6","Relevance of maintenance for maintaing the foreseen energy performance"]
[null,"C0.S1","Read a BIM Execution Plan (BEP)"]
[null,"C0.S2","Read a Information Delivery Manual"]
[null,"C0.S3","Identify information requirements for his own role"]
[null,"C0.S4","Identify the format to read information and transfer information within the supply chain"]
[null,"C0.S5","Identify the EIR (Employer Information Requirements)"]
[null,"C0.S6","Identify and/or verify the stages of PIM (Project Information Management)"]
[null,"C1","Understand BIM tools"]
[null,"C1.K1","Principle of economic subjects for the cost estimation and evaluation of energy refurbishment"]
[null,"C1.S1","Specialised skills to incorporate information into BIM Model, evaluating openBIM software"]
[null,"C1.S2","Stay up to date on BIM trends, current developments and new directions of BIM technologies"]
[null,"C1.S3","Decrease the life cycle cost of the building using methods described in ISO 15686-5"]
[null,"C1.S4","Evaluate and compare different plans and related Return of Investments using methods described in ISO 15686-5"]
[null,"C2","Apply information management"]
[]
[]
[]
[]
[]
[]
[]
[]
[]
[]
[null,"List of Competences"]
[]
[null,"BIM Manager",null,null,null,null,null,null,"Strategic Definition"]
[null,"N","Competence",null,null,null,null,null,null,null,null,null,"EQF Level"]
[null,"C2.K1","Principle of data mining, data base and back up in the CDE (Common Data Environment)"]
[null,"C2.K2","Principle of data transferring among different software and/or data federating into an integrated design"]
[null,"C2.K3","Principle of data security and administrative law in the archiving of data in a CDE (Common Data Environment)      "]
[null,"C2.K4","Principle of information management in building sustainability and lean design"]
[null,"C2.S7","Identify requirements for the management of data in the CDE (Common Data Environment) for any professionals involved in the process"]
[null,"C2.S8","Transfer building information using BIM to facility managers and final users"]
[null,"C3","Apply procurement management"]
[null,"C3.K4","Strategies for training programs to increase energy efficiency with the support of BIM"]
[null,"C3.S3","List and collaborate with several stakeholders who participate in the sustainable project, distinguishing roles/needs and involving them in the information delivery plan preparation and management"]

{"sheet":"COO1","index":8,"n_rows":47,"n_cols":20,"rows_kept":47,"cut":false,"hidden":false,"merged":[[5,12,5,19],[24,2,24,11],[40,2,40,11],[41,2,41,11],[43,2,43,11],[26,2,26,11],[27,2,27,11],[21,2,21,11],[23,2,23,11],[10,2,10,11],[53,2,53,11],[54,2,54,11],[28,2,28,11],[29,2,29,11],[30,2,30,11],[31,2,31,11],[32,2,32,11],[33,2,33,11],[45,2,45,11],[34,2,34,11],[55,2,55,11],[2,0,3,0],[2,1,3,19],[4,1,4,7],[4,8,4,19],[5,2,5,11],[6,2,6,11],[7,2,7,11],[8,2,8,11],[9,2,9,11],[57,2,57,11],[42,2,42,11],[69,2,69,11],[56,2,56,11],[46,2,46,11],[58,2,58,11],[64,2,64,11],[65,2,65,11],[66,2,66,11],[67,2,67,11],[68,2,68,11],[59,2,59,11],[60,2,60,11],[61,2,61,11],[62,2,62,11],[63,2,63,11],[11,2,11,11],[12,2,12,11],[13,2,13,11],[14,2,14,11],[15,2,15,11],[16,2,16,11],[17,2,17,11],[18,2,18,11],[25,2,25,11],[35,2,35,11],[36,0,37,0],[36,1,37,19],[38,1,38,7],[38,8,38,19],[19,2,19,19],[22,2,22,19],[20,2,20,11],[51,2,51,11],[52,2,52,11],[39,2,39,11],[48,2,48,11],[49,2,49,11],[50,2,50,11],[47,2,47,11],[44,2,44,19],[39,12,39,19]]}
[]
[]
[null,"List of Competences"]
[]
[null,"BIM Coordinator",null,null,null,null,null,null,"Strategic Definition"]
[null,"N","Competence",null,null,null,null,null,null,null,null,null,"EQF Level"]
[null,"C0","Have basic BIM knowledge and skills",null,null,null,null,null,null,null,null,null,1,2,3,4,5,6,7,8]
[null,"C0.K1","BIM basic concepts, terminology, principles, strategies and its value proposition"]
[null,"C0.K2","Benefits and uses of BIM compared to traditional methods for improving energy efficiency of new or existing buildings"]
[null,"C0.K3","Project information development cycle: information specification, development, exchange and maintenance throughout all the building life cycle"]
[null,"C0.K4","Reasons for open and interoperable solutions to ensure collaboration among professionals of different disciplines"]
[null,"C0.K5","Methodology to identify, plan, develop and evaluate organization's BIM implementation capabilities and BIM uses"]
[null,"C0.K6","Relevance of maintenance for maintaing the foreseen energy performance"]
[null,"C0.S1","Read a BIM Execution Plan (BEP)"]
[null,"C0.S2","Read a Information Delivery Manual"]
[null,"C0.S3","Identify information requirements for his own role"]
[null,"C0.S4","Identify the format to read information and transfer information within the supply chain"]
[null,"C0.S5","Identify the EIR (Employer Information Requirements)"]
[null,"C0.S6","Identify and/or verify the stages of PIM (Project Information Management)"]
[null,"C1","Understand BIM tools"]
[null,"C1.S1","Specialised skills to incorporate information into BIM Model, evaluating openBIM software"]
[null,"C1.S2","Stay up to date on BIM trends, current developments and new directions of BIM technologies"]
[null,"C2","Apply information management"]
[null,"C2.K1","Principle of data mining, data base and back up in the CDE (Common Data Environment)"]
[null,"C2.K2","Principle of data transferring among different software and/or data federating into an integrated design"]
[null,"C2.K3","Principle of data security and administrative law in the archiving of data in a CDE (Common Data Environment)      "]
[]
[]
[]
[]
[]
[]
[]
[]
[]
[]
[null,"List of Competences"]
[]
[null,"BIM Coordinator",null,null,null,null,null,null,"Strategic Definition"]
[null,"N","Competence",null,null,null,null,null,null,null,null,null,"EQF Level"]
[null,"C2.K4","Principle of information management in building sustainability and lean design"]
[null,"C2.S7","Identify requirements for the management of data in the CDE (Common Data Environment) for any professionals involved in the process"]
[null,"C2.S8","Transfer building information using BIM to facility managers and final users"]
[null,"C2.S12","Develop a CDE (Common Data Environment) to exchange data through the building life cycle as well as through the supply chain"]
[null,"C3","Apply procurement management"]
[null,"C3.K4","Strategies for training programs to increase energy efficiency with the support of BIM"]
[null,"C3.S3","List and collaborate with several stakeholders who participate in the sustainable project, distinguishing roles/needs and involving them in the information delivery plan preparation and management"]

{"sheet":"MOD1","index":9,"n_rows":42,"n_cols":20,"rows_kept":42,"cut":false,"hidden":false,"merged":[[68,2,68,11],[69,2,69,11],[5,2,5,11],[62,2,62,11],[63,2,63,11],[64,2,64,11],[65,2,65,11],[66,2,66,11],[58,2,58,11],[44,2,44,11],[60,2,60,11],[61,2,61,11],[55,2,55,11],[56,2,56,11],[57,2,57,11],[53,2,53,11],[67,2,67,11],[46,2,46,11],[47,2,47,11],[54,2,54,11],[48,2,48,11],[49,2,49,11],[50,2,50,11],[51,2,51,11],[52,2,52,11],[59,2,59,11],[6,2,6,11],[2,0,3,0],[2,1,3,19],[4,1,4,7],[4,8,4,19],[14,2,14,11],[7,2,7,11],[8,2,8,11],[5,12,5,19],[15,2,15,11],[16,2,16,11],[17,2,17,11],[9,2,9,11],[10,2,10,11],[11,2,11,11],[12,2,12,11],[13,2,13,11],[18,2,18,11],[21,2,21,11],[25,2,25,11],[24,2,24,11],[20,2,20,11],[22,2,22,11],[23,2,23,19],[19,2,19,19],[26,2,26,11],[27,2,27,11],[28,2,28,11],[29,2,29,11],[30,2,30,11],[31,2,31,11],[32,2,32,11],[33,2,33,11],[34,2,34,11],[35,2,35,11],[36,0,37,0],[36,1,37,19],[39,12,39,19],[38,1,38,7],[38,8,38,19],[39,2,39,11],[45,2,45,11],[42,2,42,11],[43,2,43,11],[40,2,40,11],[41,2,41,11]]}
[]
[]
[null,"List of Competences"]
[]
[null,"BIM Model Evaluator",null,null,null,null,null,null,"Strategic Definition"]
[null,"N","Competence",null,null,null,null,null,null,null,null,null,"EQF Level"]
[null,"C0","Have basic BIM knowledge and skills",null,null,null,null,null,null,null,null,null,1,2,3,4,5,6,7,8]
[null,"C0.K1","BIM basic concepts, terminology, principles, strategies and its value proposition"]
[null,"C0.K2","Benefits and uses of BIM compared to traditional methods for improving energy efficiency of new or existing buildings"]
[null,"C0.K3","Project information development cycle: information specification, development, exchange and maintenance throughout all the building life cycle"]
[null,"C0.K4","Reasons for open and interoperable solutions to ensure collaboration among professionals of different disciplines"]
[null,"C0.K5","Methodology to identify, plan, develop and evaluate organization's BIM implementation capabilities and BIM uses"]
[null,"C0.K6","Relevance of maintenance for maintaing the foreseen energy performance"]
[null,"C0.S1","Read a BIM Execution Plan (BEP)"]
[null,"C0.S2","Read a Information Delivery Manual"]
[null,"C0.S3","Identify information requirements for his own role"]
[null,"C0.S4","Identify the format to read information and transfer information within the supply chain"]
[null,"C0.S5","Identify the EIR (Employer Information Requirements)"]
[null,"C0.S6","Identify and/or verify the stages of PIM (Project Information Management)"]
[null,"C1","Understand BIM tools"]
[null,"C1.K1","Principle of economic subjects for the cost estimation and evaluation of energy refurbishment"]
[null,"C1.S2","Stay up to date on BIM trends, current developments and new directions of BIM technologies"]
[null,"C1.S4","Evaluate and compare different plans and related Return of Investments using methods described in ISO 15686-5"]
[null,"C2","Apply information management"]
[null,"C2.K1","Principle of data mining, data base and back up in the CDE (Common Data Environment)"]
[null,"C2.K3","Principle of data security and administrative law in the archiving of data in a CDE (Common Data Environment)      "]
[]
[]
[]
[]
[]
[]
[]
[]
[]
[]
[null,"List of Competences"]
[]
[null,"BIM Model Evaluator",null,null,null,null,null,null,"Strategic Definition"]
[null,"N","Competence",null,null,null,null,null,null,null,null,null,"EQF Level"]
[null,"C2.K4","Principle of information management in building sustainability and lean design"]
[null,"C2.S7","Identify requirements for the management of data in the CDE (Common Data Environment) for any professionals involved in the process"]

{"sheet":"SPE1","index":10,"n_rows":43,"n_cols":20,"rows_kept":43,"cut":false,"hidden":false,"merged":[[69,2,69,11],[5,2,5,11],[62,2,62,11],[63,2,63,11],[64,2,64,11],[65,2,65,11],[66,2,66,11],[58,2,58,11],[23,2,23,11],[42,2,42,11],[44,2,44,11],[51,2,51,11],[53,2,53,11],[54,2,54,11],[55,2,55,11],[52,2,52,11],[50,2,50,11],[67,2,67,11],[68,2,68,11],[59,2,59,11],[60,2,60,11],[61,2,61,11],[56,2,56,11],[57,2,57,11],[22,15,22,19],[24,2,24,11],[22,2,22,11],[19,15,19,19],[20,2,20,11],[21,2,21,11],[19,2,19,11],[2,0,3,0],[2,1,3,19],[4,1,4,7],[4,8,4,19],[6,2,6,11],[5,12,5,19],[7,2,7,11],[8,2,8,11],[9,2,9,11],[10,2,10,11],[11,2,11,11],[12,2,12,11],[13,2,13,11],[14,2,14,11],[15,2,15,11],[16,2,16,11],[17,2,17,11],[18,2,18,11],[25,2,25,11],[40,2,40,11],[26,2,26,11],[27,2,27,11],[28,2,28,11],[29,2,29,11],[30,2,30,11],[31,2,31,11],[32,2,32,11],[33,2,33,11],[34,2,34,11],[35,2,35,11],[36,0,37,0],[36,1,37,19],[38,1,38,7],[38,8,38,19],[39,12,39,19],[41,15,41,19],[39,2,39,11],[48,2,48,11],[49,2,49,11],[45,2,45,11],[46,2,46,11],[47,2,47,11],[41,2,41,11],[43,2,43,11]]}
[]
[]
[null,"List of Competences"]
[]
[null,"BIM Specialist-Expert",null,null,null,null,null,null,"Strategic Definition"]
[null,"N","Competence",null,null,null,null,null,null,null,null,null,"EQF Level"]
[null,"C0","Have basic BIM knowledge and skills",null,null,null,null,null,null,null,null,null,1,2,3,4,5,6,7,8]
[null,"C0.K1","BIM basic concepts, terminology, principles, strategies and its value proposition"]
[null,"C0.K2","Benefits and uses of BIM compared to traditional methods for improving energy efficiency of new or existing buildings"]
[null,"C0.K3","Project information development cycle: information specification, development, exchange and maintenance throughout all the building life cycle"]
[null,"C0.K4","Reasons for open and interoperable solutions to ensure collaboration among professionals of different disciplines"]
[null,"C0.K5","Methodology to identify, plan, develop and evaluate organization's BIM implementation capabilities and BIM uses"]
[null,"C0.K6","Relevance of maintenance for maintaing the foreseen energy performance"]
[null,"C0.S1","Read a BIM Execution Plan (BEP)"]
[null,"C0.S2","Read a Information Delivery Manual"]
[null,"C0.S3","Identify information requirements for his own role"]
[null,"C0.S4","Identify the format to read information and transfer information within the supply chain"]
[null,"C0.S5","Identify the EIR (Employer Information Requirements)"]
[null,"C0.S6","Identify and/or verify the stages of PIM (Project Information Management)"]
[null,"C1","Understand BIM tools"]
[null,"C1.S1","Specialised skills to incorporate information into BIM Model, evaluating openBIM software"]
[null,"C1.S2","Stay up to date on BIM trends, current developments and new directions of BIM technologies"]
[null,"C2","Apply information management"]
[null,"C2.K2","Principle of data transferring among different software and/or data federating into an integrated design"]
[null,"C2.K4","Principle of information management in building sustainability and lean design"]
[null,"C2.K3","Principle of data security and administrative law in the archiving of data in a CDE (Common Data Environment)      "]
[]
[]
[]
[]
[]
[]
[]
[]
[]
[]
[null,"List of Competences"]
[]
[null,"BIM Specialist-Expert",null,null,null,null,null,null,"Strategic Definition"]
[null,"N","Competence",null,null,null,null,null,null,null,null,null,"EQF Level"]
[null,"C2.S12","Develop a CDE (Common Data Environment) to exchange data through the building life cycle as well as through the supply chain"]
[null,"C3","Apply procurement management"]
[null,"C3.S3","List and collaborate with several stakeholders who participate in the sustainable project, distinguishing roles/needs and involving them in the information delivery plan preparation and management"]

{"sheet":"USE1","index":11,"n_rows":21,"n_cols":20,"rows_kept":21,"cut":false,"hidden":false,"merged":[[34,2,34,11],[35,2,35,11],[32,2,32,11],[22,2,22,11],[23,2,23,11],[24,2,24,11],[33,2,33,11],[26,2,26,11],[27,2,27,11],[25,2,25,11],[28,2,28,11],[29,2,29,11],[30,2,30,11],[31,2,31,11],[20,2,20,11],[18,2,18,11],[17,2,17,11],[19,2,19,19],[16,2,16,19],[21,2,21,11],[13,2,13,11],[2,0,3,0],[2,1,3,19],[4,1,4,7],[4,8,4,19],[5,2,5,11],[14,2,14,11],[15,2,15,11],[10,2,10,11],[11,2,11,11],[12,2,12,11],[5,12,5,19],[6,2,6,11],[7,2,7,11],[8,2,8,11],[9,2,9,11]]}
[]
[]
[null,"List of Competences"]
[]
[null,"BIM User",null,null,null,null,null,null,"Strategic Definition"]
[null,"N","Competence",null,null,null,null,null,null,null,null,null,"EQF Level"]
[null,"C0","Have basic BIM knowledge and skills",null,null,null,null,null,null,null,null,null,1,2,3,4,5,6,7,8]
[null,"C0.K1","BIM basic concepts, terminology, principles, strategies and its value proposition"]
[null,"C0.K2","Benefits and uses of BIM compared to traditional methods for improving energy efficiency of new or existing buildings"]
[null,"C0.K3","Project information development cycle: information specification, development, exchange and maintenance throughout all the building life cycle"]
[null,"C0.K4","Reasons for open and interoperable solutions to ensure collaboration among professionals of different disciplines"]
[null,"C0.K6","Relevance of maintenance for maintaing the foreseen energy performance"]
[null,"C0.S2","Read a Information Delivery Manual"]
[null,"C0.S3","Identify information requirements for his own role"]
[null,"C0.S5","Identify the EIR (Employer Information Requirements)"]
[null,"C0.S6","Identify and/or verify the stages of PIM (Project Information Management)"]
[null,"C2","Apply information management"]
[null,"C2.K2","Principle of data transferring among different software and/or data federating into an integrated design"]
[null,"C2.K4","Principle of information management in building sustainability and lean design"]
[null,"C3","Apply procurement management"]
[null,"C3.S3","List and collaborate with several stakeholders who participate in the sustainable project, distinguishing roles/needs and involving them in the information delivery plan preparation and management"]

{"sheet":"MAN2","index":12,"n_rows":55,"n_cols":20,"rows_kept":55,"cut":false,"hidden":false,"merged":[[56,2,56,11],[57,2,57,11],[41,2,41,11],[45,2,45,11],[20,2,20,11],[21,2,21,11],[24,2,24,11],[48,2,48,11],[55,2,55,11],[22,2,22,11],[68,2,68,11],[69,2,69,11],[65,2,65,11],[66,2,66,11],[67,2,67,11],[63,2,63,11],[64,2,64,11],[61,2,61,11],[59,2,59,11],[49,2,49,11],[51,2,51,11],[44,2,44,11],[2,0,3,0],[2,1,3,19],[4,1,4,7],[4,8,4,19],[5,2,5,11],[5,12,5,19],[23,2,23,11],[42,2,42,11],[43,2,43,11],[62,2,62,11],[32,2,32,11],[33,2,33,11],[34,2,34,11],[35,2,35,11],[40,2,40,11],[60,2,60,11],[6,2,6,11],[7,2,7,11],[8,2,8,11],[9,2,9,11],[10,2,10,11],[11,2,11,11],[53,2,53,19],[12,2,12,11],[58,2,58,11],[13,2,13,11],[14,2,14,11],[15,2,15,11],[16,2,16,11],[17,2,17,11],[18,2,18,11],[54,2,54,11],[26,2,26,11],[27,2,27,11],[28,2,28,11],[29,2,29,11],[30,2,30,11],[31,2,31,11],[50,2,50,19],[52,2,52,11],[47,2,47,19],[46,2,46,11],[39,2,39,11],[39,12,39,19],[25,2,25,19],[19,2,19,19],[36,0,37,0],[36,1,37,19],[38,1,38,7],[38,8,38,19]]}
[]
[]
[null,"List of Competences"]
[]
[null,"BIM Manager",null,null,null,null,null,null,"Preparation and Brief"]
[null,"N","Competence",null,null,null,null,null,null,null,null,null,"EQF Level"]
[null,"C0","Have basic BIM knowledge and skills",null,null,null,null,null,null,null,null,null,1,2,3,4,5,6,7,8]
[null,"C0.K1","BIM basic concepts, terminology, principles, strategies and its value proposition"]
[null,"C0.K2","Benefits and uses of BIM compared to traditional methods for improving energy efficiency of new or existing buildings"]
[null,"C0.K3","Project information development cycle: information specification, development, exchange and maintenance throughout all the building life cycle"]
[null,"C0.K4","Reasons for open and interoperable solutions to ensure collaboration among professionals of different disciplines"]
[null,"C0.K5","Methodology to identify, plan, develop and evaluate organization's BIM implementation capabilities and BIM uses"]
[null,"C0.K6","Relevance of maintenance for maintaing the foreseen energy performance"]
[null,"C0.S1","Read a BIM Execution Plan (BEP)"]
[null,"C0.S2","Read a Information Delivery Manual"]
[null,"C0.S3","Identify information requirements for his own role"]
[null,"C0.S4","Identify the format to read information and transfer information within the supply chain"]
[null,"C0.S5","Identify the EIR (Employer Information Requirements)"]
[null,"C0.S6","Identify and/or verify the stages of PIM (Project Information Management)"]
[null,"C1","Understand BIM tools"]
[null,"C1.K1","Principle of economic subjects for the cost estimation and evaluation of energy refurbishment"]
[null,"C1.S1","Specialised skills to incorporate information into BIM Model, evaluating openBIM software"]
[null,"C1.S2","Stay up to date on BIM trends, current developments and new directions of BIM technologies"]
[null,"C1.S3","Decrease the life cycle cost of the building using methods described in ISO 15686-5"]
[null,"C1.S4","Evaluate and compare different plans and related Return of Investments using methods described in ISO 15686-5"]
[null,"C2","Apply information management"]
[]
[]
[]
[]
[]
[]
[]
[]
[]
[]
[null,"List of Competences"]
[]
[null,"BIM Manager",null,null,null,null,null,null,"Preparation and Brief"]
[null,"N","Competence",null,null,null,null,null,null,null,null,null,"EQF Level"]
[null,"C2.K1","Principle of data mining, data base and back up in the CDE (Common Data Environment)"]
[null,"C2.K2","Principle of data transferring among different software and/or data federating into an integrated design"]
[null,"C2.K3","Principle of data security and administrative law in the archiving of data in a CDE (Common Data Environment)      "]
[null,"C2.K4","Principle of information management in building sustainability and lean design"]
[null,"C2.S3","Archive the model ensuring that the information provided is kept intact and not manipulated for any future use"]
[null,"C2.S7","Identify requirements for the management of data in the CDE (Common Data Environment) for any professionals involved in the process"]
[null,"C2.S8","Transfer building information using BIM to facility managers and final users"]
[null,"C3","Apply procurement management"]
[null,"C3.K4","Strategies for training programs to increase energy efficiency with the support of BIM"]
[null,"C3.S3","List and collaborate with several stakeholders who participate in the sustainable project, distinguishing roles/needs and involving them in the information delivery plan preparation and management"]
[null,"C4","Use BIM technology"]
[null,"C4.K3","Principle of planning and scheduling for BEP (BIM Execution Plan)"]
[null,"C4.S2","Develop a BEP (BIM Execution Plan)"]
[null,"C5","Analyse the BIM Model"]
[null,"C5.K1","Principle of global environmental impact of different building products and technologies (RES use, insulation, HVAC systems and building automation systems)"]

{"sheet":"COO2","index":13,"n_rows":58,"n_cols":20,"rows_kept":58,"cut":false,"hidden":false,"merged":[[6,2,6,11],[7,2,7,11],[8,2,8,11],[44,2,44,11],[27,2,27,11],[36,0,37,0],[36,1,37,19],[45,2,45,11],[48,2,48,11],[33,2,33,11],[30,2,30,11],[42,2,42,11],[41,2,41,11],[43,2,43,11],[15,2,15,11],[10,2,10,11],[59,2,59,11],[58,2,58,11],[23,2,23,11],[24,2,24,11],[57,2,57,11],[56,2,56,11],[2,0,3,0],[2,1,3,19],[4,1,4,7],[4,8,4,19],[5,2,5,11],[5,12,5,19],[67,2,67,11],[68,2,68,11],[69,2,69,11],[65,2,65,11],[61,2,61,11],[62,2,62,11],[63,2,63,11],[64,2,64,11],[54,2,54,11],[46,2,46,19],[49,2,49,19],[55,2,55,19],[66,2,66,11],[60,2,60,11],[50,2,50,11],[51,2,51,11],[52,2,52,11],[53,2,53,11],[47,2,47,11],[39,2,39,11],[29,2,29,11],[31,2,31,11],[32,2,32,11],[28,2,28,11],[40,2,40,11],[34,2,34,11],[35,2,35,11],[16,2,16,11],[17,2,17,11],[18,2,18,11],[21,2,21,11],[38,1,38,7],[38,8,38,19],[26,2,26,11],[11,2,11,11],[12,2,12,11],[13,2,13,11],[14,2,14,11],[9,2,9,11],[39,12,39,19],[19,2,19,19],[22,2,22,19],[25,2,25,11],[20,2,20,11]]}
[]
[]
[null,"List of Competences"]
[]
[null,"BIM Coordinator",null,null,null,null,null,null,"Preparation and Brief"]
[null,"N","Competence",null,null,null,null,null,null,null,null,null,"EQF Level"]
[null,"C0","Have basic BIM knowledge and skills",null,null,null,null,null,null,null,null,null,1,2,3,4,5,6,7,8]
[null,"C0.K1","BIM basic concepts, terminology, principles, strategies and its value proposition"]
[null,"C0.K2","Benefits and uses of BIM compared to traditional methods for improving energy efficiency of new or existing buildings"]
[null,"C0.K3","Project information development cycle: information specification, development, exchange and maintenance throughout all the building life cycle"]
[null,"C0.K4","Reasons for open and interoperable solutions to ensure collaboration among professionals of different disciplines"]
[null,"C0.K5","Methodology to identify, plan, develop and evaluate organization's BIM implementation capabilities and BIM uses"]
[null,"C0.K6","Relevance of maintenance for maintaing the foreseen energy performance"]
[null,"C0.S1","Read a BIM Execution Plan (BEP)"]
[null,"C0.S2","Read a Information Delivery Manual"]
[null,"C0.S3","Identify information requirements for his own role"]
[null,"C0.S4","Identify the format to read information and transfer information within the supply chain"]
[null,"C0.S5","Identify the EIR (Employer Information Requirements)"]
[null,"C0.S6","Identify and/or verify the stages of PIM (Project Information Management)"]
[null,"C1","Understand BIM tools"]
[null,"C1.S1","Specialised skills to incorporate information into BIM Model, evaluating openBIM software"]
[null,"C1.S2","Stay up to date on BIM trends, current developments and new directions of BIM technologies"]
[null,"C2","Apply information management"]
[null,"C2.K1","Principle of data mining, data base and back up in the CDE (Common Data Environment)"]
[null,"C2.K2","Principle of data transferring among different software and/or data federating into an integrated design"]
[null,"C2.K3","Principle of data security and administrative law in the archiving of data in a CDE (Common Data Environment)      "]
[]
[]
[]
[]
[]
[]
[]
[]
[]
[]
[null,"List of Competences"]
[]
[null,"BIM Coordinator",null,null,null,null,null,null,"Preparation and Brief"]
[null,"N","Competence",null,null,null,null,null,null,null,null,null,"EQF Level"]
[null,"C2.K4","Principle of information management in building sustainability and lean design"]
[null,"C2.S2","Identify which graphic and/or non-graphic information are necessary for a better management of works and for define the completeness of the Information Delivery Plan in relation to energy performance"]
[null,"C2.S3","Archive the model ensuring that the information provided is kept intact and not manipulated for any future use"]
[null,"C2.S7","Identify requirements for the management of data in the CDE (Common Data Environment) for any professionals involved in the process"]
[null,"C2.S8","Transfer building information using BIM to facility managers and final users"]
[null,"C2.S12","Develop a CDE (Common Data Environment) to exchange data through the building life cycle as well as through the supply chain"]
[null,"C3","Apply procurement management"]
[null,"C3.K4","Strategies for training programs to increase energy efficiency with the support of BIM"]
[null,"C3.S3","List and collaborate with several stakeholders who participate in the sustainable project, distinguishing roles/needs and involving them in the information delivery plan preparation and management"]
[null,"C4","Use BIM technology"]
[null,"C4.K1","Techniques and principles of integrated digital production and rendering"]
[null,"C4.K3","Principle of planning and scheduling for BEP (BIM Execution Plan)"]
[null,"C4.K4","Principles of interplays between all aspects of building design, building use and outdoor climate for dynamic evaluation"]
[null,"C4.S2","Develop a BEP (BIM Execution Plan)"]
[null,"C4.S10","Use 4D and 5D BIM technologies to evaluate time and cost"]
[null,"C5","Analyse the BIM Model"]
[null,"C5.K1","Principle of global environmental impact of different building products and technologies (RES use, insulation, HVAC systems and building automation systems)"]
[null,"C5.S2","Apply Quality Management and coordinate team members of different disciplines"]

{"sheet":"MOD2","index":14,"n_rows":49,"n_cols":20,"rows_kept":49,"cut":false,"hidden":false,"merged":[[46,2,46,11],[67,2,67,11],[68,2,68,11],[69,2,69,11],[66,2,66,11],[48,2,48,11],[49,2,49,11],[54,2,54,11],[50,2,50,11],[55,2,55,11],[56,2,56,11],[57,2,57,11],[51,2,51,11],[52,2,52,11],[53,2,53,11],[62,2,62,11],[63,2,63,11],[64,2,64,11],[65,2,65,11],[58,2,58,11],[59,2,59,11],[60,2,60,11],[61,2,61,11],[41,2,41,11],[42,2,42,11],[47,2,47,19],[45,2,45,11],[29,2,29,11],[30,2,30,11],[31,2,31,11],[32,2,32,11],[33,2,33,11],[34,2,34,11],[44,2,44,19],[2,0,3,0],[2,1,3,19],[4,1,4,7],[4,8,4,19],[5,2,5,11],[5,12,5,19],[35,2,35,11],[40,2,40,11],[43,2,43,11],[16,2,16,11],[6,2,6,11],[7,2,7,11],[8,2,8,11],[9,2,9,11],[10,2,10,11],[17,2,17,11],[18,2,18,11],[25,2,25,11],[26,2,26,11],[19,2,19,19],[11,2,11,11],[12,2,12,11],[13,2,13,11],[14,2,14,11],[15,2,15,11],[27,2,27,11],[28,2,28,11],[20,2,20,11],[21,2,21,11],[22,2,22,11],[24,2,24,11],[23,2,23,19],[36,0,37,0],[36,1,37,19],[38,1,38,7],[38,8,38,19],[39,2,39,11],[39,12,39,19]]}
[]
[]
[null,"List of Competences"]
[]
[null,"BIM Model Evaluator",null,null,null,null,null,null,"Preparation and Brief"]
[null,"N","Competence",null,null,null,null,null,null,null,null,null,"EQF Level"]
[null,"C0","Have basic BIM knowledge and skills",null,null,null,null,null,null,null,null,null,1,2,3,4,5,6,7,8]
[null,"C0.K1","BIM basic concepts, terminology, principles, strategies and its value proposition"]
[null,"C0.K2","Benefits and uses of BIM compared to traditional methods for improving energy efficiency of new or existing buildings"]
[null,"C0.K3","Project information development cycle: information specification, development, exchange and maintenance throughout all the building life cycle"]
[null,"C0.K4","Reasons for open and interoperable solutions to ensure collaboration among professionals of different disciplines"]
[null,"C0.K5","Methodology to identify, plan, develop and evaluate organization's BIM implementation capabilities and BIM uses"]
[null,"C0.K6","Relevance of maintenance for maintaing the foreseen energy performance"]
[null,"C0.S1","Read a BIM Execution Plan (BEP)"]
[null,"C0.S2","Read a Information Delivery Manual"]
[null,"C0.S3","Identify information requirements for his own role"]
[null,"C0.S4","Identify the format to read information and transfer information within the supply chain"]
[null,"C0.S5","Identify the EIR (Employer Information Requirements)"]
[null,"C0.S6","Identify and/or verify the stages of PIM (Project Information Management)"]
[null,"C1","Understand BIM tools"]
[null,"C1.K1","Principle of economic subjects for the cost estimation and evaluation of energy refurbishment"]
[null,"C1.S2","Stay up to date on BIM trends, current developments and new directions of BIM technologies"]
[null,"C1.S4","Evaluate and compare different plans and related Return of Investments using methods described in ISO 15686-5"]
[null,"C2","Apply information management"]
[null,"C2.K1","Principle of data mining, data base and back up in the CDE (Common Data Environment)"]
[null,"C2.K3","Principle of data security and administrative law in the archiving of data in a CDE (Common Data Environment)      "]
[]
[]
[]
[]
[]
[]
[]
[]
[]
[]
[null,"List of Competences"]
[]
[null,"BIM Model Evaluator",null,null,null,null,null,null,"Preparation and Brief"]
[null,"N","Competence",null,null,null,null,null,null,null,null,null,"EQF Level"]
[null,"C2.K4","Principle of information management in building sustainability and lean design"]
[null,"C2.S2","Identify which graphic and/or non-graphic information are necessary for a better management of works and for define the completeness of the Information Delivery Plan in relation to energy performance"]
[null,"C2.S3","Archive the model ensuring that the information provided is kept intact and not manipulated for any future use"]
[null,"C2.S7","Identify requirements for the management of data in the CDE (Common Data Environment) for any professionals involved in the process"]
[null,"C4","Use BIM technology"]
[null,"C4.K3","Principle of planning and scheduling for BEP (BIM Execution Plan)"]
[null,"C4.S8","Produce a visualization design in order to report back to costumers, users and reviewers"]
[null,"C5","Analyse the BIM Model"]
[null,"C5.K1","Principle of global environmental impact of different building products and technologies (RES use, insulation, HVAC systems and building automation systems)"]

{"sheet":"SPE2","index":15,"n_rows":51,"n_cols":20,"rows_kept":51,"cut":false,"hidden":false,"merged":[[67,2,67,11],[65,2,65,11],[59,2,59,11],[60,2,60,11],[50,2,50,11],[45,2,45,11],[69,2,69,11],[66,2,66,11],[62,2,62,11],[63,2,63,11],[64,2,64,11],[48,2,48,11],[52,2,52,11],[49,2,49,19],[46,2,46,11],[44,2,44,19],[38,8,38,19],[39,2,39,11],[39,12,39,19],[68,2,68,11],[58,2,58,11],[61,2,61,11],[56,2,56,11],[47,2,47,11],[43,2,43,11],[5,12,5,19],[40,2,40,11],[23,2,23,11],[25,2,25,11],[41,2,41,11],[57,2,57,11],[51,2,51,11],[53,2,53,11],[54,2,54,11],[55,2,55,11],[26,2,26,11],[27,2,27,11],[28,2,28,11],[30,2,30,11],[22,2,22,19],[2,0,3,0],[2,1,3,19],[4,1,4,7],[4,8,4,19],[5,2,5,11],[6,2,6,11],[7,2,7,11],[8,2,8,11],[9,2,9,11],[10,2,10,11],[20,2,20,11],[19,2,19,19],[36,0,37,0],[36,1,37,19],[15,2,15,11],[16,2,16,11],[17,2,17,11],[18,2,18,11],[32,2,32,11],[33,2,33,11],[34,2,34,11],[21,2,21,11],[42,2,42,19],[24,2,24,11],[29,2,29,11],[31,2,31,11],[38,1,38,7],[11,2,11,11],[12,2,12,11],[13,2,13,11],[14,2,14,11],[35,2,35,11]]}
[]
[]
[null,"List of Competences"]
[]
[null,"BIM Specialist-Expert",null,null,null,null,null,null,"Preparation and Brief"]
[null,"N","Competence",null,null,null,null,null,null,null,null,null,"EQF Level"]
[null,"C0","Have basic BIM knowledge and skills",null,null,null,null,null,null,null,null,null,1,2,3,4,5,6,7,8]
[null,"C0.K1","BIM basic concepts, terminology, principles, strategies and its value proposition"]
[null,"C0.K2","Benefits and uses of BIM compared to traditional methods for improving energy efficiency of new or existing buildings"]
[null,"C0.K3","Project information development cycle: information specification, development, exchange and maintenance throughout all the building life cycle"]
[null,"C0.K4","Reasons for open and interoperable solutions to ensure collaboration among professionals of different disciplines"]
[null,"C0.K5","Methodology to identify, plan, develop and evaluate organization's BIM implementation capabilities and BIM uses"]
[null,"C0.K6","Relevance of maintenance for maintaing the foreseen energy performance"]
[null,"C0.S1","Read a BIM Execution Plan (BEP)"]
[null,"C0.S2","Read a Information Delivery Manual"]
[null,"C0.S3","Identify information requirements for his own role"]
[null,"C0.S4","Identify the format to read information and transfer information within the supply chain"]
[null,"C0.S5","Identify the EIR (Employer Information Requirements)"]
[null,"C0.S6","Identify and/or verify the stages of PIM (Project Information Management)"]
[null,"C1","Understand BIM tools"]
[null,"C1.S1","Specialised skills to incorporate information into BIM Model, evaluating openBIM software"]
[null,"C1.S2","Stay up to date on BIM trends, current developments and new directions of BIM technologies"]
[null,"C2","Apply information management"]
[null,"C2.K2","Principle of data transferring among different software and/or data federating into an integrated design"]
[null,"C2.K3","Principle of data security and administrative law in the archiving of data in a CDE (Common Data Environment)      "]
[null,"C2.K4","Principle of information management in building sustainability and lean design"]
[]
[]
[]
[]
[]
[]
[]
[]
[]
[]
[null,"List of Competences"]
[]
[null,"BIM Specialist-Expert",null,null,null,null,null,null,"Preparation and Brief"]
[null,"N","Competence",null,null,null,null,null,null,null,null,null,"EQF Level"]
[null,"C2.S2","Identify which graphic and/or non-graphic information are necessary for a better management of works and for define the completeness of the Information Delivery Plan in relation to energy performance"]
[null,"C2.S12","Develop a CDE (Common Data Environment) to exchange data through the building life cycle as well as through the supply chain"]
[null,"C3","Apply procurement management"]
[null,"C3.S3","List and collaborate with several stakeholders who participate in the sustainable project, distinguishing roles/needs and involving them in the information delivery plan preparation and management"]
[null,"C4","Use BIM technology"]
[null,"C4.K1","Techniques and principles of integrated digital production and rendering"]
[null,"C4.K4","Principles of interplays between all aspects of building design, building use and outdoor climate for dynamic evaluation"]
[null,"C4.S4","Use laser scanning in order to produce a point of cloud of existing buildings, comparing and evaluating facilities and related systems"]
[null,"C4.S10","Use 4D and 5D BIM technologies to evaluate time and cost"]
[null,"C5","Analyse the BIM Model"]
[null,"C5.K1","Principle of global environmental impact of different building products and technologies (RES use, insulation, HVAC systems and building automation systems)"]

{"sheet":"USE2","index":16,"n_rows":21,"n_cols":20,"rows_kept":21,"cut":false,"hidden":false,"merged":[[35,2,35,11],[5,2,5,11],[28,2,28,11],[29,2,29,11],[30,2,30,11],[31,2,31,11],[32,2,32,11],[24,2,24,11],[25,2,25,11],[26,2,26,11],[34,2,34,11],[27,2,27,11],[21,2,21,11],[22,2,22,11],[23,2,23,11],[6,2,6,11],[8,2,8,11],[9,2,9,11],[10,2,10,11],[13,2,13,11],[17,2,17,11],[18,2,18,11],[20,2,20,11],[19,2,19,19],[15,2,15,11],[33,2,33,11],[2,0,3,0],[2,1,3,19],[4,1,4,7],[4,8,4,19],[5,12,5,19],[16,2,16,19],[14,2,14,11],[11,2,11,11],[12,2,12,11],[7,2,7,11]]}
[]
[]
[null,"List of Competences"]
[]
[null,"BIM User",null,null,null,null,null,null,"Preparation and Brief"]
[null,"N","Competence",null,null,null,null,null,null,null,null,null,"EQF Level"]
[null,"C0","Have basic BIM knowledge and skills",null,null,null,null,null,null,null,null,null,1,2,3,4,5,6,7,8]
[null,"C0.K1","BIM basic concepts, terminology, principles, strategies and its value proposition"]
[null,"C0.K2","Benefits and uses of BIM compared to traditional methods for improving energy efficiency of new or existing buildings"]
[null,"C0.K3","Project information development cycle: information specification, development, exchange and maintenance throughout all the building life cycle"]
[null,"C0.K4","Reasons for open and interoperable solutions to ensure collaboration among professionals of different disciplines"]
[null,"C0.K6","Relevance of maintenance for maintaing the foreseen energy performance"]
[null,"C0.S2","Read a Information Delivery Manual"]
[null,"C0.S3","Identify information requirements for his own role"]
[null,"C0.S5","Identify the EIR (Employer Information Requirements)"]
[null,"C0.S6","Identify and/or verify the stages of PIM (Project Information Management)"]
[null,"C2","Apply information management"]
[null,"C2.K2","Principle of data transferring among different software and/or data federating into an integrated design"]
[null,"C2.K4","Principle of information management in building sustainability and lean design"]
[null,"C3","Apply procurement management"]
[null,"C3.S3","List and collaborate with several stakeholders who participate in the sustainable project, distinguishing roles/needs and involving them in the information delivery plan preparation and management"]

{"sheet":"MAN3","index":17,"n_rows":55,"n_cols":20,"rows_kept":55,"cut":false,"hidden":false,"merged":[[66,2,66,11],[67,2,67,11],[28,2,28,11],[29,2,29,11],[30,2,30,11],[31,2,31,11],[64,2,64,11],[65,2,65,11],[62,2,62,11],[60,2,60,11],[61,2,61,11],[51,2,51,11],[6,2,6,11],[7,2,7,11],[32,2,32,11],[45,2,45,11],[46,2,46,11],[47,2,47,11],[33,2,33,11],[34,2,34,11],[2,0,3,0],[2,1,3,19],[4,1,4,7],[4,8,4,19],[5,2,5,11],[20,2,20,11],[15,2,15,11],[8,2,8,11],[9,2,9,11],[12,2,12,11],[13,2,13,11],[26,2,26,11],[36,0,37,0],[48,2,48,11],[21,2,21,11],[25,2,25,11],[40,2,40,11],[41,2,41,11],[43,2,43,11],[35,2,35,11],[38,8,38,19],[42,2,42,11],[69,2,69,11],[50,2,50,11],[27,2,27,11],[54,2,54,11],[59,2,59,11],[57,2,57,11],[58,2,58,11],[55,2,55,11],[56,2,56,11],[53,2,53,11],[68,2,68,11],[63,2,63,11],[5,12,5,19],[52,2,52,19],[49,2,49,19],[44,2,44,19],[22,2,22,19],[23,2,23,11],[19,2,19,19],[14,2,14,11],[39,12,39,19],[11,2,11,11],[16,2,16,11],[10,2,10,11],[17,2,17,11],[24,2,24,11],[39,2,39,11],[36,1,37,19],[38,1,38,7],[18,2,18,11]]}
[]
[]
[null,"List of Competences"]
[]
[null,"BIM Manager",null,null,null,null,null,null,"Concept Design"]
[null,"N","Competence",null,null,null,null,null,null,null,null,null,"EQF Level"]
[null,"C0","Have basic BIM knowledge and skills",null,null,null,null,null,null,null,null,null,1,2,3,4,5,6,7,8]
[null,"C0.K1","BIM basic concepts, terminology, principles, strategies and its value proposition"]
[null,"C0.K2","Benefits and uses of BIM compared to traditional methods for improving energy efficiency of new or existing buildings"]
[null,"C0.K3","Project information development cycle: information specification, development, exchange and maintenance throughout all the building life cycle"]
[null,"C0.K4","Reasons for open and interoperable solutions to ensure collaboration among professionals of different disciplines"]
[null,"C0.K5","Methodology to identify, plan, develop and evaluate organization's BIM implementation capabilities and BIM uses"]
[null,"C0.K6","Relevance of maintenance for maintaing the foreseen energy performance"]
[null,"C0.S1","Read a BIM Execution Plan (BEP)"]
[null,"C0.S2","Read a Information Delivery Manual"]
[null,"C0.S3","Identify information requirements for his own role"]
[null,"C0.S4","Identify the format to read information and transfer information within the supply chain"]
[null,"C0.S5","Identify the EIR (Employer Information Requirements)"]
[null,"C0.S6","Identify and/or verify the stages of PIM (Project Information Management)"]
[null,"C1","Understand BIM tools"]
[null,"C1.S1","Specialised skills to incorporate information into BIM Model, evaluating openBIM software"]
[null,"C1.S2","Stay up to date on BIM trends, current developments and new directions of BIM technologies"]
[null,"C2","Apply information management"]
[null,"C2.K1","Principle of data mining, data base and back up in the CDE (Common Data Environment)"]
[null,"C2.K2","Principle of data transferring among different software and/or data federating into an integrated design"]
[null,"C2.K3","Principle of data security and administrative law in the archiving of data in a CDE (Common Data Environment)      "]
[]
[]
[]
[]
[]
[]
[]
[]
[]
[]
[null,"List of Competences"]
[]
[null,"BIM Manager",null,null,null,null,null,null,"Concept Design"]
[null,"N","Competence",null,null,null,null,null,null,null,null,null,"EQF Level",null,null,"Level"]
[null,"C2.K4","Principle of information management in building sustainability and lean design"]
[null,"C2.S3","Archive the model ensuring that the information provided is kept intact and not manipulated for any future use"]
[null,"C2.S7","Identify requirements for the management of data in the CDE (Common Data Environment) for any professionals involved in the process"]
[null,"C2.S8","Transfer building information using BIM to facility managers and final users"]
[null,"C3","Apply procurement management"]
[null,"C3.K3","Legal and technical aspects on green procurement, state and rules for using public funding and international good practices of energy performance contracting"]
[null,"C3.K4","Strategies for training programs to increase energy efficiency with the support of BIM"]
[null,"C3.S3","List and collaborate with several stakeholders who participate in the sustainable project, distinguishing roles/needs and involving them in the information delivery plan preparation and management"]
[null,"C3.S5","Negotiate and take necessary legal steps if the contractual requirements were not met"]
[null,"C4","Use BIM technology"]
[null,"C4.K3","Principle of planning and scheduling for BEP (BIM Execution Plan)"]
[null,"C4.S2","Develop a BEP (BIM Execution Plan)"]
[null,"C5","Analyse the BIM Model"]
[null,"C5.K1","Principle of global environmental impact of different building products and technologies (RES use, insulation, HVAC systems and building automation systems)"]
[null,"C5.K3","Principle of integrated design and data transferring, with particular knowledge of IFC (Industry Foundation Classes) structure using international standard"]

{"sheet":"COO3","index":18,"n_rows":77,"n_cols":20,"rows_kept":77,"cut":false,"hidden":false,"merged":[[70,0,71,0],[70,1,71,19],[64,2,64,11],[65,2,65,11],[66,2,66,11],[67,2,67,11],[68,2,68,11],[69,2,69,11],[2,0,3,0],[2,1,3,19],[4,1,4,7],[4,8,4,19],[5,2,5,11],[59,2,59,19],[11,2,11,11],[12,2,12,11],[13,2,13,11],[14,2,14,11],[73,12,73,19],[23,2,23,11],[24,2,24,11],[48,2,48,11],[49,2,49,11],[40,2,40,11],[47,2,47,11],[57,2,57,11],[41,2,41,11],[42,2,42,11],[93,2,93,11],[94,2,94,11],[95,2,95,11],[87,2,87,11],[85,2,85,11],[78,2,78,11],[83,2,83,11],[84,2,84,11],[89,2,89,11],[90,2,90,11],[102,2,102,11],[103,2,103,11],[91,2,91,11],[96,2,96,11],[97,2,97,11],[98,2,98,11],[99,2,99,11],[100,2,100,11],[92,2,92,11],[101,2,101,11],[74,2,74,11],[75,2,75,11],[76,2,76,11],[77,2,77,11],[86,2,86,11],[79,2,79,11],[82,2,82,11],[81,2,81,11],[80,2,80,11],[6,2,6,11],[88,2,88,11],[52,2,52,11],[60,2,60,11],[61,2,61,11],[62,2,62,11],[7,2,7,11],[8,2,8,11],[9,2,9,11],[10,2,10,11],[36,0,37,0],[36,1,37,19],[27,2,27,11],[28,2,28,11],[29,2,29,11],[30,2,30,11],[15,2,15,11],[16,2,16,11],[17,2,17,11],[18,2,18,11],[25,2,25,11],[26,2,26,11],[73,2,73,11],[55,2,55,11],[58,2,58,11],[56,2,56,11],[20,2,20,11],[21,2,21,11],[31,2,31,11],[33,2,33,11],[34,2,34,11],[35,2,35,11],[63,2,63,11],[72,1,72,7],[72,8,72,19],[53,2,53,11],[54,2,54,11],[43,2,43,11],[44,2,44,11],[45,2,45,11],[51,2,51,11],[5,12,5,19],[39,12,39,19],[50,2,50,19],[46,2,46,19],[22,2,22,19],[19,2,19,19],[38,1,38,7],[38,8,38,19],[39,2,39,11],[32,2,32,11]]}
[]
[]
[null,"List of Competences"]
[]
[null,"BIM Coordinator",null,null,null,null,null,null,"Concept Design"]
[null,"N","Competence",null,null,null,null,null,null,null,null,null,"EQF Level"]
[null,"C0","Have basic BIM knowledge and skills",null,null,null,null,null,null,null,null,null,1,2,3,4,5,6,7,8]
[null,"C0.K1","BIM basic concepts, terminology, principles, strategies and its value proposition"]
[null,"C0.K2","Benefits and uses of BIM compared to traditional methods for improving energy efficiency of new or existing buildings"]
[null,"C0.K3","Project information development cycle: information specification, development, exchange and maintenance throughout all the building life cycle"]
[null,"C0.K4","Reasons for open and interoperable solutions to ensure collaboration among professionals of different disciplines"]
[null,"C0.K5","Methodology to identify, plan, develop and evaluate organization's BIM implementation capabilities and BIM uses"]
[null,"C0.K6","Relevance of maintenance for maintaing the foreseen energy performance"]
[null,"C0.S1","Read a BIM Execution Plan (BEP)"]
[null,"C0.S2","Read a Information Delivery Manual"]
[null,"C0.S3","Identify information requirements for his own role"]
[null,"C0.S4","Identify the format to read information and transfer information within the supply chain"]
[null,"C0.S5","Identify the EIR (Employer Information Requirements)"]
[null,"C0.S6","Identify and/or verify the stages of PIM (Project Information Management)"]
[null,"C1","Understand BIM tools"]
[null,"C1.S1","Specialised skills to incorporate information into BIM Model, evaluating openBIM software"]
[null,"C1.S2","Stay up to date on BIM trends, current developments and new directions of BIM technologies"]
[null,"C2","Apply information management"]
[null,"C2.K1","Principle of data mining, data base and back up in the CDE (Common Data Environment)"]
[null,"C2.K2","Principle of data transferring among different software and/or data federating into an integrated design"]
[null,"C2.K3","Principle of data security and administrative law in the archiving of data in a CDE (Common Data Environment)      "]
[]
[]
[]
[]
[]
[]
[]
[]
[]
[]
[null,"List of Competences"]
[]
[null,"BIM Coordinator",null,null,null,null,null,null,"Concept Design"]
[null,"N","Competence",null,null,null,null,null,null,null,null,null,"EQF Level"]
[null,"C2.K4","Principle of information management in building sustainability and lean design"]
[null,"C2.S2","Identify which graphic and/or non-graphic information are necessary for a better management of works and for define the completeness of the Information Delivery Plan in relation to energy performance"]
[null,"C2.S3","Archive the model ensuring that the information provided is kept intact and not manipulated for any future use"]
[null,"C2.S7","Identify requirements for the management of data in the CDE (Common Data Environment) for any professionals involved in the process"]
[null,"C2.S8","Transfer building information using BIM to facility managers and final users"]
[null,"C2.S12","Develop a CDE (Common Data Environment) to exchange data through the building life cycle as well as through the supply chain"]
[null,"C3","Apply procurement management"]
[null,"C3.K3","Legal and technical aspects on green procurement, state and rules for using public funding and international good practices of energy performance contracting"]
[null,"C3.K4","Strategies for training programs to increase energy efficiency with the support of BIM"]
[null,"C3.S3","List and collaborate with several stakeholders who participate in the sustainable project, distinguishing roles/needs and involving them in the information delivery plan preparation and management"]
[null,"C4","Use BIM technology"]
[null,"C4.K1","Techniques and principles of integrated digital production and rendering"]
[null,"C4.K3","Principle of planning and scheduling for BEP (BIM Execution Plan)"]
[null,"C4.K4","Principles of interplays between all aspects of building design, building use and outdoor climate for dynamic evaluation"]
[null,"C4.K5","Principles and systems of sustainable buildings, including renewable energy production"]
[null,"C4.K6","Design techniques for different scenarios for new resilient buildings to future climate changes and for the refurbishment of existing buildings"]
[null,"C4.K7","Techniques of automatic code checking and management of software e-permit"]
[null,"C4.S1","Produce a digital 3D model of building / any BIM objects needed for the library in the Common Data Environment"]
[null,"C4.S2","Develop a BEP (BIM Execution Plan)"]
[null,"C5","Analyse the BIM Model"]
[]
[]
[]
[]
[]
[]
[]
[]
[]
[]
[null,"List of Competences"]
[]
[null,"BIM Coordinator",null,null,null,null,null,null,"Concept Design"]
[null,"N","Competence",null,null,null,null,null,null,null,null,null,"EQF Level"]
[null,"C5.K1","Principle of global environmental impact of different building products and technologies (RES use, insulation, HVAC systems and building automation systems)"]
[null,"C5.K3","Principle of integrated design and data transferring, with particular knowledge of IFC (Industry Foundation Classes) structure using international standard"]
[null,"C5.S4","Validate BIM Model"]

{"sheet":"MOD3","index":19,"n_rows":53,"n_cols":20,"rows_kept":53,"cut":false,"hidden":false,"merged":[[69,2,69,11],[46,2,46,11],[50,2,50,11],[60,2,60,11],[58,2,58,11],[59,2,59,11],[63,2,63,11],[56,2,56,11],[65,2,65,11],[66,2,66,11],[61,2,61,11],[62,2,62,11],[67,2,67,11],[68,2,68,11],[57,2,57,11],[51,2,51,11],[52,2,52,11],[55,2,55,11],[53,2,53,11],[64,2,64,11],[40,2,40,11],[41,2,41,11],[54,2,54,11],[43,2,43,11],[48,2,48,11],[32,2,32,11],[33,2,33,11],[2,0,3,0],[2,1,3,19],[4,1,4,7],[4,8,4,19],[24,2,24,11],[25,2,25,11],[10,2,10,11],[11,2,11,11],[5,2,5,11],[12,2,12,11],[13,2,13,11],[14,2,14,11],[15,2,15,11],[16,2,16,11],[6,2,6,11],[7,2,7,11],[8,2,8,11],[9,2,9,11],[17,2,17,11],[18,2,18,11],[22,2,22,11],[34,2,34,11],[35,2,35,11],[39,2,39,11],[31,2,31,11],[36,0,37,0],[36,1,37,19],[38,1,38,7],[38,8,38,19],[20,2,20,11],[23,2,23,11],[26,2,26,11],[27,2,27,11],[28,2,28,11],[29,2,29,11],[5,12,5,19],[21,2,21,19],[19,2,19,19],[42,2,42,19],[45,2,45,19],[49,2,49,19],[39,12,39,19],[44,2,44,11],[47,2,47,11],[30,2,30,11]]}
[]
[]
[null,"List of Competences"]
[]
[null,"BIM Model Evaluator",null,null,null,null,null,null,"Concept Design"]
[null,"N","Competence",null,null,null,null,null,null,null,null,null,"EQF Level"]
[null,"C0","Have basic BIM knowledge and skills",null,null,null,null,null,null,null,null,null,1,2,3,4,5,6,7,8]
[null,"C0.K1","BIM basic concepts, terminology, principles, strategies and its value proposition"]
[null,"C0.K2","Benefits and uses of BIM compared to traditional methods for improving energy efficiency of new or existing buildings"]
[null,"C0.K3","Project information development cycle: information specification, development, exchange and maintenance throughout all the building life cycle"]
[null,"C0.K4","Reasons for open and interoperable solutions to ensure collaboration among professionals of different disciplines"]
[null,"C0.K5","Methodology to identify, plan, develop and evaluate organization's BIM implementation capabilities and BIM uses"]
[null,"C0.K6","Relevance of maintenance for maintaing the foreseen energy performance"]
[null,"C0.S1","Read a BIM Execution Plan (BEP)"]
[null,"C0.S2","Read a Information Delivery Manual"]
[null,"C0.S3","Identify information requirements for his own role"]
[null,"C0.S4","Identify the format to read information and transfer information within the supply chain"]
[null,"C0.S5","Identify the EIR (Employer Information Requirements)"]
[null,"C0.S6","Identify and/or verify the stages of PIM (Project Information Management)"]
[null,"C1","Understand BIM tools"]
[null,"C1.S2","Stay up to date on BIM trends, current developments and new directions of BIM technologies"]
[null,"C2","Apply information management"]
[null,"C2.K1","Principle of data mining, data base and back up in the CDE (Common Data Environment)"]
[null,"C2.K3","Principle of data security and administrative law in the archiving of data in a CDE (Common Data Environment)      "]
[null,"C2.K4","Principle of information management in building sustainability and lean design"]
[null,"C2.S2","Identify which graphic and/or non-graphic information are necessary for a better management of works and for define the completeness of the Information Delivery Plan in relation to energy performance"]
[]
[]
[]
[]
[]
[]
[]
[]
[]
[]
[null,"List of Competences"]
[]
[null,"BIM Model Evaluator",null,null,null,null,null,null,"Concept Design"]
[null,"N","Competence",null,null,null,null,null,null,null,null,null,"EQF Level"]
[null,"C2.S3","Archive the model ensuring that the information provided is kept intact and not manipulated for any future use"]
[null,"C2.S7","Identify requirements for the management of data in the CDE (Common Data Environment) for any professionals involved in the process"]
[null,"C3","Apply procurement management"]
[null,"C3.K3","Legal and technical aspects on green procurement, state and rules for using public funding and international good practices of energy performance contracting"]
[null,"C3.S5","Define building environmental impact as part of the contract"]
[null,"C4","Use BIM technology"]
[null,"C4.K3","Principle of planning and scheduling for BEP (BIM Execution Plan)"]
[null,"C4.K7","Techniques of automatic code checking and management of software e-permit"]
[null,"C4.S8","Produce a visualization design in order to report back to costumers, users and reviewers"]
[null,"C5","Analyse the BIM Model"]
[null,"C5.K1","Principle of global environmental impact of different building products and technologies (RES use, insulation, HVAC systems and building automation systems)"]
[null,"C5.K3","Principle of integrated design and data transferring, with particular knowledge of IFC (Industry Foundation Classes) structure using international standard"]
[null,"C5.S4","Validate BIM Model"]

{"sheet":"SPE3","index":20,"n_rows":57,"n_cols":20,"rows_kept":57,"cut":false,"hidden":false,"merged":[[67,2,67,11],[54,2,54,11],[47,2,47,11],[50,2,50,11],[64,2,64,11],[65,2,65,11],[66,2,66,11],[59,2,59,11],[56,2,56,11],[44,2,44,11],[34,2,34,11],[35,2,35,11],[57,2,57,11],[43,2,43,11],[49,2,49,11],[46,2,46,11],[69,2,69,11],[62,2,62,11],[63,2,63,11],[48,2,48,11],[51,2,51,11],[52,2,52,11],[55,2,55,11],[58,2,58,11],[60,2,60,11],[61,2,61,11],[68,2,68,11],[25,2,25,11],[40,2,40,11],[41,2,41,11],[26,2,26,11],[38,1,38,7],[38,8,38,19],[39,2,39,11],[32,2,32,11],[33,2,33,11],[2,0,3,0],[2,1,3,19],[4,1,4,7],[4,8,4,19],[5,2,5,11],[27,2,27,11],[20,2,20,11],[21,2,21,11],[6,2,6,11],[7,2,7,11],[8,2,8,11],[9,2,9,11],[10,2,10,11],[39,12,39,19],[28,2,28,11],[29,2,29,11],[31,2,31,11],[30,2,30,11],[36,0,37,0],[36,1,37,19],[11,2,11,11],[12,2,12,11],[13,2,13,11],[14,2,14,11],[15,2,15,11],[16,2,16,11],[5,12,5,19],[53,2,53,19],[45,2,45,19],[42,2,42,19],[19,2,19,19],[22,2,22,19],[17,2,17,11],[18,2,18,11],[24,2,24,11],[23,2,23,11]]}
[]
[]
[null,"List of Competences"]
[]
[null,"BIM Specialist-Expert",null,null,null,null,null,null,"Concept Design"]
[null,"N","Competence",null,null,null,null,null,null,null,null,null,"EQF Level"]
[null,"C0","Have basic BIM knowledge and skills",null,null,null,null,null,null,null,null,null,1,2,3,4,5,6,7,8]
[null,"C0.K1","BIM basic concepts, terminology, principles, strategies and its value proposition"]
[null,"C0.K2","Benefits and uses of BIM compared to traditional methods for improving energy efficiency of new or existing buildings"]
[null,"C0.K3","Project information development cycle: information specification, development, exchange and maintenance throughout all the building life cycle"]
[null,"C0.K4","Reasons for open and interoperable solutions to ensure collaboration among professionals of different disciplines"]
[null,"C0.K5","Methodology to identify, plan, develop and evaluate organization's BIM implementation capabilities and BIM uses"]
[null,"C0.K6","Relevance of maintenance for maintaing the foreseen energy performance"]
[null,"C0.S1","Read a BIM Execution Plan (BEP)"]
[null,"C0.S2","Read a Information Delivery Manual"]
[null,"C0.S3","Identify information requirements for his own role"]
[null,"C0.S4","Identify the format to read information and transfer information within the supply chain"]
[null,"C0.S5","Identify the EIR (Employer Information Requirements)"]
[null,"C0.S6","Identify and/or verify the stages of PIM (Project Information Management)"]
[null,"C1","Understand BIM tools"]
[null,"C1.S1","Specialised skills to incorporate information into BIM Model, evaluating openBIM software"]
[null,"C1.S2","Stay up to date on BIM trends, current developments and new directions of BIM technologies"]
[null,"C2","Apply information management"]
[null,"C2.K2","Principle of data transferring among different software and/or data federating into an integrated design"]
[null,"C2.K3","Principle of data security and administrative law in the archiving of data in a CDE (Common Data Environment)      "]
[null,"C2.K4","Principle of information management in building sustainability and lean design"]
[]
[]
[]
[]
[]
[]
[]
[]
[]
[]
[null,"List of Competences"]
[]
[null,"BIM Specialist-Expert",null,null,null,null,null,null,"Concept Design"]
[null,"N","Competence",null,null,null,null,null,null,null,null,null,"EQF Level"]
[null,"C2.S2","Identify which graphic and/or non-graphic information are necessary for a better management of works and for define the completeness of the Information Delivery Plan in relation to energy performance"]
[null,"C2.S12","Develop a CDE (Common Data Environment) to exchange data through the building life cycle as well as through the supply chain"]
[null,"C3","Apply procurement management"]
[null,"C3.K3","Legal and technical aspects on green procurement, state and rules for using public funding and international good practices of energy performance contracting"]
[null,"C3.S3","List and collaborate with several stakeholders who participate in the sustainable project, distinguishing roles/needs and involving them in the information delivery plan preparation and management"]
[null,"C4","Use BIM technology"]
[null,"C4.K1","Techniques and principles of integrated digital production and rendering"]
[null,"C4.K4","Principles of interplays between all aspects of building design, building use and outdoor climate for dynamic evaluation"]
[null,"C4.K5","Principles and systems of sustainable buildings, including renewable energy production"]
[null,"C4.K6","Design techniques for different scenarios for new resilient buildings to future climate changes and for the refurbishment of existing buildings"]
[null,"C4.K7","Techniques of automatic code checking and management of software e-permit"]
[null,"C4.S1","Produce a digital 3D model of building / any BIM objects needed for the library in the Common Data Environment"]
[null,"C4.S4","Use laser scanning in order to produce a point of cloud of existing buildings, comparing and evaluating facilities and related systems"]
[null,"C5","Analyse the BIM Model"]
[null,"C5.K1","Principle of global environmental impact of different building products and technologies (RES use, insulation, HVAC systems and building automation systems)"]
[null,"C5.K3","Principle of integrated design and data transferring, with particular knowledge of IFC (Industry Foundation Classes) structure using international standard"]
[null,"C5.S4","Validate BIM Model"]

{"sheet":"USE3","index":21,"n_rows":25,"n_cols":20,"rows_kept":25,"cut":false,"hidden":false,"merged":[[33,2,33,11],[34,2,34,11],[35,2,35,11],[5,2,5,11],[28,2,28,11],[29,2,29,11],[30,2,30,11],[31,2,31,11],[32,2,32,11],[14,2,14,11],[26,2,26,11],[27,2,27,11],[25,2,25,11],[6,2,6,11],[20,2,20,11],[22,2,22,11],[24,2,24,11],[17,2,17,11],[18,2,18,11],[16,2,16,19],[2,0,3,0],[2,1,3,19],[4,1,4,7],[4,8,4,19],[11,2,11,11],[12,2,12,11],[5,12,5,19],[19,2,19,19],[23,2,23,19],[21,2,21,11],[7,2,7,11],[8,2,8,11],[9,2,9,11],[15,2,15,11],[10,2,10,11],[13,2,13,11]]}
[]
[]
[null,"List of Competences"]
[]
[null,"BIM User",null,null,null,null,null,null,"Concept Design"]
[null,"N","Competence",null,null,null,null,null,null,null,null,null,"EQF Level"]
[null,"C0","Have basic BIM knowledge and skills",null,null,null,null,null,null,null,null,null,1,2,3,4,5,6,7,8]
[null,"C0.K1","BIM basic concepts, terminology, principles, strategies and its value proposition"]
[null,"C0.K2","Benefits and uses of BIM compared to traditional methods for improving energy efficiency of new or existing buildings"]
[null,"C0.K3","Project information development cycle: information specification, development, exchange and maintenance throughout all the building life cycle"]
[null,"C0.K4","Reasons for open and interoperable solutions to ensure collaboration among professionals of different disciplines"]
[null,"C0.K6","Relevance of maintenance for maintaing the foreseen energy performance"]
[null,"C0.S2","Read a Information Delivery Manual"]
[null,"C0.S3","Identify information requirements for his own role"]
[null,"C0.S5","Identify the EIR (Employer Information Requirements)"]
[null,"C0.S6","Identify and/or verify the stages of PIM (Project Information Management)"]
[null,"C2","Apply information management"]
[null,"C2.K2","Principle of data transferring among different software and/or data federating into an integrated design"]
[null,"C2.K4","Principle of information management in building sustainability and lean design"]
[null,"C3","Apply procurement management"]
[null,"C3.K3","Legal and technical aspects on green procurement, state and rules for using public funding and international good practices of energy performance contracting"]
[null,"C3.S3","List and collaborate with several stakeholders who participate in the sustainable project, distinguishing roles/needs and involving them in the information delivery plan preparation and management"]
[null,"C3.S5","Define building environmental impact as part of the contract"]
[null,"C4","Use BIM technology"]
[null,"C4.K5","Principles and systems of sustainable buildings, including renewable energy production"]

{"sheet":"MAN4","index":22,"n_rows":78,"n_cols":20,"rows_kept":78,"cut":false,"hidden":false,"merged":[[32,2,32,11],[43,2,43,11],[45,2,45,11],[26,2,26,11],[27,2,27,11],[28,2,28,11],[29,2,29,11],[33,2,33,11],[34,2,34,11],[31,2,31,11],[25,2,25,11],[18,2,18,11],[48,2,48,11],[2,0,3,0],[2,1,3,19],[4,1,4,7],[4,8,4,19],[5,2,5,11],[38,8,38,19],[39,2,39,11],[13,2,13,11],[70,0,71,0],[40,2,40,11],[41,2,41,11],[44,2,44,11],[24,2,24,11],[42,2,42,11],[53,2,53,11],[35,2,35,11],[30,2,30,11],[54,2,54,11],[6,2,6,11],[7,2,7,11],[8,2,8,11],[9,2,9,11],[15,2,15,11],[16,2,16,11],[10,2,10,11],[11,2,11,11],[12,2,12,11],[36,0,37,0],[36,1,37,19],[38,1,38,7],[57,2,57,11],[14,2,14,11],[17,2,17,11],[20,2,20,11],[21,2,21,11],[50,2,50,11],[52,2,52,11],[91,2,91,11],[92,2,92,11],[93,2,93,11],[72,1,72,7],[51,2,51,11],[62,2,62,11],[63,2,63,11],[64,2,64,11],[58,2,58,11],[59,2,59,11],[89,2,89,11],[103,2,103,11],[95,2,95,11],[96,2,96,11],[97,2,97,11],[98,2,98,11],[99,2,99,11],[100,2,100,11],[101,2,101,11],[102,2,102,11],[77,2,77,11],[82,2,82,11],[75,2,75,19],[94,2,94,11],[84,2,84,11],[86,2,86,11],[87,2,87,11],[90,2,90,11],[88,2,88,11],[79,2,79,11],[85,2,85,11],[76,2,76,11],[69,2,69,11],[70,1,71,19],[83,2,83,11],[80,2,80,11],[81,2,81,11],[78,2,78,11],[74,2,74,11],[72,8,72,19],[73,2,73,11],[73,12,73,19],[60,2,60,11],[61,2,61,11],[65,2,65,11],[66,2,66,11],[67,2,67,11],[68,2,68,11],[5,12,5,19],[39,12,39,19],[56,2,56,19],[46,2,46,19],[22,2,22,19],[19,2,19,19],[47,2,47,11],[49,2,49,11],[55,2,55,11],[23,2,23,11]]}
[]
[]
[null,"List of Competences"]
[]
[null,"BIM Manager",null,null,null,null,null,null,"Developed Design"]
[null,"N","Competence",null,null,null,null,null,null,null,null,null,"EQF Level"]
[null,"C0","Have basic BIM knowledge and skills",null,null,null,null,null,null,null,null,null,1,2,3,4,5,6,7,8]
[null,"C0.K1","BIM basic concepts, terminology, principles, strategies and its value proposition"]
[null,"C0.K2","Benefits and uses of BIM compared to traditional methods for improving energy efficiency of new or existing buildings"]
[null,"C0.K3","Project information development cycle: information specification, development, exchange and maintenance throughout all the building life cycle"]
[null,"C0.K4","Reasons for open and interoperable solutions to ensure collaboration among professionals of different disciplines"]
[null,"C0.K5","Methodology to identify, plan, develop and evaluate organization's BIM implementation capabilities and BIM uses"]
[null,"C0.K6","Relevance of maintenance for maintaing the foreseen energy performance"]
[null,"C0.S1","Read a BIM Execution Plan (BEP)"]
[null,"C0.S2","Read a Information Delivery Manual"]
[null,"C0.S3","Identify information requirements for his own role"]
[null,"C0.S4","Identify the format to read information and transfer information within the supply chain"]
[null,"C0.S5","Identify the EIR (Employer Information Requirements)"]
[null,"C0.S6","Identify and/or verify the stages of PIM (Project Information Management)"]
[null,"C1","Understand BIM tools"]
[null,"C1.S1","Specialised skills to incorporate information into BIM Model, evaluating openBIM software"]
[null,"C1.S2","Stay up to date on BIM trends, current developments and new directions of BIM technologies"]
[null,"C2","Apply information management"]
[null,"C2.K1","Principle of data mining, data base and back up in the CDE (Common Data Environment)"]
[null,"C2.K2","Principle of data transferring among different software and/or data federating into an integrated design"]
[null,"C2.K3","Principle of data security and administrative law in the archiving of data in a CDE (Common Data Environment)      "]
[]
[]
[]
[]
[]
[]
[]
[]
[]
[]
[null,"List of Competences"]
[]
[null,"BIM Manager",null,null,null,null,null,null,"Developed Design"]
[null,"N","Competence",null,null,null,null,null,null,null,null,null,"EQF Level"]
[null,"C2.K4","Principle of information management in building sustainability and lean design"]
[null,"C2.S1","Manage and coordinate information related to energy performance"]
[null,"C2.S3","Archive the model ensuring that the information provided is kept intact and not manipulated for any future use"]
[null,"C2.S4","Evaluate the completeness of the maintenance plan to be used in EPC (Energy Performance Contracting)"]
[null,"C2.S7","Identify requirements for the management of data in the CDE (Common Data Environment) for any professionals involved in the process"]
[null,"C2.S8","Transfer building information using BIM to facility managers and final users"]
[null,"C3","Apply procurement management"]
[null,"C3.K1","Processes, methods and principles of decision-making on procuring services and suppliers"]
[null,"C3.K2","Processes, methods and principles of decision-making on materials and products"]
[null,"C3.K3","Legal and technical aspects on green procurement, state and rules for using public funding and international good practices of energy performance contracting"]
[null,"C3.K4","Strategies for training programs to increase energy efficiency with the support of BIM"]
[null,"C3.S1","Select or evaluate selected companies with experience in the technologies defined"]
[null,"C3.S2","Select products that fit specifications and demands on given quality aspects making financial calculation related to contracting phase"]
[null,"C3.S3","List and collaborate with several stakeholders who participate in the sustainable project, distinguishing roles/needs and involving them in the information delivery plan preparation and management"]
[null,"C3.S5","Negotiate and take necessary legal steps if the contractual requirements were not met"]
[null,"C3.S6","Include measureable Quality Analysis criteria as part of the contract"]
[null,"C4","Use BIM technology"]
[null,"C4.K2","Principle of integrated design and data transferring, with particular knowledge of IFC (Industry Foundation Classes) structure using international standard"]
[null,"C4.K3","Principle of planning and scheduling for BEP (BIM Execution Plan)"]
[null,"C4.K8","Principle of information maturity level representation of the model defining the methodology for BIM maturity level"]
[]
[]
[]
[]
[]
[]
[]
[]
[]
[]
[null,"List of Competences"]
[]
[null,"BIM Manager",null,null,null,null,null,null,"Developed Design"]
[null,"N","Competence",null,null,null,null,null,null,null,null,null,"EQF Level"]
[null,"C4.S2","Develop a BEP (BIM Execution Plan)"]
[null,"C5","Analyse the BIM Model"]
[null,"C5.K1","Principle of global environmental impact of different building products and technologies (RES use, insulation, HVAC systems and building automation systems)"]
[null,"C5.K3","Principle of integrated design and data transferring, with particular knowledge of IFC (Industry Foundation Classes) structure using international standard"]

{"sheet":"COO4","index":23,"n_rows":88,"n_cols":20,"rows_kept":88,"cut":false,"hidden":false,"merged":[[65,2,65,11],[66,2,66,11],[36,0,37,0],[36,1,37,19],[38,1,38,7],[84,2,84,11],[70,0,71,0],[69,2,69,11],[70,1,71,19],[56,2,56,11],[2,0,3,0],[2,1,3,19],[4,1,4,7],[4,8,4,19],[12,2,12,11],[5,2,5,11],[6,2,6,11],[7,2,7,11],[8,2,8,11],[9,2,9,11],[10,2,10,11],[15,2,15,11],[16,2,16,11],[17,2,17,11],[18,2,18,11],[11,2,11,11],[13,2,13,11],[14,2,14,11],[41,2,41,11],[35,2,35,11],[20,2,20,11],[21,2,21,11],[23,2,23,11],[24,2,24,11],[29,2,29,11],[39,2,39,11],[30,2,30,11],[40,2,40,11],[54,2,54,11],[31,2,31,11],[42,2,42,11],[43,2,43,11],[25,2,25,11],[33,2,33,11],[34,2,34,11],[26,2,26,11],[27,2,27,11],[28,2,28,11],[48,2,48,11],[102,2,102,11],[94,2,94,11],[95,2,95,11],[96,2,96,11],[97,2,97,11],[99,2,99,11],[100,2,100,11],[101,2,101,11],[83,2,83,11],[58,2,58,11],[82,2,82,19],[67,2,67,11],[68,2,68,11],[72,1,72,7],[72,8,72,19],[80,2,80,11],[62,2,62,11],[63,2,63,11],[64,2,64,11],[60,2,60,11],[61,2,61,11],[103,2,103,11],[52,2,52,11],[53,2,53,11],[77,2,77,11],[91,2,91,11],[92,2,92,11],[59,2,59,11],[74,2,74,11],[73,12,73,19],[89,2,89,11],[90,2,90,11],[88,2,88,11],[98,2,98,11],[76,2,76,11],[75,2,75,11],[79,2,79,11],[85,2,85,11],[93,2,93,11],[44,2,44,11],[87,2,87,11],[86,2,86,11],[81,2,81,11],[57,2,57,11],[49,2,49,11],[78,2,78,11],[73,2,73,11],[50,2,50,11],[51,2,51,11],[5,12,5,19],[19,2,19,19],[22,2,22,19],[39,12,39,19],[55,2,55,19],[47,2,47,19],[38,8,38,19],[45,2,45,11],[46,2,46,11],[32,2,32,11]]}
[]
[]
[null,"List of Competences"]
[]
[null,"BIM Coordinator",null,null,null,null,null,null,"Developed Design"]
[null,"N","Competence",null,null,null,null,null,null,null,null,null,"EQF Level"]
[null,"C0","Have basic BIM knowledge and skills",null,null,null,null,null,null,null,null,null,1,2,3,4,5,6,7,8]
[null,"C0.K1","BIM basic concepts, terminology, principles, strategies and its value proposition"]
[null,"C0.K2","Benefits and uses of BIM compared to traditional methods for improving energy efficiency of new or existing buildings"]
[null,"C0.K3","Project information development cycle: information specification, development, exchange and maintenance throughout all the building life cycle"]
[null,"C0.K4","Reasons for open and interoperable solutions to ensure collaboration among professionals of different disciplines"]
[null,"C0.K5","Methodology to identify, plan, develop and evaluate organization's BIM implementation capabilities and BIM uses"]
[null,"C0.K6","Relevance of maintenance for maintaing the foreseen energy performance"]
[null,"C0.S1","Read a BIM Execution Plan (BEP)"]
[null,"C0.S2","Read a Information Delivery Manual"]
[null,"C0.S3","Identify information requirements for his own role"]
[null,"C0.S4","Identify the format to read information and transfer information within the supply chain"]
[null,"C0.S5","Identify the EIR (Employer Information Requirements)"]
[null,"C0.S6","Identify and/or verify the stages of PIM (Project Information Management)"]
[null,"C1","Understand BIM tools"]
[null,"C1.S1","Specialised skills to incorporate information into BIM Model, evaluating openBIM software"]
[null,"C1.S2","Stay up to date on BIM trends, current developments and new directions of BIM technologies"]
[null,"C2","Apply information management"]
[null,"C2.K1","Principle of data mining, data base and back up in the CDE (Common Data Environment)"]
[null,"C2.K2","Principle of data transferring among different software and/or data federating into an integrated design"]
[null,"C2.K3","Principle of data security and administrative law in the archiving of data in a CDE (Common Data Environment)      "]
[]
[]
[]
[]
[]
[]
[]
[]
[]
[]
[null,"List of Competences"]
[]
[null,"BIM Coordinator",null,null,null,null,null,null,"Developed Design"]
[null,"N","Competence",null,null,null,null,null,null,null,null,null,"EQF Level",null,null,"Level"]
[null,"C2.K4","Principle of information management in building sustainability and lean design"]
[null,"C2.S1","Manage and coordinate information related to energy performance"]
[null,"C2.S2","Identify which graphic and/or non-graphic information are necessary for a better management of works and for define the completeness of the Information Delivery Plan in relation to energy performance"]
[null,"C2.S3","Archive the model ensuring that the information provided is kept intact and not manipulated for any future use"]
[null,"C2.S4","Evaluate the completeness of the maintenance plan to be used in EPC (Energy Performance Contracting)"]
[null,"C2.S7","Identify requirements for the management of data in the CDE (Common Data Environment) for any professionals involved in the process"]
[null,"C2.S8","Transfer building information using BIM to facility managers and final users"]
[null,"C3","Apply procurement management"]
[null,"C3.K1","Processes, methods and principles of decision-making on procuring services and suppliers"]
[null,"C3.K2","Processes, methods and principles of decision-making on materials and products"]
[null,"C3.K3","Legal and technical aspects on green procurement, state and rules for using public funding and international good practices of energy performance contracting"]
[null,"C3.K4","Strategies for training programs to increase energy efficiency with the support of BIM"]
[null,"C3.S1","Select or evaluate selected companies with experience in the technologies defined"]
[null,"C3.S2","Select products that fit specifications and demands on given quality aspects making financial calculation related to contracting phase"]
[null,"C3.S3","List and collaborate with several stakeholders who participate in the sustainable project, distinguishing roles/needs and involving them in the information delivery plan preparation and management"]
[null,"C4","Use BIM technology"]
[null,"C4.K1","Techniques and principles of integrated digital production and rendering"]
[null,"C4.K2","Principle of integrated design and data transferring, with particular knowledge of IFC (Industry Foundation Classes) structure using international standard"]
[null,"C4.K3","Principle of planning and scheduling for BEP (BIM Execution Plan)"]
[null,"C4.K4","Principles of interplays between all aspects of building design, building use and outdoor climate for dynamic evaluation"]
[]
[]
[]
[]
[]
[]
[]
[]
[]
[]
[null,"List of Competences"]
[]
[null,"BIM Coordinator",null,null,null,null,null,null,"Developed Design"]
[null,"N","Competence",null,null,null,null,null,null,null,null,null,"EQF Level"]
[null,"C4.K5","Principles and systems of sustainable buildings, including renewable energy production"]
[null,"C4.K6","Design techniques for different scenarios for new resilient buildings to future climate changes and for the refurbishment of existing buildings"]
[null,"C4.K7","Techniques of automatic code checking and management of software e-permit"]
[null,"C4.K8","Principle of information maturity level representation of the model defining the methodology for BIM maturity level"]
[null,"C4.S1","Produce a digital 3D model of building / any BIM objects needed for the library in the Common Data Environment"]
[null,"C4.S2","Develop a BEP (BIM Execution Plan)"]
[null,"C4.S5","Use BIM enabled simulation techniques to reduce the environmental impact"]
[null,"C4.S6","Integrate different RES (Renewable Energy Sources) and energy efficiency systems into buildings without clash detection"]
[null,"C5","Analyse the BIM Model"]
[null,"C5.K1","Principle of global environmental impact of different building products and technologies (RES use, insulation, HVAC systems and building automation systems)"]
[null,"C5.K3","Principle of integrated design and data transferring, with particular knowledge of IFC (Industry Foundation Classes) structure using international standard"]
[null,"C5.S1","Coordinate the work of different disciplines in order to obtain a consolidate BIM model that satisfy all the requirements"]
[null,"C5.S2","Apply Quality Management and coordinate team members of different disciplines"]
[null,"C5.S4","Validate BIM Model"]

{"sheet":"MOD4","index":24,"n_rows":59,"n_cols":20,"rows_kept":59,"cut":false,"hidden":false,"merged":[[51,2,51,11],[52,2,52,11],[67,2,67,11],[57,2,57,11],[58,2,58,11],[55,2,55,19],[69,2,69,11],[56,2,56,11],[68,2,68,11],[64,2,64,11],[65,2,65,11],[66,2,66,11],[59,2,59,11],[61,2,61,11],[45,2,45,11],[44,2,44,11],[50,2,50,11],[63,2,63,11],[53,2,53,11],[62,2,62,11],[54,2,54,11],[48,2,48,11],[47,2,47,11],[60,2,60,11],[12,2,12,11],[13,2,13,11],[42,2,42,11],[46,2,46,11],[22,2,22,11],[23,2,23,11],[24,2,24,11],[25,2,25,11],[41,2,41,11],[30,2,30,11],[11,2,11,11],[5,12,5,19],[33,2,33,11],[34,2,34,11],[40,2,40,11],[6,2,6,11],[7,2,7,11],[8,2,8,11],[9,2,9,11],[10,2,10,11],[49,2,49,19],[43,2,43,19],[17,2,17,11],[18,2,18,11],[2,0,3,0],[2,1,3,19],[4,1,4,7],[4,8,4,19],[5,2,5,11],[36,0,37,0],[38,1,38,7],[38,8,38,19],[14,2,14,11],[15,2,15,11],[16,2,16,11],[35,2,35,11],[31,2,31,11],[32,2,32,11],[39,12,39,19],[19,2,19,19],[21,2,21,19],[27,2,27,11],[28,2,28,11],[20,2,20,11],[26,2,26,11],[29,2,29,11],[39,2,39,11],[36,1,37,19]]}
[]
[]
[null,"List of Competences"]
[]
[null,"BIM Model Evaluator",null,null,null,null,null,null,"Developed Design"]
[null,"N","Competence",null,null,null,null,null,null,null,null,null,"EQF Level"]
[null,"C0","Have basic BIM knowledge and skills",null,null,null,null,null,null,null,null,null,1,2,3,4,5,6,7,8]
[null,"C0.K1","BIM basic concepts, terminology, principles, strategies and its value proposition"]
[null,"C0.K2","Benefits and uses of BIM compared to traditional methods for improving energy efficiency of new or existing buildings"]
[null,"C0.K3","Project information development cycle: information specification, development, exchange and maintenance throughout all the building life cycle"]
[null,"C0.K4","Reasons for open and interoperable solutions to ensure collaboration among professionals of different disciplines"]
[null,"C0.K5","Methodology to identify, plan, develop and evaluate organization's BIM implementation capabilities and BIM uses"]
[null,"C0.K6","Relevance of maintenance for maintaing the foreseen energy performance"]
[null,"C0.S1","Read a BIM Execution Plan (BEP)"]
[null,"C0.S2","Read a Information Delivery Manual"]
[null,"C0.S3","Identify information requirements for his own role"]
[null,"C0.S4","Identify the format to read information and transfer information within the supply chain"]
[null,"C0.S5","Identify the EIR (Employer Information Requirements)"]
[null,"C0.S6","Identify and/or verify the stages of PIM (Project Information Management)"]
[null,"C1","Understand BIM tools"]
[null,"C1.S2","Stay up to date on BIM trends, current developments and new directions of BIM technologies"]
[null,"C2","Apply information management"]
[null,"C2.K1","Principle of data mining, data base and back up in the CDE (Common Data Environment)"]
[null,"C2.K3","Principle of data security and administrative law in the archiving of data in a CDE (Common Data Environment)      "]
[null,"C2.K4","Principle of information management in building sustainability and lean design"]
[null,"C2.S2","Identify which graphic and/or non-graphic information are necessary for a better management of works and for define the completeness of the Information Delivery Plan in relation to energy performance"]
[]
[]
[]
[]
[]
[]
[]
[]
[]
[]
[null,"List of Competences"]
[]
[null,"BIM Model Evaluator",null,null,null,null,null,null,"Developed Design"]
[null,"N","Competence",null,null,null,null,null,null,null,null,null,"EQF Level"]
[null,"C2.S3","Archive the model ensuring that the information provided is kept intact and not manipulated for any future use"]
[null,"C2.S4","Evaluate the completeness of the maintenance plan to be used in EPC (Energy Performance Contracting)"]
[null,"C2.S7","Identify requirements for the management of data in the CDE (Common Data Environment) for any professionals involved in the process"]
[null,"C3","Apply procurement management"]
[null,"C3.K1","Processes, methods and principles of decision-making on procuring services and suppliers"]
[null,"C3.K2","Processes, methods and principles of decision-making on materials and products"]
[null,"C3.K3","Legal and technical aspects on green procurement, state and rules for using public funding and international good practices of energy performance contracting"]
[null,"C3.S5","Define building environmental impact as part of the contract"]
[null,"C3.S6","Include measureable Quality Analysis criteria as part of the contract"]
[null,"C4","Use BIM technology"]
[null,"C4.K2","Principle of integrated design and data transferring, with particular knowledge of IFC (Industry Foundation Classes) structure using international standard"]
[null,"C4.K3","Principle of planning and scheduling for BEP (BIM Execution Plan)"]
[null,"C4.K7","Techniques of automatic code checking and management of software e-permit"]
[null,"C4.K8","Principle of information maturity level representation of the model defining the methodology for BIM maturity level"]
[null,"C4.S8","Produce a visualization design in order to report back to costumers, users and reviewers"]
[null,"C5","Analyse the BIM Model"]
[null,"C5.K1","Principle of global environmental impact of different building products and technologies (RES use, insulation, HVAC systems and building automation systems)"]
[null,"C5.K3","Principle of integrated design and data transferring, with particular knowledge of IFC (Industry Foundation Classes) structure using international standard"]
[null,"C5.S4","Validate BIM Model"]

{"sheet":"SPE4","index":25,"n_rows":59,"n_cols":20,"rows_kept":59,"cut":false,"hidden":false,"merged":[[40,2,40,11],[30,2,30,11],[25,2,25,11],[6,2,6,11],[11,2,11,11],[12,2,12,11],[13,2,13,11],[14,2,14,11],[38,8,38,19],[21,2,21,11],[43,2,43,11],[9,2,9,11],[10,2,10,11],[15,2,15,11],[16,2,16,11],[17,2,17,11],[18,2,18,11],[24,2,24,11],[23,2,23,11],[38,1,38,7],[22,2,22,11],[50,2,50,11],[51,2,51,11],[46,2,46,11],[49,2,49,11],[56,2,56,11],[45,2,45,19],[55,2,55,19],[39,2,39,11],[35,2,35,11],[19,2,19,11],[52,2,52,11],[53,2,53,11],[44,2,44,11],[48,2,48,11],[22,15,22,19],[19,15,19,19],[20,2,20,11],[39,12,39,19],[42,2,42,19],[2,0,3,0],[2,1,3,19],[4,1,4,7],[4,8,4,19],[5,2,5,11],[7,2,7,11],[5,12,5,19],[8,2,8,11],[69,2,69,11],[41,2,41,11],[47,2,47,11],[54,2,54,11],[64,2,64,11],[65,2,65,11],[66,2,66,11],[67,2,67,11],[68,2,68,11],[60,2,60,11],[61,2,61,11],[62,2,62,11],[63,2,63,11],[57,2,57,11],[58,2,58,11],[59,2,59,11],[36,0,37,0],[36,1,37,19],[26,2,26,11],[27,2,27,11],[28,2,28,11],[29,2,29,11],[31,2,31,11],[32,2,32,11],[33,2,33,11],[34,2,34,11]]}
[]
[]
[null,"List of Competences"]
[]
[null,"BIM Specialist-Expert",null,null,null,null,null,null,"Developed Design"]
[null,"N","Competence",null,null,null,null,null,null,null,null,null,"EQF Level"]
[null,"C0","Have basic BIM knowledge and skills",null,null,null,null,null,null,null,null,null,1,2,3,4,5,6,7,8]
[null,"C0.K1","BIM basic concepts, terminology, principles, strategies and its value proposition"]
[null,"C0.K2","Benefits and uses of BIM compared to traditional methods for improving energy efficiency of new or existing buildings"]
[null,"C0.K3","Project information development cycle: information specification, development, exchange and maintenance throughout all the building life cycle"]
[null,"C0.K4","Reasons for open and interoperable solutions to ensure collaboration among professionals of different disciplines"]
[null,"C0.K5","Methodology to identify, plan, develop and evaluate organization's BIM implementation capabilities and BIM uses"]
[null,"C0.K6","Relevance of maintenance for maintaing the foreseen energy performance"]
[null,"C0.S1","Read a BIM Execution Plan (BEP)"]
[null,"C0.S2","Read a Information Delivery Manual"]
[null,"C0.S3","Identify information requirements for his own role"]
[null,"C0.S4","Identify the format to read information and transfer information within the supply chain"]
[null,"C0.S5","Identify the EIR (Employer Information Requirements)"]
[null,"C0.S6","Identify and/or verify the stages of PIM (Project Information Management)"]
[null,"C1","Understand BIM tools"]
[null,"C1.S1","Specialised skills to incorporate information into BIM Model, evaluating openBIM software"]
[null,"C1.S2","Stay up to date on BIM trends, current developments and new directions of BIM technologies"]
[null,"C2","Apply information management"]
[null,"C2.K2","Principle of data transferring among different software and/or data federating into an integrated design"]
[null,"C2.K3","Principle of data security and administrative law in the archiving of data in a CDE (Common Data Environment)      "]
[null,"C2.K4","Principle of information management in building sustainability and lean design"]
[]
[]
[]
[]
[]
[]
[]
[]
[]
[]
[null,"List of Competences"]
[]
[null,"BIM Specialist-Expert",null,null,null,null,null,null,"Developed Design"]
[null,"N","Competence",null,null,null,null,null,null,null,null,null,"EQF Level"]
[null,"C2.S2","Identify which graphic and/or non-graphic information are necessary for a better management of works and for define the completeness of the Information Delivery Plan in relation to energy performance"]
[null,"C2.S4","Evaluate the completeness of the maintenance plan to be used in EPC (Energy Performance Contracting)"]
[null,"C3","Apply procurement management"]
[null,"C3.K3","Legal and technical aspects on green procurement, state and rules for using public funding and international good practices of energy performance contracting"]
[null,"C3.S3","List and collaborate with several stakeholders who participate in the sustainable project, distinguishing roles/needs and involving them in the information delivery plan preparation and management"]
[null,"C4","Use BIM technology"]
[null,"C4.K1","Techniques and principles of integrated digital production and rendering"]
[null,"C4.K2","Principle of integrated design and data transferring, with particular knowledge of IFC (Industry Foundation Classes) structure using international standard"]
[null,"C4.K4","Principles of interplays between all aspects of building design, building use and outdoor climate for dynamic evaluation"]
[null,"C4.K5","Principles and systems of sustainable buildings, including renewable energy production"]
[null,"C4.K6","Design techniques for different scenarios for new resilient buildings to future climate changes and for the refurbishment of existing buildings"]
[null,"C4.K7","Techniques of automatic code checking and management of software e-permit"]
[null,"C4.S1","Produce a digital 3D model of building / any BIM objects needed for the library in the Common Data Environment"]
[null,"C4.S5","Use BIM enabled simulation techniques to reduce the environmental impact"]
[null,"C4.S6","Integrate different RES (Renewable Energy Sources) and energy efficiency systems into buildings without clash detection"]
[null,"C5","Analyse the BIM Model"]
[null,"C5.K1","Principle of global environmental impact of different building products and technologies (RES use, insulation, HVAC systems and building automation systems)"]
[null,"C5.K3","Principle of integrated design and data transferring, with particular knowledge of IFC (Industry Foundation Classes) structure using international standard"]
[null,"C5.S4","Validate BIM Model"]

{"sheet":"USE4","index":26,"n_rows":42,"n_cols":20,"rows_kept":42,"cut":false,"hidden":false,"merged":[[66,2,66,11],[58,2,58,11],[26,2,26,11],[35,2,35,11],[67,2,67,11],[68,2,68,11],[56,2,56,11],[27,2,27,11],[28,2,28,11],[29,2,29,11],[69,2,69,11],[5,2,5,11],[62,2,62,11],[63,2,63,11],[64,2,64,11],[65,2,65,11],[48,2,48,11],[57,2,57,11],[23,2,23,11],[55,2,55,11],[10,2,10,11],[59,2,59,11],[60,2,60,11],[18,2,18,11],[19,2,19,11],[31,2,31,11],[32,2,32,11],[34,2,34,11],[11,2,11,11],[12,2,12,11],[61,2,61,11],[41,2,41,11],[51,2,51,11],[52,2,52,11],[53,2,53,11],[54,2,54,11],[2,0,3,0],[2,1,3,19],[4,1,4,7],[4,8,4,19],[6,2,6,11],[17,2,17,11],[7,2,7,11],[8,2,8,11],[5,12,5,19],[9,2,9,11],[13,2,13,11],[14,2,14,11],[15,2,15,11],[21,2,21,11],[30,2,30,11],[25,2,25,11],[36,0,37,0],[36,1,37,19],[50,2,50,11],[42,2,42,11],[43,2,43,11],[44,2,44,11],[45,2,45,11],[46,2,46,11],[49,2,49,11],[47,2,47,11],[39,12,39,19],[40,2,40,19],[20,2,20,19],[16,2,16,19],[38,1,38,7],[38,8,38,19],[39,2,39,11],[22,2,22,11],[24,2,24,11],[33,2,33,11]]}
[]
[]
[null,"List of Competences"]
[]
[null,"BIM User",null,null,null,null,null,null,"Developed Design"]
[null,"N","Competence",null,null,null,null,null,null,null,null,null,"EQF Level"]
[null,"C0","Have basic BIM knowledge and skills",null,null,null,null,null,null,null,null,null,1,2,3,4,5,6,7,8]
[null,"C0.K1","BIM basic concepts, terminology, principles, strategies and its value proposition"]
[null,"C0.K2","Benefits and uses of BIM compared to traditional methods for improving energy efficiency of new or existing buildings"]
[null,"C0.K3","Project information development cycle: information specification, development, exchange and maintenance throughout all the building life cycle"]
[null,"C0.K4","Reasons for open and interoperable solutions to ensure collaboration among professionals of different disciplines"]
[null,"C0.K6","Relevance of maintenance for maintaing the foreseen energy performance"]
[null,"C0.S2","Read a Information Delivery Manual"]
[null,"C0.S3","Identify information requirements for his own role"]
[null,"C0.S5","Identify the EIR (Employer Information Requirements)"]
[null,"C0.S6","Identify and/or verify the stages of PIM (Project Information Management)"]
[null,"C2","Apply information management"]
[null,"C2.K2","Principle of data transferring among different software and/or data federating into an integrated design"]
[null,"C2.K4","Principle of information management in building sustainability and lean design"]
[null,"C2.S1","Manage and coordinate information related to energy performance"]
[null,"C3","Apply procurement management"]
[null,"C3.K2","Processes, methods and principles of decision-making on materials and products"]
[null,"C3.K3","Legal and technical aspects on green procurement, state and rules for using public funding and international good practices of energy performance contracting"]
[null,"C3.S3","List and collaborate with several stakeholders who participate in the sustainable project, distinguishing roles/needs and involving them in the information delivery plan preparation and management"]
[null,"C3.S5","Define building environmental impact as part of the contract"]
[null,"C3.S6","Include measureable Quality Analysis criteria as part of the contract"]
[]
[]
[]
[]
[]
[]
[]
[]
[]
[]
[null,"List of Competences"]
[]
[null,"BIM User",null,null,null,null,null,null,"Developed Design"]
[null,"N","Competence",null,null,null,null,null,null,null,null,null,"EQF Level"]
[null,"C4","Use BIM technology"]
[null,"C4.K5","Principles and systems of sustainable buildings, including renewable energy production"]

{"sheet":"MAN5","index":27,"n_rows":79,"n_cols":20,"rows_kept":79,"cut":false,"hidden":false,"merged":[[6,2,6,11],[7,2,7,11],[8,2,8,11],[9,2,9,11],[36,0,37,0],[36,1,37,19],[17,2,17,11],[18,2,18,11],[22,2,22,19],[19,2,19,19],[38,1,38,7],[38,8,38,19],[23,2,23,11],[2,0,3,0],[2,1,3,19],[4,1,4,7],[4,8,4,19],[5,2,5,11],[24,2,24,11],[16,2,16,11],[42,2,42,11],[50,2,50,11],[10,2,10,11],[55,2,55,11],[54,2,54,11],[21,2,21,11],[53,2,53,11],[20,2,20,11],[31,2,31,11],[32,2,32,11],[44,2,44,11],[52,2,52,11],[51,2,51,11],[33,2,33,11],[25,2,25,11],[40,2,40,11],[41,2,41,11],[43,2,43,11],[45,2,45,11],[27,2,27,11],[68,2,68,11],[63,2,63,11],[64,2,64,11],[65,2,65,11],[72,1,72,7],[29,2,29,11],[48,2,48,11],[49,2,49,11],[34,2,34,11],[35,2,35,11],[103,2,103,11],[74,2,74,11],[97,2,97,11],[98,2,98,11],[99,2,99,11],[76,2,76,11],[88,2,88,11],[94,2,94,11],[95,2,95,11],[96,2,96,11],[102,2,102,11],[84,2,84,11],[100,2,100,11],[101,2,101,11],[92,2,92,11],[77,2,77,11],[93,2,93,11],[83,2,83,11],[89,2,89,11],[91,2,91,11],[90,2,90,11],[78,2,78,11],[79,2,79,11],[80,2,80,11],[86,2,86,11],[81,2,81,11],[87,2,87,11],[85,2,85,11],[72,8,72,19],[73,2,73,11],[66,2,66,11],[30,2,30,11],[82,2,82,11],[47,2,47,11],[75,2,75,19],[56,2,56,19],[46,2,46,19],[59,2,59,11],[26,2,26,11],[12,2,12,11],[28,2,28,11],[70,0,71,0],[70,1,71,19],[60,2,60,11],[61,2,61,11],[62,2,62,11],[67,2,67,11],[69,2,69,11],[5,12,5,19],[73,12,73,19],[11,2,11,11],[13,2,13,11],[14,2,14,11],[15,2,15,11],[58,2,58,11],[39,2,39,11],[57,2,57,11],[39,12,39,19]]}
[]
[]
[null,"List of Competences"]
[]
[null,"BIM Manager",null,null,null,null,null,null,"Technical Design"]
[null,"N","Competence",null,null,null,null,null,null,null,null,null,"EQF Level"]
[null,"C0","Have basic BIM knowledge and skills",null,null,null,null,null,null,null,null,null,1,2,3,4,5,6,7,8]
[null,"C0.K1","BIM basic concepts, terminology, principles, strategies and its value proposition"]
[null,"C0.K2","Benefits and uses of BIM compared to traditional methods for improving energy efficiency of new or existing buildings"]
[null,"C0.K3","Project information development cycle: information specification, development, exchange and maintenance throughout all the building life cycle"]
[null,"C0.K4","Reasons for open and interoperable solutions to ensure collaboration among professionals of different disciplines"]
[null,"C0.K5","Methodology to identify, plan, develop and evaluate organization's BIM implementation capabilities and BIM uses"]
[null,"C0.K6","Relevance of maintenance for maintaing the foreseen energy performance"]
[null,"C0.S1","Read a BIM Execution Plan (BEP)"]
[null,"C0.S2","Read a Information Delivery Manual"]
[null,"C0.S3","Identify information requirements for his own role"]
[null,"C0.S4","Identify the format to read information and transfer information within the supply chain"]
[null,"C0.S5","Identify the EIR (Employer Information Requirements)"]
[null,"C0.S6","Identify and/or verify the stages of PIM (Project Information Management)"]
[null,"C1","Understand BIM tools"]
[null,"C1.S1","Specialised skills to incorporate information into BIM Model, evaluating openBIM software"]
[null,"C1.S2","Stay up to date on BIM trends, current developments and new directions of BIM technologies"]
[null,"C2","Apply information management"]
[null,"C2.K1","Principle of data mining, data base and back up in the CDE (Common Data Environment)"]
[null,"C2.K2","Principle of data transferring among different software and/or data federating into an integrated design"]
[null,"C2.K3","Principle of data security and administrative law in the archiving of data in a CDE (Common Data Environment)      "]
[]
[]
[]
[]
[]
[]
[]
[]
[]
[]
[null,"List of Competences"]
[]
[null,"BIM Manager",null,null,null,null,null,null,"Technical Design"]
[null,"N","Competence",null,null,null,null,null,null,null,null,null,"EQF Level",null,null,"Level"]
[null,"C2.K4","Principle of information management in building sustainability and lean design"]
[null,"C2.S1","Manage and coordinate information related to energy performance"]
[null,"C2.S3","Archive the model ensuring that the information provided is kept intact and not manipulated for any future use"]
[null,"C2.S4","Evaluate the completeness of the maintenance plan to be used in EPC (Energy Performance Contracting)"]
[null,"C2.S7","Identify requirements for the management of data in the CDE (Common Data Environment) for any professionals involved in the process"]
[null,"C2.S8","Transfer building information using BIM to facility managers and final users"]
[null,"C3","Apply procurement management"]
[null,"C3.K1","Processes, methods and principles of decision-making on procuring services and suppliers"]
[null,"C3.K2","Processes, methods and principles of decision-making on materials and products"]
[null,"C3.K3","Legal and technical aspects on green procurement, state and rules for using public funding and international good practices of energy performance contracting"]
[null,"C3.K4","Strategies for training programs to increase energy efficiency with the support of BIM"]
[null,"C3.S1","Select or evaluate selected companies with experience in the technologies defined"]
[null,"C3.S2","Select products that fit specifications and demands on given quality aspects making financial calculation related to contracting phase"]
[null,"C3.S3","List and collaborate with several stakeholders who participate in the sustainable project, distinguishing roles/needs and involving them in the information delivery plan preparation and management"]
[null,"C3.S5","Negotiate and take necessary legal steps if the contractual requirements were not met"]
[null,"C3.S6","Include measureable Quality Analysis criteria as part of the contract"]
[null,"C4","Use BIM technology"]
[null,"C4.K2","Principle of integrated design and data transferring, with particular knowledge of IFC (Industry Foundation Classes) structure using international standard"]
[null,"C4.K3","Principle of planning and scheduling for BEP (BIM Execution Plan)"]
[null,"C4.K8","Principle of information maturity level representation of the model defining the methodology for BIM maturity level"]
[]
[]
[]
[]
[]
[]
[]
[]
[]
[]
[null,"List of Competences"]
[]
[null,"BIM Manager",null,null,null,null,null,null,"Technical Design"]
[null,"N","Competence",null,null,null,null,null,null,null,null,null,"EQF Level"]
[null,"C4.S2","Develop a BEP (BIM Execution Plan)"]
[null,"C5","Analyse the BIM Model"]
[null,"C5.K1","Principle of global environmental impact of different building products and technologies (RES use, insulation, HVAC systems and building automation systems)"]
[null,"C5.K3","Principle of integrated design and data transferring, with particular knowledge of IFC (Industry Foundation Classes) structure using international standard"]
[null,"C5.S6","Use BIM models to communicate installation instructions"]

{"sheet":"COO5","index":28,"n_rows":92,"n_cols":20,"rows_kept":92,"cut":false,"hidden":false,"merged":[[27,2,27,11],[2,0,3,0],[2,1,3,19],[4,1,4,7],[4,8,4,19],[5,2,5,11],[26,2,26,11],[19,2,19,11],[19,15,19,19],[20,2,20,11],[21,2,21,11],[22,2,22,11],[23,2,23,11],[22,15,22,19],[90,2,90,11],[58,2,58,11],[61,2,61,11],[62,2,62,11],[63,2,63,11],[68,2,68,11],[69,2,69,11],[28,2,28,11],[87,2,87,11],[49,2,49,11],[50,2,50,11],[30,2,30,11],[31,2,31,11],[29,2,29,11],[88,2,88,11],[84,2,84,11],[73,2,73,11],[86,2,86,11],[77,2,77,11],[44,2,44,11],[52,2,52,11],[80,2,80,11],[53,2,53,11],[48,2,48,11],[32,2,32,11],[34,2,34,11],[35,2,35,11],[33,2,33,11],[78,2,78,11],[83,2,83,11],[74,2,74,11],[75,2,75,11],[64,2,64,11],[65,2,65,11],[36,0,37,0],[36,1,37,19],[38,1,38,7],[38,8,38,19],[66,2,66,11],[67,2,67,11],[43,2,43,11],[39,2,39,11],[45,2,45,11],[54,2,54,11],[70,0,71,0],[70,1,71,19],[72,1,72,7],[72,8,72,19],[103,2,103,11],[89,2,89,11],[98,2,98,11],[99,2,99,11],[100,2,100,11],[76,2,76,11],[12,2,12,11],[101,2,101,11],[102,2,102,11],[93,2,93,11],[94,2,94,11],[95,2,95,11],[96,2,96,11],[97,2,97,11],[56,2,56,11],[57,2,57,11],[6,2,6,11],[7,2,7,11],[8,2,8,11],[9,2,9,11],[10,2,10,11],[11,2,11,11],[92,2,92,11],[91,2,91,11],[59,2,59,11],[40,2,40,11],[41,2,41,11],[60,2,60,11],[79,2,79,11],[81,2,81,11],[82,2,82,11],[51,2,51,11],[13,2,13,11],[14,2,14,11],[15,2,15,11],[16,2,16,11],[17,2,17,11],[18,2,18,11],[25,2,25,11],[42,2,42,11],[5,12,5,19],[73,12,73,19],[85,2,85,19],[55,2,55,19],[47,2,47,19],[39,12,39,19],[24,2,24,11],[46,2,46,11]]}
[]
[]
[null,"List of Competences"]
[]
[null,"BIM Coordinator",null,null,null,null,null,null,"Technical Design"]
[null,"N","Competence",null,null,null,null,null,null,null,null,null,"EQF Level"]
[null,"C0","Have basic BIM knowledge and skills",null,null,null,null,null,null,null,null,null,1,2,3,4,5,6,7,8]
[null,"C0.K1","BIM basic concepts, terminology, principles, strategies and its value proposition"]
[null,"C0.K2","Benefits and uses of BIM compared to traditional methods for improving energy efficiency of new or existing buildings"]
[null,"C0.K3","Project information development cycle: information specification, development, exchange and maintenance throughout all the building life cycle"]
[null,"C0.K4","Reasons for open and interoperable solutions to ensure collaboration among professionals of different disciplines"]
[null,"C0.K5","Methodology to identify, plan, develop and evaluate organization's BIM implementation capabilities and BIM uses"]
[null,"C0.K6","Relevance of maintenance for maintaing the foreseen energy performance"]
[null,"C0.S1","Read a BIM Execution Plan (BEP)"]
[null,"C0.S2","Read a Information Delivery Manual"]
[null,"C0.S3","Identify information requirements for his own role"]
[null,"C0.S4","Identify the format to read information and transfer information within the supply chain"]
[null,"C0.S5","Identify the EIR (Employer Information Requirements)"]
[null,"C0.S6","Identify and/or verify the stages of PIM (Project Information Management)"]
[null,"C1","Understand BIM tools"]
[null,"C1.S1","Specialised skills to incorporate information into BIM Model, evaluating openBIM software"]
[null,"C1.S2","Stay up to date on BIM trends, current developments and new directions of BIM technologies"]
[null,"C2","Apply information management"]
[null,"C2.K1","Principle of data mining, data base and back up in the CDE (Common Data Environment)"]
[null,"C2.K2","Principle of data transferring among different software and/or data federating into an integrated design"]
[null,"C2.K3","Principle of data security and administrative law in the archiving of data in a CDE (Common Data Environment)      "]
[]
[]
[]
[]
[]
[]
[]
[]
[]
[]
[null,"List of Competences"]
[]
[null,"BIM Coordinator",null,null,null,null,null,null,"Technical Design"]
[null,"N","Competence",null,null,null,null,null,null,null,null,null,"EQF Level",null,null,"Level"]
[null,"C2.K4","Principle of information management in building sustainability and lean design"]
[null,"C2.S1","Manage and coordinate information related to energy performance"]
[null,"C2.S2","Identify which graphic and/or non-graphic information are necessary for a better management of works and for define the completeness of the Information Delivery Plan in relation to energy performance"]
[null,"C2.S3","Archive the model ensuring that the information provided is kept intact and not manipulated for any future use"]
[null,"C2.S4","Evaluate the completeness of the maintenance plan to be used in EPC (Energy Performance Contracting)"]
[null,"C2.S7","Identify requirements for the management of data in the CDE (Common Data Environment) for any professionals involved in the process"]
[null,"C2.S8","Transfer building information using BIM to facility managers and final users"]
[null,"C3","Apply procurement management"]
[null,"C3.K1","Processes, methods and principles of decision-making on procuring services and suppliers"]
[null,"C3.K2","Processes, methods and principles of decision-making on materials and products"]
[null,"C3.K3","Legal and technical aspects on green procurement, state and rules for using public funding and international good practices of energy performance contracting"]
[null,"C3.K4","Strategies for training programs to increase energy efficiency with the support of BIM"]
[null,"C3.S1","Select or evaluate selected companies with experience in the technologies defined"]
[null,"C3.S2","Select products that fit specifications and demands on given quality aspects making financial calculation related to contracting phase"]
[null,"C3.S3","List and collaborate with several stakeholders who participate in the sustainable project, distinguishing roles/needs and involving them in the information delivery plan preparation and management"]
[null,"C4","Use BIM technology"]
[null,"C4.K1","Techniques and principles of integrated digital production and rendering"]
[null,"C4.K2","Principle of integrated design and data transferring, with particular knowledge of IFC (Industry Foundation Classes) structure using international standard"]
[null,"C4.K3","Principle of planning and scheduling for BEP (BIM Execution Plan)"]
[null,"C4.K4","Principles of interplays between all aspects of building design, building use and outdoor climate for dynamic evaluation"]
[]
[]
[]
[]
[]
[]
[]
[]
[]
[]
[null,"List of Competences"]
[]
[null,"BIM Coordinator",null,null,null,null,null,null,"Technical Design"]
[null,"N","Competence",null,null,null,null,null,null,null,null,null,"EQF Level"]
[null,"C4.K5","Principles and systems of sustainable buildings, including renewable energy production"]
[null,"C4.K6","Design techniques for different scenarios for new resilient buildings to future climate changes and for the refurbishment of existing buildings"]
[null,"C4.K7","Techniques of automatic code checking and management of software e-permit"]
[null,"C4.K8","Principle of information maturity level representation of the model defining the methodology for BIM maturity level"]
[null,"C4.S1","Produce a digital 3D model of building / any BIM objects needed for the library in the Common Data Environment"]
[null,"C4.S2","Develop a BEP (BIM Execution Plan)"]
[null,"C4.S3","Develop site utilization planning, set-up organized management systems, tack the effectiveness distribution of appropriate spaces and related resources"]
[null,"C4.S5","Use BIM enabled simulation techniques to reduce the environmental impact"]
[null,"C4.S6","Integrate different RES (Renewable Energy Sources) and energy efficiency systems into buildings without clash detection"]
[null,"C4.S7","Produce a maintenance plan and a maintenance manual for building systems"]
[null,"C4.S9","Use code checking to verify the respect of energy performance requirements"]
[null,"C5","Analyse the BIM Model"]
[null,"C5.K1","Principle of global environmental impact of different building products and technologies (RES use, insulation, HVAC systems and building automation systems)"]
[null,"C5.K3","Principle of integrated design and data transferring, with particular knowledge of IFC (Industry Foundation Classes) structure using international standard"]
[null,"C5.S1","Coordinate the work of different disciplines in order to obtain a consolidate BIM model that satisfy all the requirements"]
[null,"C5.S2","Apply Quality Management and coordinate team members of different disciplines"]
[null,"C5.S4","Validate BIM Model"]
[null,"C5.S6","Use BIM models to communicate installation instructions"]

{"sheet":"MOD5","index":29,"n_rows":60,"n_cols":20,"rows_kept":60,"cut":false,"hidden":false,"merged":[[50,2,50,11],[43,2,43,19],[32,2,32,11],[34,2,34,11],[35,2,35,11],[45,2,45,11],[48,2,48,11],[47,2,47,11],[38,8,38,19],[7,2,7,11],[8,2,8,11],[9,2,9,11],[10,2,10,11],[39,12,39,19],[19,2,19,19],[11,2,11,11],[12,2,12,11],[13,2,13,11],[20,2,20,11],[14,2,14,11],[15,2,15,11],[16,2,16,11],[2,0,3,0],[2,1,3,19],[4,1,4,7],[4,8,4,19],[5,2,5,11],[5,12,5,19],[6,2,6,11],[21,2,21,19],[17,2,17,11],[18,2,18,11],[26,2,26,11],[42,2,42,11],[22,2,22,11],[23,2,23,11],[24,2,24,11],[25,2,25,11],[40,2,40,11],[39,2,39,11],[49,2,49,19],[28,2,28,11],[27,2,27,11],[29,2,29,11],[30,2,30,11],[41,2,41,11],[38,1,38,7],[31,2,31,11],[36,0,37,0],[36,1,37,19],[44,2,44,11],[46,2,46,11],[33,2,33,11],[67,2,67,11],[51,2,51,11],[57,2,57,11],[59,2,59,11],[56,2,56,19],[69,2,69,11],[60,2,60,11],[61,2,61,11],[62,2,62,11],[63,2,63,11],[64,2,64,11],[65,2,65,11],[66,2,66,11],[52,2,52,11],[58,2,58,11],[55,2,55,11],[54,2,54,11],[53,2,53,11],[68,2,68,11]]}
[]
[]
[null,"List of Competences"]
[]
[null,"BIM Model Evaluator",null,null,null,null,null,null,"Technical Design"]
[null,"N","Competence",null,null,null,null,null,null,null,null,null,"EQF Level"]
[null,"C0","Have basic BIM knowledge and skills",null,null,null,null,null,null,null,null,null,1,2,3,4,5,6,7,8]
[null,"C0.K1","BIM basic concepts, terminology, principles, strategies and its value proposition"]
[null,"C0.K2","Benefits and uses of BIM compared to traditional methods for improving energy efficiency of new or existing buildings"]
[null,"C0.K3","Project information development cycle: information specification, development, exchange and maintenance throughout all the building life cycle"]
[null,"C0.K4","Reasons for open and interoperable solutions to ensure collaboration among professionals of different disciplines"]
[null,"C0.K5","Methodology to identify, plan, develop and evaluate organization's BIM implementation capabilities and BIM uses"]
[null,"C0.K6","Relevance of maintenance for maintaing the foreseen energy performance"]
[null,"C0.S1","Read a BIM Execution Plan (BEP)"]
[null,"C0.S2","Read a Information Delivery Manual"]
[null,"C0.S3","Identify information requirements for his own role"]
[null,"C0.S4","Identify the format to read information and transfer information within the supply chain"]
[null,"C0.S5","Identify the EIR (Employer Information Requirements)"]
[null,"C0.S6","Identify and/or verify the stages of PIM (Project Information Management)"]
[null,"C1","Understand BIM tools"]
[null,"C1.S2","Stay up to date on BIM trends, current developments and new directions of BIM technologies"]
[null,"C2","Apply information management"]
[null,"C2.K1","Principle of data mining, data base and back up in the CDE (Common Data Environment)"]
[null,"C2.K3","Principle of data security and administrative law in the archiving of data in a CDE (Common Data Environment)      "]
[null,"C2.K4","Principle of information management in building sustainability and lean design"]
[null,"C2.S2","Identify which graphic and/or non-graphic information are necessary for a better management of works and for define the completeness of the Information Delivery Plan in relation to energy performance"]
[]
[]
[]
[]
[]
[]
[]
[]
[]
[]
[null,"List of Competences"]
[]
[null,"BIM Model Evaluator",null,null,null,null,null,null,"Technical Design"]
[null,"N","Competence",null,null,null,null,null,null,null,null,null,"EQF Level"]
[null,"C2.S3","Archive the model ensuring that the information provided is kept intact and not manipulated for any future use"]
[null,"C2.S4","Evaluate the completeness of the maintenance plan to be used in EPC (Energy Performance Contracting)"]
[null,"C2.S7","Identify requirements for the management of data in the CDE (Common Data Environment) for any professionals involved in the process"]
[null,"C3","Apply procurement management"]
[null,"C3.K1","Processes, methods and principles of decision-making on procuring services and suppliers"]
[null,"C3.K2","Processes, methods and principles of decision-making on materials and products"]
[null,"C3.K3","Legal and technical aspects on green procurement, state and rules for using public funding and international good practices of energy performance contracting"]
[null,"C3.S5","Define building environmental impact as part of the contract"]
[null,"C3.S6","Include measureable Quality Analysis criteria as part of the contract"]
[null,"C4","Use BIM technology"]
[null,"C4.K2","Principle of integrated design and data transferring, with particular knowledge of IFC (Industry Foundation Classes) structure using international standard"]
[null,"C4.K3","Principle of planning and scheduling for BEP (BIM Execution Plan)"]
[null,"C4.K7","Techniques of automatic code checking and management of software e-permit"]
[null,"C4.K8","Principle of information maturity level representation of the model defining the methodology for BIM maturity level"]
[null,"C4.S8","Produce a visualization design in order to report back to costumers, users and reviewers"]
[null,"C4.S9","Use code checking to verify the respect of energy performance requirements"]
[null,"C5","Analyse the BIM Model"]
[null,"C5.K1","Principle of global environmental impact of different building products and technologies (RES use, insulation, HVAC systems and building automation systems)"]
[null,"C5.K3","Principle of integrated design and data transferring, with particular knowledge of IFC (Industry Foundation Classes) structure using international standard"]
[null,"C5.S4","Validate BIM Model"]

{"sheet":"SPE5","index":30,"n_rows":76,"n_cols":20,"rows_kept":76,"cut":false,"hidden":false,"merged":[[70,0,71,0],[70,1,71,19],[38,1,38,7],[38,8,38,19],[39,2,39,11],[47,2,47,11],[48,2,48,11],[58,2,58,11],[59,2,59,11],[43,2,43,11],[50,2,50,11],[49,2,49,11],[52,2,52,11],[51,2,51,11],[2,0,3,0],[2,1,3,19],[4,1,4,7],[4,8,4,19],[5,2,5,11],[5,12,5,19],[19,15,19,19],[20,2,20,11],[21,2,21,11],[19,2,19,11],[7,2,7,11],[8,2,8,11],[9,2,9,11],[15,2,15,11],[16,2,16,11],[17,2,17,11],[6,2,6,11],[85,2,85,11],[87,2,87,11],[79,2,79,11],[80,2,80,11],[74,2,74,11],[75,2,75,11],[76,2,76,11],[60,2,60,11],[61,2,61,11],[68,2,68,11],[69,2,69,11],[62,2,62,11],[63,2,63,11],[64,2,64,11],[65,2,65,11],[66,2,66,11],[44,2,44,11],[40,2,40,11],[41,2,41,11],[56,2,56,11],[35,2,35,11],[67,2,67,11],[46,2,46,11],[53,2,53,11],[54,2,54,11],[55,2,55,11],[100,2,100,11],[101,2,101,11],[91,2,91,11],[92,2,92,11],[93,2,93,11],[94,2,94,11],[10,2,10,11],[11,2,11,11],[12,2,12,11],[13,2,13,11],[14,2,14,11],[25,2,25,11],[24,2,24,11],[22,2,22,11],[23,2,23,11],[18,2,18,11],[84,2,84,11],[22,15,22,19],[102,2,102,11],[103,2,103,11],[95,2,95,11],[96,2,96,11],[97,2,97,11],[98,2,98,11],[99,2,99,11],[90,2,90,11],[33,2,33,11],[34,2,34,11],[83,2,83,11],[88,2,88,11],[89,2,89,11],[77,2,77,11],[78,2,78,11],[81,2,81,11],[82,2,82,11],[86,2,86,11],[26,2,26,11],[27,2,27,11],[28,2,28,11],[29,2,29,11],[31,2,31,11],[32,2,32,11],[30,2,30,11],[39,12,39,19],[73,12,73,19],[57,2,57,19],[45,2,45,19],[42,2,42,19],[36,0,37,0],[36,1,37,19],[72,1,72,7],[72,8,72,19],[73,2,73,11]]}
[]
[]
[null,"List of Competences"]
[]
[null,"BIM Specialist-Expert",null,null,null,null,null,null,"Technical Design"]
[null,"N","Competence",null,null,null,null,null,null,null,null,null,"EQF Level"]
[null,"C0","Have basic BIM knowledge and skills",null,null,null,null,null,null,null,null,null,1,2,3,4,5,6,7,8]
[null,"C0.K1","BIM basic concepts, terminology, principles, strategies and its value proposition"]
[null,"C0.K2","Benefits and uses of BIM compared to traditional methods for improving energy efficiency of new or existing buildings"]
[null,"C0.K3","Project information development cycle: information specification, development, exchange and maintenance throughout all the building life cycle"]
[null,"C0.K4","Reasons for open and interoperable solutions to ensure collaboration among professionals of different disciplines"]
[null,"C0.K5","Methodology to identify, plan, develop and evaluate organization's BIM implementation capabilities and BIM uses"]
[null,"C0.K6","Relevance of maintenance for maintaing the foreseen energy performance"]
[null,"C0.S1","Read a BIM Execution Plan (BEP)"]
[null,"C0.S2","Read a Information Delivery Manual"]
[null,"C0.S3","Identify information requirements for his own role"]
[null,"C0.S4","Identify the format to read information and transfer information within the supply chain"]
[null,"C0.S5","Identify the EIR (Employer Information Requirements)"]
[null,"C0.S6","Identify and/or verify the stages of PIM (Project Information Management)"]
[null,"C1","Understand BIM tools"]
[null,"C1.S1","Specialised skills to incorporate information into BIM Model, evaluating openBIM software"]
[null,"C1.S2","Stay up to date on BIM trends, current developments and new directions of BIM technologies"]
[null,"C2","Apply information management"]
[null,"C2.K2","Principle of data transferring among different software and/or data federating into an integrated design"]
[null,"C2.K3","Principle of data security and administrative law in the archiving of data in a CDE (Common Data Environment)      "]
[null,"C2.K4","Principle of information management in building sustainability and lean design"]
[]
[]
[]
[]
[]
[]
[]
[]
[]
[]
[null,"List of Competences"]
[]
[null,"BIM Specialist-Expert",null,null,null,null,null,null,"Technical Design"]
[null,"N","Competence",null,null,null,null,null,null,null,null,null,"EQF Level"]
[null,"C2.S2","Identify which graphic and/or non-graphic information are necessary for a better management of works and for define the completeness of the Information Delivery Plan in relation to energy performance"]
[null,"C2.S4","Evaluate the completeness of the maintenance plan to be used in EPC (Energy Performance Contracting)"]
[null,"C3","Apply procurement management"]
[null,"C3.K3","Legal and technical aspects on green procurement, state and rules for using public funding and international good practices of energy performance contracting"]
[null,"C3.S3","List and collaborate with several stakeholders who participate in the sustainable project, distinguishing roles/needs and involving them in the information delivery plan preparation and management"]
[null,"C4","Use BIM technology"]
[null,"C4.K1","Techniques and principles of integrated digital production and rendering"]
[null,"C4.K2","Principle of integrated design and data transferring, with particular knowledge of IFC (Industry Foundation Classes) structure using international standard"]
[null,"C4.K4","Principles of interplays between all aspects of building design, building use and outdoor climate for dynamic evaluation"]
[null,"C4.K5","Principles and systems of sustainable buildings, including renewable energy production"]
[null,"C4.K6","Design techniques for different scenarios for new resilient buildings to future climate changes and for the refurbishment of existing buildings"]
[null,"C4.K7","Techniques of automatic code checking and management of software e-permit"]
[null,"C4.S1","Produce a digital 3D model of building / any BIM objects needed for the library in the Common Data Environment"]
[null,"C4.S3","Develop site utilization planning, set-up organized management systems, tack the effectiveness distribution of appropriate spaces and related resources"]
[null,"C4.S5","Use BIM enabled simulation techniques to reduce the environmental impact"]
[null,"C4.S6","Integrate different RES (Renewable Energy Sources) and energy efficiency systems into buildings without clash detection"]
[null,"C4.S9","Use code checking to verify the respect of energy performance requirements"]
[null,"C5","Analyse the BIM Model"]
[null,"C5.K1","Principle of global environmental impact of different building products and technologies (RES use, insulation, HVAC systems and building automation systems)"]
[null,"C5.K3","Principle of integrated design and data transferring, with particular knowledge of IFC (Industry Foundation Classes) structure using international standard"]
[]
[]
[]
[]
[]
[]
[]
[]
[]
[]
[null,"List of Competences"]
[]
[null,"BIM Specialist-Expert",null,null,null,null,null,null,"Technical Design"]
[null,"N","Competence",null,null,null,null,null,null,null,null,null,"EQF Level"]
[null,"C5.S4","Validate BIM Model"]
[null,"C5.S6","Use BIM models to communicate installation instructions"]

{"sheet":"USE5","index":31,"n_rows":44,"n_cols":20,"rows_kept":44,"cut":false,"hidden":false,"merged":[[68,2,68,11],[69,2,69,11],[5,2,5,11],[62,2,62,11],[63,2,63,11],[64,2,64,11],[65,2,65,11],[66,2,66,11],[43,2,43,11],[6,2,6,11],[7,2,7,11],[8,2,8,11],[9,2,9,11],[10,2,10,11],[67,2,67,11],[55,2,55,11],[44,2,44,11],[28,2,28,11],[41,2,41,11],[23,2,23,11],[24,2,24,11],[59,2,59,11],[60,2,60,11],[61,2,61,11],[57,2,57,11],[58,2,58,11],[56,2,56,11],[25,2,25,11],[26,2,26,11],[27,2,27,11],[2,0,3,0],[2,1,3,19],[4,1,4,7],[4,8,4,19],[5,12,5,19],[39,12,39,19],[17,2,17,11],[18,2,18,11],[19,2,19,11],[22,2,22,11],[11,2,11,11],[12,2,12,11],[13,2,13,11],[14,2,14,11],[15,2,15,11],[21,2,21,11],[20,2,20,19],[16,2,16,19],[29,2,29,11],[30,2,30,11],[31,2,31,11],[32,2,32,11],[33,2,33,11],[34,2,34,11],[35,2,35,11],[36,0,37,0],[36,1,37,19],[38,1,38,7],[38,8,38,19],[39,2,39,11],[53,2,53,11],[54,2,54,11],[49,2,49,11],[50,2,50,11],[51,2,51,11],[52,2,52,11],[45,2,45,11],[46,2,46,11],[47,2,47,11],[48,2,48,11],[42,2,42,19],[40,2,40,19]]}
[]
[]
[null,"List of Competences"]
[]
[null,"BIM User",null,null,null,null,null,null,"Technical Design"]
[null,"N","Competence",null,null,null,null,null,null,null,null,null,"EQF Level"]
[null,"C0","Have basic BIM knowledge and skills",null,null,null,null,null,null,null,null,null,1,2,3,4,5,6,7,8]
[null,"C0.K1","BIM basic concepts, terminology, principles, strategies and its value proposition"]
[null,"C0.K2","Benefits and uses of BIM compared to traditional methods for improving energy efficiency of new or existing buildings"]
[null,"C0.K3","Project information development cycle: information specification, development, exchange and maintenance throughout all the building life cycle"]
[null,"C0.K4","Reasons for open and interoperable solutions to ensure collaboration among professionals of different disciplines"]
[null,"C0.K6","Relevance of maintenance for maintaing the foreseen energy performance"]
[null,"C0.S2","Read a Information Delivery Manual"]
[null,"C0.S3","Identify information requirements for his own role"]
[null,"C0.S5","Identify the EIR (Employer Information Requirements)"]
[null,"C0.S6","Identify and/or verify the stages of PIM (Project Information Management)"]
[null,"C2","Apply information management"]
[null,"C2.K2","Principle of data transferring among different software and/or data federating into an integrated design"]
[null,"C2.K4","Principle of information management in building sustainability and lean design"]
[null,"C2.S1","Manage and coordinate information related to energy performance"]
[null,"C3","Apply procurement management"]
[null,"C3.K2","Processes, methods and principles of decision-making on materials and products"]
[null,"C3.K3","Legal and technical aspects on green procurement, state and rules for using public funding and international good practices of energy performance contracting"]
[null,"C3.S3","List and collaborate with several stakeholders who participate in the sustainable project, distinguishing roles/needs and involving them in the information delivery plan preparation and management"]
[null,"C3.S5","Define building environmental impact as part of the contract"]
[null,"C3.S6","Include measureable Quality Analysis criteria as part of the contract"]
[]
[]
[]
[]
[]
[]
[]
[]
[]
[]
[null,"List of Competences"]
[]
[null,"BIM User",null,null,null,null,null,null,"Technical Design"]
[null,"N","Competence",null,null,null,null,null,null,null,null,null,"EQF Level"]
[null,"C4","Use BIM technology"]
[null,"C4.K5","Principles and systems of sustainable buildings, including renewable energy production"]
[null,"C5","Analyse the BIM Model"]
[null,"C5.S6","Use BIM models to communicate installation instructions"]

{"sheet":"MAN6","index":32,"n_rows":76,"n_cols":20,"rows_kept":76,"cut":false,"hidden":false,"merged":[[80,2,80,11],[77,2,77,11],[78,2,78,11],[79,2,79,11],[81,2,81,11],[21,2,21,11],[22,2,22,11],[23,2,23,11],[48,2,48,11],[27,2,27,11],[28,2,28,11],[32,2,32,11],[33,2,33,11],[34,2,34,11],[53,2,53,11],[41,2,41,11],[36,1,37,19],[40,2,40,11],[2,0,3,0],[2,1,3,19],[4,1,4,7],[4,8,4,19],[19,15,19,19],[19,2,19,11],[5,2,5,11],[6,2,6,11],[17,2,17,11],[7,2,7,11],[8,2,8,11],[9,2,9,11],[10,2,10,11],[11,2,11,11],[12,2,12,11],[13,2,13,11],[14,2,14,11],[15,2,15,11],[16,2,16,11],[103,2,103,11],[83,2,83,11],[84,2,84,11],[85,2,85,11],[88,2,88,11],[95,2,95,11],[96,2,96,11],[97,2,97,11],[98,2,98,11],[99,2,99,11],[90,2,90,11],[91,2,91,11],[93,2,93,11],[94,2,94,11],[92,2,92,11],[87,2,87,11],[36,0,37,0],[42,2,42,11],[43,2,43,11],[49,2,49,11],[50,2,50,11],[75,2,75,11],[82,2,82,11],[72,1,72,7],[76,2,76,11],[26,2,26,11],[100,2,100,11],[101,2,101,11],[102,2,102,11],[35,2,35,11],[38,1,38,7],[38,8,38,19],[39,2,39,11],[86,2,86,11],[89,2,89,11],[58,2,58,11],[74,2,74,11],[60,2,60,11],[56,2,56,11],[59,2,59,11],[69,2,69,11],[72,8,72,19],[73,2,73,11],[66,2,66,11],[18,2,18,11],[44,2,44,11],[47,2,47,11],[51,2,51,11],[54,2,54,11],[22,15,22,19],[24,2,24,11],[25,2,25,11],[29,2,29,11],[30,2,30,11],[70,0,71,0],[70,1,71,19],[61,2,61,11],[62,2,62,11],[63,2,63,11],[64,2,64,11],[65,2,65,11],[67,2,67,11],[68,2,68,11],[5,12,5,19],[73,12,73,19],[57,2,57,19],[45,2,45,19],[55,2,55,19],[39,12,39,19],[31,2,31,11],[20,2,20,11],[46,2,46,11],[52,2,52,11]]}
[]
[]
[null,"List of Competences"]
[]
[null,"BIM Manager",null,null,null,null,null,null,"Construction"]
[null,"N","Competence",null,null,null,null,null,null,null,null,null,"EQF Level"]
[null,"C0","Have basic BIM knowledge and skills",null,null,null,null,null,null,null,null,null,1,2,3,4,5,6,7,8]
[null,"C0.K1","BIM basic concepts, terminology, principles, strategies and its value proposition"]
[null,"C0.K2","Benefits and uses of BIM compared to traditional methods for improving energy efficiency of new or existing buildings"]
[null,"C0.K3","Project information development cycle: information specification, development, exchange and maintenance throughout all the building life cycle"]
[null,"C0.K4","Reasons for open and interoperable solutions to ensure collaboration among professionals of different disciplines"]
[null,"C0.K5","Methodology to identify, plan, develop and evaluate organization's BIM implementation capabilities and BIM uses"]
[null,"C0.K6","Relevance of maintenance for maintaing the foreseen energy performance"]
[null,"C0.S1","Read a BIM Execution Plan (BEP)"]
[null,"C0.S2","Read a Information Delivery Manual"]
[null,"C0.S3","Identify information requirements for his own role"]
[null,"C0.S4","Identify the format to read information and transfer information within the supply chain"]
[null,"C0.S5","Identify the EIR (Employer Information Requirements)"]
[null,"C0.S6","Identify and/or verify the stages of PIM (Project Information Management)"]
[null,"C1","Understand BIM tools"]
[null,"C1.S1","Specialised skills to incorporate information into BIM Model, evaluating openBIM software"]
[null,"C1.S2","Stay up to date on BIM trends, current developments and new directions of BIM technologies"]
[null,"C2","Apply information management"]
[null,"C2.K1","Principle of data mining, data base and back up in the CDE (Common Data Environment)"]
[null,"C2.K2","Principle of data transferring among different software and/or data federating into an integrated design"]
[null,"C2.K3","Principle of data security and administrative law in the archiving of data in a CDE (Common Data Environment)      "]
[]
[]
[]
[]
[]
[]
[]
[]
[]
[]
[null,"List of Competences"]
[]
[null,"BIM Manager",null,null,null,null,null,null,"Construction"]
[null,"N","Competence",null,null,null,null,null,null,null,null,null,"EQF Level",null,null,"Level"]
[null,"C2.K4","Principle of information management in building sustainability and lean design"]
[null,"C2.S1","Manage and coordinate information related to energy performance"]
[null,"C2.S3","Archive the model ensuring that the information provided is kept intact and not manipulated for any future use"]
[null,"C2.S7","Identify requirements for the management of data in the CDE (Common Data Environment) for any professionals involved in the process"]
[null,"C2.S8","Transfer building information using BIM to facility managers and final users"]
[null,"C3","Apply procurement management"]
[null,"C3.K1","Processes, methods and principles of decision-making on procuring services and suppliers"]
[null,"C3.K2","Processes, methods and principles of decision-making on materials and products"]
[null,"C3.K3","Legal and technical aspects on green procurement, state and rules for using public funding and international good practices of energy performance contracting"]
[null,"C3.K4","Strategies for training programs to increase energy efficiency with the support of BIM"]
[null,"C3.S1","Select or evaluate selected companies with experience in the technologies defined"]
[null,"C3.S2","Select products that fit specifications and demands on given quality aspects making financial calculation related to contracting phase"]
[null,"C3.S3","List and collaborate with several stakeholders who participate in the sustainable project, distinguishing roles/needs and involving them in the information delivery plan preparation and management"]
[null,"C3.S4","Apply change management, identifying and handling deviations / breach of the contract with particular guarantees"]
[null,"C3.S5","Negotiate and take necessary legal steps if the contractual requirements were not met"]
[null,"C4","Use BIM technology"]
[null,"C4.K3","Principle of planning and scheduling for BEP (BIM Execution Plan)"]
[null,"C5","Analyse the BIM Model"]
[null,"C5.K1","Principle of global environmental impact of different building products and technologies (RES use, insulation, HVAC systems and building automation systems)"]
[null,"C5.K3","Principle of integrated design and data transferring, with particular knowledge of IFC (Industry Foundation Classes) structure using international standard"]
[]
[]
[]
[]
[]
[]
[]
[]
[]
[]
[null,"List of Competences"]
[]
[null,"BIM Manager",null,null,null,null,null,null,"Construction"]
[null,"N","Competence",null,null,null,null,null,null,null,null,null,"EQF Level"]
[null,"C5.S5","Use BIM to assure the technical supervision of construction works"]
[null,"C5.S6","Use BIM models to communicate installation instructions"]

{"sheet":"COO6","index":33,"n_rows":84,"n_cols":20,"rows_kept":84,"cut":false,"hidden":false,"merged":[[91,2,91,11],[59,2,59,11],[77,2,77,11],[60,2,60,11],[61,2,61,11],[62,2,62,11],[63,2,63,11],[90,2,90,11],[78,2,78,11],[79,2,79,11],[80,2,80,11],[85,2,85,11],[86,2,86,11],[82,2,82,11],[42,2,42,11],[52,2,52,11],[53,2,53,11],[54,2,54,11],[48,2,48,11],[49,2,49,11],[46,2,46,11],[45,2,45,11],[2,0,3,0],[2,1,3,19],[4,1,4,7],[4,8,4,19],[5,2,5,11],[5,12,5,19],[9,2,9,11],[10,2,10,11],[6,2,6,11],[11,2,11,11],[14,2,14,11],[15,2,15,11],[12,2,12,11],[13,2,13,11],[7,2,7,11],[8,2,8,11],[16,2,16,11],[17,2,17,11],[20,2,20,11],[18,2,18,11],[102,2,102,11],[84,2,84,11],[21,2,21,11],[74,2,74,11],[50,2,50,11],[51,2,51,11],[24,2,24,11],[38,1,38,7],[97,2,97,11],[94,2,94,11],[56,2,56,11],[58,2,58,11],[64,2,64,11],[96,2,96,11],[40,2,40,11],[41,2,41,11],[87,2,87,11],[88,2,88,11],[89,2,89,11],[95,2,95,11],[75,2,75,11],[57,2,57,11],[92,2,92,11],[93,2,93,11],[81,2,81,11],[83,2,83,11],[44,2,44,11],[32,2,32,11],[33,2,33,11],[34,2,34,11],[35,2,35,11],[103,2,103,11],[98,2,98,11],[99,2,99,11],[100,2,100,11],[101,2,101,11],[25,2,25,11],[43,2,43,11],[27,2,27,11],[28,2,28,11],[29,2,29,11],[30,2,30,11],[38,8,38,19],[39,2,39,11],[39,15,39,19],[31,2,31,11],[23,2,23,11],[26,2,26,11],[70,0,71,0],[70,1,71,19],[19,2,19,19],[22,2,22,19],[47,2,47,19],[55,2,55,19],[36,0,37,0],[36,1,37,19],[76,2,76,19],[73,12,73,19],[72,1,72,7],[72,8,72,19],[73,2,73,11],[65,2,65,11],[66,2,66,11],[67,2,67,11],[68,2,68,11],[69,2,69,11]]}
[]
[]
[null,"List of Competences"]
[]
[null,"BIM Coordinator",null,null,null,null,null,null,"Construction"]
[null,"N","Competence",null,null,null,null,null,null,null,null,null,"EQF Level"]
[null,"C0","Have basic BIM knowledge and skills",null,null,null,null,null,null,null,null,null,1,2,3,4,5,6,7,8]
[null,"C0.K1","BIM basic concepts, terminology, principles, strategies and its value proposition"]
[null,"C0.K2","Benefits and uses of BIM compared to traditional methods for improving energy efficiency of new or existing buildings"]
[null,"C0.K3","Project information development cycle: information specification, development, exchange and maintenance throughout all the building life cycle"]
[null,"C0.K4","Reasons for open and interoperable solutions to ensure collaboration among professionals of different disciplines"]
[null,"C0.K5","Methodology to identify, plan, develop and evaluate organization's BIM implementation capabilities and BIM uses"]
[null,"C0.K6","Relevance of maintenance for maintaing the foreseen energy performance"]
[null,"C0.S1","Read a BIM Execution Plan (BEP)"]
[null,"C0.S2","Read a Information Delivery Manual"]
[null,"C0.S3","Identify information requirements for his own role"]
[null,"C0.S4","Identify the format to read information and transfer information within the supply chain"]
[null,"C0.S5","Identify the EIR (Employer Information Requirements)"]
[null,"C0.S6","Identify and/or verify the stages of PIM (Project Information Management)"]
[null,"C1","Understand BIM tools"]
[null,"C1.S1","Specialised skills to incorporate information into BIM Model, evaluating openBIM software"]
[null,"C1.S2","Stay up to date on BIM trends, current developments and new directions of BIM technologies"]
[null,"C2","Apply information management"]
[null,"C2.K1","Principle of data mining, data base and back up in the CDE (Common Data Environment)"]
[null,"C2.K2","Principle of data transferring among different software and/or data federating into an integrated design"]
[null,"C2.K3","Principle of data security and administrative law in the archiving of data in a CDE (Common Data Environment)      "]
[]
[]
[]
[]
[]
[]
[]
[]
[]
[]
[null,"List of Competences"]
[]
[null,"BIM Coordinator",null,null,null,null,null,null,"Construction"]
[null,"N","Competence",null,null,null,null,null,null,null,null,null,null,null,null,"Level"]
[null,"C2.K4","Principle of information management in building sustainability and lean design"]
[null,"C2.S1","Manage and coordinate information related to energy performance"]
[null,"C2.S2","Identify which graphic and/or non-graphic information are necessary for a better management of works and for define the completeness of the Information Delivery Plan in relation to energy performance"]
[null,"C2.S3","Archive the model ensuring that the information provided is kept intact and not manipulated for any future use"]
[null,"C2.S7","Identify requirements for the management of data in the CDE (Common Data Environment) for any professionals involved in the process"]
[null,"C2.S8","Transfer building information using BIM to facility managers and final users"]
[null,"C2.S9","Ensure that construction process and product information is transferred into BIM Model / Technical Specifications and provide status of works when request"]
[null,"C3","Apply procurement management"]
[null,"C3.K1","Processes, methods and principles of decision-making on procuring services and suppliers"]
[null,"C3.K2","Processes, methods and principles of decision-making on materials and products"]
[null,"C3.K3","Legal and technical aspects on green procurement, state and rules for using public funding and international good practices of energy performance contracting"]
[null,"C3.K4","Strategies for training programs to increase energy efficiency with the support of BIM"]
[null,"C3.S1","Select or evaluate selected companies with experience in the technologies defined"]
[null,"C3.S2","Select products that fit specifications and demands on given quality aspects making financial calculation related to contracting phase"]
[null,"C3.S3","List and collaborate with several stakeholders who participate in the sustainable project, distinguishing roles/needs and involving them in the information delivery plan preparation and management"]
[null,"C4","Use BIM technology"]
[null,"C4.K1","Techniques and principles of integrated digital production and rendering"]
[null,"C4.K3","Principle of planning and scheduling for BEP (BIM Execution Plan)"]
[null,"C4.K6","Design techniques for different scenarios for new resilient buildings to future climate changes and for the refurbishment of existing buildings"]
[null,"C4.K7","Techniques of automatic code checking and management of software e-permit"]
[]
[]
[]
[]
[]
[]
[]
[]
[]
[]
[null,"List of Competences"]
[]
[null,"BIM Coordinator",null,null,null,null,null,null,"Construction"]
[null,"N","Competence",null,null,null,null,null,null,null,null,null,"EQF Level",null,null,"Level"]
[null,"C4.S3","Develop site utilization planning, set-up organized management systems, tack the effectiveness distribution of appropriate spaces and related resources"]
[null,"C4.S5","Use BIM enabled simulation techniques to reduce the environmental impact"]
[null,"C5","Analyse the BIM Model"]
[null,"C5.K1","Principle of global environmental impact of different building products and technologies (RES use, insulation, HVAC systems and building automation systems)"]
[null,"C5.K3","Principle of integrated design and data transferring, with particular knowledge of IFC (Industry Foundation Classes) structure using international standard"]
[null,"C5.S1","Coordinate the work of different disciplines in order to obtain a consolidate BIM model that satisfy all the requirements"]
[null,"C5.S2","Apply Quality Management and coordinate team members of different disciplines"]
[null,"C5.S4","Validate BIM Model"]
[null,"C5.S5","Use BIM to assure the technical supervision of construction works"]
[null,"C5.S6","Use BIM models to communicate installation instructions"]

{"sheet":"MOD6","index":34,"n_rows":55,"n_cols":20,"rows_kept":55,"cut":false,"hidden":false,"merged":[[62,2,62,11],[63,2,63,11],[44,2,44,11],[45,2,45,11],[46,2,46,11],[48,2,48,11],[49,2,49,11],[50,2,50,11],[52,2,52,11],[68,2,68,11],[54,2,54,11],[59,2,59,11],[53,2,53,11],[57,2,57,11],[58,2,58,11],[56,2,56,11],[55,2,55,11],[60,2,60,11],[61,2,61,11],[2,0,3,0],[2,1,3,19],[4,1,4,7],[4,8,4,19],[5,2,5,11],[69,2,69,11],[64,2,64,11],[65,2,65,11],[67,2,67,11],[66,2,66,11],[6,2,6,11],[7,2,7,11],[8,2,8,11],[9,2,9,11],[10,2,10,11],[51,2,51,19],[11,2,11,11],[12,2,12,11],[13,2,13,11],[14,2,14,11],[15,2,15,11],[16,2,16,11],[25,2,25,11],[22,2,22,11],[23,2,23,11],[31,2,31,11],[17,2,17,11],[18,2,18,11],[20,2,20,11],[24,2,24,11],[34,2,34,11],[35,2,35,11],[26,2,26,11],[27,2,27,11],[28,2,28,11],[29,2,29,11],[30,2,30,11],[36,0,37,0],[36,1,37,19],[38,1,38,7],[38,8,38,19],[39,2,39,11],[43,2,43,11],[5,12,5,19],[19,2,19,19],[21,2,21,19],[42,2,42,19],[47,2,47,19],[39,12,39,19],[41,2,41,11],[40,2,40,11],[32,2,32,11],[33,2,33,11]]}
[]
[]
[null,"List of Competences"]
[]
[null,"BIM Model Evaluator",null,null,null,null,null,null,"Construction"]
[null,"N","Competence",null,null,null,null,null,null,null,null,null,"EQF Level"]
[null,"C0","Have basic BIM knowledge and skills",null,null,null,null,null,null,null,null,null,1,2,3,4,5,6,7,8]
[null,"C0.K1","BIM basic concepts, terminology, principles, strategies and its value proposition"]
[null,"C0.K2","Benefits and uses of BIM compared to traditional methods for improving energy efficiency of new or existing buildings"]
[null,"C0.K3","Project information development cycle: information specification, development, exchange and maintenance throughout all the building life cycle"]
[null,"C0.K4","Reasons for open and interoperable solutions to ensure collaboration among professionals of different disciplines"]
[null,"C0.K5","Methodology to identify, plan, develop and evaluate organization's BIM implementation capabilities and BIM uses"]
[null,"C0.K6","Relevance of maintenance for maintaing the foreseen energy performance"]
[null,"C0.S1","Read a BIM Execution Plan (BEP)"]
[null,"C0.S2","Read a Information Delivery Manual"]
[null,"C0.S3","Identify information requirements for his own role"]
[null,"C0.S4","Identify the format to read information and transfer information within the supply chain"]
[null,"C0.S5","Identify the EIR (Employer Information Requirements)"]
[null,"C0.S6","Identify and/or verify the stages of PIM (Project Information Management)"]
[null,"C1","Understand BIM tools"]
[null,"C1.S2","Stay up to date on BIM trends, current developments and new directions of BIM technologies"]
[null,"C2","Apply information management"]
[null,"C2.K1","Principle of data mining, data base and back up in the CDE (Common Data Environment)"]
[null,"C2.K3","Principle of data security and administrative law in the archiving of data in a CDE (Common Data Environment)      "]
[null,"C2.K4","Principle of information management in building sustainability and lean design"]
[null,"C2.S2","Identify which graphic and/or non-graphic information are necessary for a better management of works and for define the completeness of the Information Delivery Plan in relation to energy performance"]
[]
[]
[]
[]
[]
[]
[]
[]
[]
[]
[null,"List of Competences"]
[]
[null,"BIM Model Evaluator",null,null,null,null,null,null,"Construction"]
[null,"N","Competence",null,null,null,null,null,null,null,null,null,"EQF Level",null,null,"Level"]
[null,"C2.S3","Archive the model ensuring that the information provided is kept intact and not manipulated for any future use"]
[null,"C2.S7","Identify requirements for the management of data in the CDE (Common Data Environment) for any professionals involved in the process"]
[null,"C3","Apply procurement management"]
[null,"C3.K1","Processes, methods and principles of decision-making on procuring services and suppliers"]
[null,"C3.K2","Processes, methods and principles of decision-making on materials and products"]
[null,"C3.K3","Legal and technical aspects on green procurement, state and rules for using public funding and international good practices of energy performance contracting"]
[null,"C3.S5","Define building environmental impact as part of the contract"]
[null,"C4","Use BIM technology"]
[null,"C4.K3","Principle of planning and scheduling for BEP (BIM Execution Plan)"]
[null,"C4.K7","Techniques of automatic code checking and management of software e-permit"]
[null,"C4.S8","Produce a visualization design in order to report back to costumers, users and reviewers"]
[null,"C5","Analyse the BIM Model"]
[null,"C5.K1","Principle of global environmental impact of different building products and technologies (RES use, insulation, HVAC systems and building automation systems)"]
[null,"C5.K3","Principle of integrated design and data transferring, with particular knowledge of IFC (Industry Foundation Classes) structure using international standard"]
[null,"C5.S4","Validate BIM Model"]

{"sheet":"SPE6","index":35,"n_rows":56,"n_cols":20,"rows_kept":56,"cut":false,"hidden":false,"merged":[[67,2,67,11],[68,2,68,11],[69,2,69,11],[5,2,5,11],[62,2,62,11],[63,2,63,11],[64,2,64,11],[65,2,65,11],[66,2,66,11],[46,2,46,11],[61,2,61,11],[25,2,25,11],[24,2,24,11],[48,2,48,11],[34,2,34,11],[35,2,35,11],[58,2,58,11],[59,2,59,11],[56,2,56,11],[29,2,29,11],[43,2,43,11],[41,2,41,19],[40,2,40,11],[44,2,44,19],[60,2,60,11],[10,2,10,11],[11,2,11,11],[39,12,39,19],[47,2,47,11],[45,2,45,11],[28,2,28,11],[30,2,30,11],[31,2,31,11],[12,2,12,11],[14,2,14,11],[2,0,3,0],[2,1,3,19],[4,1,4,7],[4,8,4,19],[13,2,13,11],[5,12,5,19],[6,2,6,11],[7,2,7,11],[8,2,8,11],[9,2,9,11],[19,2,19,19],[18,2,18,11],[55,2,55,11],[42,2,42,11],[52,2,52,11],[53,2,53,11],[51,2,51,19],[49,2,49,11],[50,2,50,11],[23,2,23,11],[15,2,15,11],[16,2,16,11],[17,2,17,11],[32,2,32,11],[33,2,33,11],[26,2,26,11],[27,2,27,11],[22,2,22,19],[20,2,20,11],[21,2,21,11],[57,2,57,11],[36,0,37,0],[36,1,37,19],[38,1,38,7],[38,8,38,19],[39,2,39,11],[54,2,54,11]]}
[]
[]
[null,"List of Competences"]
[]
[null,"BIM Specialist-Expert",null,null,null,null,null,null,"Construction"]
[null,"N","Competence",null,null,null,null,null,null,null,null,null,"EQF Level"]
[null,"C0","Have basic BIM knowledge and skills",null,null,null,null,null,null,null,null,null,1,2,3,4,5,6,7,8]
[null,"C0.K1","BIM basic concepts, terminology, principles, strategies and its value proposition"]
[null,"C0.K2","Benefits and uses of BIM compared to traditional methods for improving energy efficiency of new or existing buildings"]
[null,"C0.K3","Project information development cycle: information specification, development, exchange and maintenance throughout all the building life cycle"]
[null,"C0.K4","Reasons for open and interoperable solutions to ensure collaboration among professionals of different disciplines"]
[null,"C0.K5","Methodology to identify, plan, develop and evaluate organization's BIM implementation capabilities and BIM uses"]
[null,"C0.K6","Relevance of maintenance for maintaing the foreseen energy performance"]
[null,"C0.S1","Read a BIM Execution Plan (BEP)"]
[null,"C0.S2","Read a Information Delivery Manual"]
[null,"C0.S3","Identify information requirements for his own role"]
[null,"C0.S4","Identify the format to read information and transfer information within the supply chain"]
[null,"C0.S5","Identify the EIR (Employer Information Requirements)"]
[null,"C0.S6","Identify and/or verify the stages of PIM (Project Information Management)"]
[null,"C1","Understand BIM tools"]
[null,"C1.S1","Specialised skills to incorporate information into BIM Model, evaluating openBIM software"]
[null,"C1.S2","Stay up to date on BIM trends, current developments and new directions of BIM technologies"]
[null,"C2","Apply information management"]
[null,"C2.K2","Principle of data transferring among different software and/or data federating into an integrated design"]
[null,"C2.K3","Principle of data security and administrative law in the archiving of data in a CDE (Common Data Environment)      "]
[null,"C2.K4","Principle of information management in building sustainability and lean design"]
[]
[]
[]
[]
[]
[]
[]
[]
[]
[]
[null,"List of Competences"]
[]
[null,"BIM Specialist-Expert",null,null,null,null,null,null,"Construction"]
[null,"N","Competence",null,null,null,null,null,null,null,null,null,"EQF Level",null,null,"Level"]
[null,"C2.S2","Identify which graphic and/or non-graphic information are necessary for a better management of works and for define the completeness of the Information Delivery Plan in relation to energy performance"]
[null,"C3","Apply procurement management"]
[null,"C3.K3","Legal and technical aspects on green procurement, state and rules for using public funding and international good practices of energy performance contracting"]
[null,"C3.S3","List and collaborate with several stakeholders who participate in the sustainable project, distinguishing roles/needs and involving them in the information delivery plan preparation and management"]
[null,"C4","Use BIM technology"]
[null,"C4.K1","Techniques and principles of integrated digital production and rendering"]
[null,"C4.K6","Design techniques for different scenarios for new resilient buildings to future climate changes and for the refurbishment of existing buildings"]
[null,"C4.K7","Techniques of automatic code checking and management of software e-permit"]
[null,"C4.S3","Develop site utilization planning, set-up organized management systems, tack the effectiveness distribution of appropriate spaces and related resources"]
[null,"C4.S4","Use laser scanning in order to produce a point of cloud of existing buildings, comparing and evaluating facilities and related systems"]
[null,"C4.S5","Use BIM enabled simulation techniques to reduce the environmental impact"]
[null,"C5","Analyse the BIM Model"]
[null,"C5.K1","Principle of global environmental impact of different building products and technologies (RES use, insulation, HVAC systems and building automation systems)"]
[null,"C5.K3","Principle of integrated design and data transferring, with particular knowledge of IFC (Industry Foundation Classes) structure using international standard"]
[null,"C5.S4","Validate BIM Model"]
[null,"C5.S6","Use BIM models to communicate installation instructions"]

{"sheet":"USE6","index":36,"n_rows":43,"n_cols":20,"rows_kept":43,"cut":false,"hidden":false,"merged":[[5,2,5,11],[62,2,62,11],[63,2,63,11],[64,2,64,11],[65,2,65,11],[66,2,66,11],[42,2,42,11],[28,2,28,11],[11,2,11,11],[9,2,9,11],[10,2,10,11],[12,2,12,11],[68,2,68,11],[69,2,69,11],[51,2,51,11],[52,2,52,11],[53,2,53,11],[24,2,24,11],[40,2,40,11],[27,2,27,11],[67,2,67,11],[59,2,59,11],[60,2,60,11],[61,2,61,11],[54,2,54,11],[55,2,55,11],[57,2,57,11],[58,2,58,11],[56,2,56,11],[38,1,38,7],[38,8,38,19],[39,2,39,11],[29,2,29,11],[30,2,30,11],[31,2,31,11],[32,2,32,11],[48,2,48,11],[49,2,49,11],[50,2,50,11],[43,2,43,11],[46,2,46,11],[47,2,47,11],[25,2,25,11],[17,2,17,11],[18,2,18,11],[19,2,19,11],[44,2,44,11],[45,2,45,11],[33,2,33,11],[34,2,34,11],[35,2,35,11],[26,2,26,11],[36,0,37,0],[36,1,37,19],[20,2,20,11],[2,0,3,0],[2,1,3,19],[4,1,4,7],[4,8,4,19],[7,2,7,11],[8,2,8,11],[23,2,23,11],[5,12,5,19],[41,2,41,19],[21,2,21,19],[16,2,16,19],[39,12,39,19],[13,2,13,11],[14,2,14,11],[15,2,15,11],[22,2,22,11],[6,2,6,11]]}
[]
[]
[null,"List of Competences"]
[]
[null,"BIM User",null,null,null,null,null,null,"Construction"]
[null,"N","Competence",null,null,null,null,null,null,null,null,null,"EQF Level"]
[null,"C0","Have basic BIM knowledge and skills",null,null,null,null,null,null,null,null,null,1,2,3,4,5,6,7,8]
[null,"C0.K1","BIM basic concepts, terminology, principles, strategies and its value proposition"]
[null,"C0.K2","Benefits and uses of BIM compared to traditional methods for improving energy efficiency of new or existing buildings"]
[null,"C0.K3","Project information development cycle: information specification, development, exchange and maintenance throughout all the building life cycle"]
[null,"C0.K4","Reasons for open and interoperable solutions to ensure collaboration among professionals of different disciplines"]
[null,"C0.K6","Relevance of maintenance for maintaing the foreseen energy performance"]
[null,"C0.S2","Read a Information Delivery Manual"]
[null,"C0.S3","Identify information requirements for his own role"]
[null,"C0.S5","Identify the EIR (Employer Information Requirements)"]
[null,"C0.S6","Identify and/or verify the stages of PIM (Project Information Management)"]
[null,"C2","Apply information management"]
[null,"C2.K2","Principle of data transferring among different software and/or data federating into an integrated design"]
[null,"C2.K4","Principle of information management in building sustainability and lean design"]
[null,"C2.S1","Manage and coordinate information related to energy performance"]
[null,"C2.S9","Ensure that construction process and product information is transferred into BIM Model / Technical Specifications and provide status of works when request"]
[null,"C3","Apply procurement management"]
[null,"C3.K2","Processes, methods and principles of decision-making on materials and products"]
[null,"C3.K3","Legal and technical aspects on green procurement, state and rules for using public funding and international good practices of energy performance contracting"]
[null,"C3.S3","List and collaborate with several stakeholders who participate in the sustainable project, distinguishing roles/needs and involving them in the information delivery plan preparation and management"]
[null,"C3.S4","Apply change management, identifying and handling deviations / breach of the contract with particular guarantees"]
[]
[]
[]
[]
[]
[]
[]
[]
[]
[]
[null,"List of Competences"]
[]
[null,"BIM User",null,null,null,null,null,null,"Construction"]
[null,"N","Competence",null,null,null,null,null,null,null,null,null,"EQF Level",null,null,"Level"]
[null,"C3.S5","Define building environmental impact as part of the contract"]
[null,"C5","Analyse the BIM Model"]
[null,"C5.S6","Use BIM models to communicate installation instructions"]

{"sheet":"MAN7","index":37,"n_rows":57,"n_cols":20,"rows_kept":57,"cut":false,"hidden":false,"merged":[[21,2,21,11],[61,2,61,11],[62,2,62,11],[52,2,52,11],[55,2,55,11],[57,2,57,11],[58,2,58,11],[59,2,59,11],[22,2,22,19],[43,2,43,11],[2,0,3,0],[2,1,3,19],[4,1,4,7],[4,8,4,19],[5,2,5,11],[5,12,5,19],[69,2,69,11],[68,2,68,11],[48,2,48,11],[49,2,49,11],[56,2,56,11],[50,2,50,11],[51,2,51,11],[63,2,63,11],[64,2,64,11],[65,2,65,11],[66,2,66,11],[67,2,67,11],[60,2,60,11],[6,2,6,11],[7,2,7,11],[8,2,8,11],[9,2,9,11],[10,2,10,11],[53,2,53,19],[47,2,47,19],[19,2,19,19],[20,2,20,11],[11,2,11,11],[12,2,12,11],[13,2,13,11],[14,2,14,11],[15,2,15,11],[16,2,16,11],[17,2,17,11],[18,2,18,11],[23,2,23,11],[24,2,24,11],[25,2,25,11],[40,2,40,11],[41,2,41,11],[42,2,42,11],[34,2,34,11],[35,2,35,11],[46,2,46,11],[54,2,54,11],[26,2,26,11],[27,2,27,11],[28,2,28,11],[29,2,29,11],[30,2,30,11],[31,2,31,11],[32,2,32,11],[33,2,33,11],[45,2,45,11],[44,2,44,11],[36,0,37,0],[36,1,37,19],[38,1,38,7],[38,8,38,19],[39,2,39,11],[39,12,39,19]]}
[]
[]
[null,"List of Competences"]
[]
[null,"BIM Manager",null,null,null,null,null,null,"Handover and Close Out"]
[null,"N","Competence",null,null,null,null,null,null,null,null,null,"EQF Level"]
[null,"C0","Have basic BIM knowledge and skills",null,null,null,null,null,null,null,null,null,1,2,3,4,5,6,7,8]
[null,"C0.K1","BIM basic concepts, terminology, principles, strategies and its value proposition"]
[null,"C0.K2","Benefits and uses of BIM compared to traditional methods for improving energy efficiency of new or existing buildings"]
[null,"C0.K3","Project information development cycle: information specification, development, exchange and maintenance throughout all the building life cycle"]
[null,"C0.K4","Reasons for open and interoperable solutions to ensure collaboration among professionals of different disciplines"]
[null,"C0.K5","Methodology to identify, plan, develop and evaluate organization's BIM implementation capabilities and BIM uses"]
[null,"C0.K6","Relevance of maintenance for maintaing the foreseen energy performance"]
[null,"C0.S1","Read a BIM Execution Plan (BEP)"]
[null,"C0.S2","Read a Information Delivery Manual"]
[null,"C0.S3","Identify information requirements for his own role"]
[null,"C0.S4","Identify the format to read information and transfer information within the supply chain"]
[null,"C0.S5","Identify the EIR (Employer Information Requirements)"]
[null,"C0.S6","Identify and/or verify the stages of PIM (Project Information Management)"]
[null,"C1","Understand BIM tools"]
[null,"C1.S1","Specialised skills to incorporate information into BIM Model, evaluating openBIM software"]
[null,"C1.S2","Stay up to date on BIM trends, current developments and new directions of BIM technologies"]
[null,"C2","Apply information management"]
[null,"C2.K1","Principle of data mining, data base and back up in the CDE (Common Data Environment)"]
[null,"C2.K2","Principle of data transferring among different software and/or data federating into an integrated design"]
[null,"C2.K3","Principle of data security and administrative law in the archiving of data in a CDE (Common Data Environment)      "]
[]
[]
[]
[]
[]
[]
[]
[]
[]
[]
[null,"List of Competences"]
[]
[null,"BIM Manager",null,null,null,null,null,null,"Handover and Close Out"]
[null,"N","Competence",null,null,null,null,null,null,null,null,null,"EQF Level",null,null,"Level"]
[null,"C2.K4","Principle of information management in building sustainability and lean design"]
[null,"C2.S1","Manage and coordinate information related to energy performance"]
[null,"C2.S3","Archive the model ensuring that the information provided is kept intact and not manipulated for any future use"]
[null,"C2.S5","Evaluate the completeness of the handover strategy"]
[null,"C2.S6","Verify the correspondence between the \"as built\" and the final BIM model"]
[null,"C2.S7","Identify requirements for the management of data in the CDE (Common Data Environment) for any professionals involved in the process"]
[null,"C2.S8","Transfer building information using BIM to facility managers and final users"]
[null,"C3","Apply procurement management"]
[null,"C3.K3","Legal and technical aspects on green procurement, state and rules for using public funding and international good practices of energy performance contracting"]
[null,"C3.K4","Strategies for training programs to increase energy efficiency with the support of BIM"]
[null,"C3.S3","List and collaborate with several stakeholders who participate in the sustainable project, distinguishing roles/needs and involving them in the information delivery plan preparation and management"]
[null,"C3.S4","Apply change management, identifying and handling deviations / breach of the contract with particular guarantees"]
[null,"C3.S5","Negotiate and take necessary legal steps if the contractual requirements were not met"]
[null,"C5","Analyse the BIM Model"]
[null,"C5.K1","Principle of global environmental impact of different building products and technologies (RES use, insulation, HVAC systems and building automation systems)"]
[null,"C5.K3","Principle of integrated design and data transferring, with particular knowledge of IFC (Industry Foundation Classes) structure using international standard"]
[null,"C5.S6","Use BIM models to communicate installation instructions"]

{"sheet":"COO7","index":38,"n_rows":77,"n_cols":20,"rows_kept":77,"cut":false,"hidden":false,"merged":[[23,2,23,11],[40,2,40,11],[41,2,41,11],[42,2,42,11],[47,2,47,11],[45,2,45,11],[43,2,43,11],[28,2,28,11],[29,2,29,11],[27,2,27,11],[2,0,3,0],[2,1,3,19],[4,1,4,7],[4,8,4,19],[5,2,5,11],[24,2,24,11],[14,2,14,11],[5,12,5,19],[22,2,22,19],[19,2,19,19],[20,2,20,11],[21,2,21,11],[35,2,35,11],[31,2,31,11],[32,2,32,11],[46,2,46,11],[33,2,33,11],[34,2,34,11],[30,2,30,11],[26,2,26,11],[39,15,39,19],[56,2,56,11],[53,2,53,11],[54,2,54,11],[55,2,55,11],[52,2,52,19],[51,2,51,11],[49,2,49,11],[66,2,66,11],[67,2,67,11],[36,0,37,0],[36,1,37,19],[38,1,38,7],[38,8,38,19],[39,2,39,11],[50,2,50,11],[48,2,48,19],[44,2,44,11],[60,2,60,11],[61,2,61,11],[62,2,62,11],[63,2,63,11],[64,2,64,11],[65,2,65,11],[100,2,100,11],[101,2,101,11],[102,2,102,11],[103,2,103,11],[94,2,94,11],[95,2,95,11],[96,2,96,11],[97,2,97,11],[98,2,98,11],[99,2,99,11],[6,2,6,11],[7,2,7,11],[8,2,8,11],[9,2,9,11],[88,2,88,11],[89,2,89,11],[87,2,87,11],[86,2,86,11],[68,2,68,11],[76,2,76,11],[82,2,82,11],[91,2,91,11],[92,2,92,11],[93,2,93,11],[90,2,90,11],[83,2,83,11],[84,2,84,11],[85,2,85,11],[75,2,75,11],[15,2,15,11],[16,2,16,11],[17,2,17,11],[18,2,18,11],[57,2,57,19],[25,2,25,11],[69,2,69,11],[59,2,59,11],[74,2,74,11],[70,0,71,0],[70,1,71,19],[72,1,72,7],[72,8,72,19],[73,2,73,11],[73,12,73,19],[10,2,10,11],[11,2,11,11],[12,2,12,11],[13,2,13,11],[80,2,80,11],[81,2,81,11],[79,2,79,11],[77,2,77,11],[78,2,78,11],[58,2,58,11]]}
[]
[]
[null,"List of Competences"]
[]
[null,"BIM Coordinator",null,null,null,null,null,null,"Handover and Close Out"]
[null,"N","Competence",null,null,null,null,null,null,null,null,null,"EQF Level"]
[null,"C0","Have basic BIM knowledge and skills",null,null,null,null,null,null,null,null,null,1,2,3,4,5,6,7,8]
[null,"C0.K1","BIM basic concepts, terminology, principles, strategies and its value proposition"]
[null,"C0.K2","Benefits and uses of BIM compared to traditional methods for improving energy efficiency of new or existing buildings"]
[null,"C0.K3","Project information development cycle: information specification, development, exchange and maintenance throughout all the building life cycle"]
[null,"C0.K4","Reasons for open and interoperable solutions to ensure collaboration among professionals of different disciplines"]
[null,"C0.K5","Methodology to identify, plan, develop and evaluate organization's BIM implementation capabilities and BIM uses"]
[null,"C0.K6","Relevance of maintenance for maintaing the foreseen energy performance"]
[null,"C0.S1","Read a BIM Execution Plan (BEP)"]
[null,"C0.S2","Read a Information Delivery Manual"]
[null,"C0.S3","Identify information requirements for his own role"]
[null,"C0.S4","Identify the format to read information and transfer information within the supply chain"]
[null,"C0.S5","Identify the EIR (Employer Information Requirements)"]
[null,"C0.S6","Identify and/or verify the stages of PIM (Project Information Management)"]
[null,"C1","Understand BIM tools"]
[null,"C1.S1","Specialised skills to incorporate information into BIM Model, evaluating openBIM software"]
[null,"C1.S2","Stay up to date on BIM trends, current developments and new directions of BIM technologies"]
[null,"C2","Apply information management"]
[null,"C2.K1","Principle of data mining, data base and back up in the CDE (Common Data Environment)"]
[null,"C2.K2","Principle of data transferring among different software and/or data federating into an integrated design"]
[null,"C2.K3","Principle of data security and administrative law in the archiving of data in a CDE (Common Data Environment)      "]
[]
[]
[]
[]
[]
[]
[]
[]
[]
[]
[null,"List of Competences"]
[]
[null,"BIM Coordinator",null,null,null,null,null,null,"Handover and Close Out"]
[null,"N","Competence",null,null,null,null,null,null,null,null,null,null,null,null,"Level"]
[null,"C2.K4","Principle of information management in building sustainability and lean design"]
[null,"C2.S1","Manage and coordinate information related to energy performance"]
[null,"C2.S2","Identify which graphic and/or non-graphic information are necessary for a better management of works and for define the completeness of the Information Delivery Plan in relation to energy performance"]
[null,"C2.S3","Archive the model ensuring that the information provided is kept intact and not manipulated for any future use"]
[null,"C2.S5","Evaluate the completeness of the handover strategy"]
[null,"C2.S7","Identify requirements for the management of data in the CDE (Common Data Environment) for any professionals involved in the process"]
[null,"C2.S6","Verify the correspondence between the \"as built\" and the final BIM model"]
[null,"C2.S8","Transfer building information using BIM to facility managers and final users"]
[null,"C3","Apply procurement management"]
[null,"C3.K3","Legal and technical aspects on green procurement, state and rules for using public funding and international good practices of energy performance contracting"]
[null,"C3.K4","Strategies for training programs to increase energy efficiency with the support of BIM"]
[null,"C3.S3","List and collaborate with several stakeholders who participate in the sustainable project, distinguishing roles/needs and involving them in the information delivery plan preparation and management"]
[null,"C4","Use BIM technology"]
[null,"C4.K1","Techniques and principles of integrated digital production and rendering"]
[null,"C4.K6","Design techniques for different scenarios for new resilient buildings to future climate changes and for the refurbishment of existing buildings"]
[null,"C4.K7","Techniques of automatic code checking and management of software e-permit"]
[null,"C4.S5","Use BIM enabled simulation techniques to reduce the environmental impact"]
[null,"C5","Analyse the BIM Model"]
[null,"C5.K1","Principle of global environmental impact of different building products and technologies (RES use, insulation, HVAC systems and building automation systems)"]
[null,"C5.K3","Principle of integrated design and data transferring, with particular knowledge of IFC (Industry Foundation Classes) structure using international standard"]
[]
[]
[]
[]
[]
[]
[]
[]
[]
[]
[null,"List of Competences"]
[]
[null,"BIM Coordinator",null,null,null,null,null,null,"Handover and Close Out"]
[null,"N","Competence",null,null,null,null,null,null,null,null,null,"EQF Level",null,null,"Level"]
[null,"C5.S3","Apply BIM enabled energy and lighting analysis with periodic monitoring"]
[null,"C5.S4","Validate BIM Model"]
[null,"C5.S6","Use BIM models to communicate installation instructions"]

{"sheet":"MOD7","index":39,"n_rows":54,"n_cols":20,"rows_kept":54,"cut":false,"hidden":false,"merged":[[54,2,54,11],[55,2,55,11],[69,2,69,11],[60,2,60,11],[61,2,61,11],[62,2,62,11],[63,2,63,11],[65,2,65,11],[56,2,56,11],[66,2,66,11],[67,2,67,11],[68,2,68,11],[59,2,59,11],[64,2,64,11],[22,2,22,11],[23,2,23,11],[24,2,24,11],[25,2,25,11],[43,2,43,11],[41,2,41,11],[28,2,28,11],[29,2,29,11],[30,2,30,11],[31,2,31,11],[32,2,32,11],[33,2,33,11],[34,2,34,11],[35,2,35,11],[45,2,45,11],[46,2,46,11],[2,0,3,0],[2,1,3,19],[4,1,4,7],[4,8,4,19],[5,2,5,11],[18,2,18,11],[39,12,39,19],[51,2,51,11],[49,2,49,11],[52,2,52,11],[48,2,48,11],[20,2,20,11],[40,2,40,11],[42,2,42,11],[26,2,26,11],[27,2,27,11],[53,2,53,11],[57,2,57,11],[58,2,58,11],[6,2,6,11],[7,2,7,11],[8,2,8,11],[9,2,9,11],[10,2,10,11],[11,2,11,11],[39,2,39,11],[12,2,12,11],[13,2,13,11],[14,2,14,11],[15,2,15,11],[16,2,16,11],[17,2,17,11],[36,0,37,0],[36,1,37,19],[38,1,38,7],[38,8,38,19],[5,12,5,19],[50,2,50,19],[47,2,47,19],[44,2,44,19],[21,2,21,19],[19,2,19,19]]}
[]
[]
[null,"List of Competences"]
[]
[null,"BIM Model Evaluator",null,null,null,null,null,null,"Handover and Close Out"]
[null,"N","Competence",null,null,null,null,null,null,null,null,null,"EQF Level"]
[null,"C0","Have basic BIM knowledge and skills",null,null,null,null,null,null,null,null,null,1,2,3,4,5,6,7,8]
[null,"C0.K1","BIM basic concepts, terminology, principles, strategies and its value proposition"]
[null,"C0.K2","Benefits and uses of BIM compared to traditional methods for improving energy efficiency of new or existing buildings"]
[null,"C0.K3","Project information development cycle: information specification, development, exchange and maintenance throughout all the building life cycle"]
[null,"C0.K4","Reasons for open and interoperable solutions to ensure collaboration among professionals of different disciplines"]
[null,"C0.K5","Methodology to identify, plan, develop and evaluate organization's BIM implementation capabilities and BIM uses"]
[null,"C0.K6","Relevance of maintenance for maintaing the foreseen energy performance"]
[null,"C0.S1","Read a BIM Execution Plan (BEP)"]
[null,"C0.S2","Read a Information Delivery Manual"]
[null,"C0.S3","Identify information requirements for his own role"]
[null,"C0.S4","Identify the format to read information and transfer information within the supply chain"]
[null,"C0.S5","Identify the EIR (Employer Information Requirements)"]
[null,"C0.S6","Identify and/or verify the stages of PIM (Project Information Management)"]
[null,"C1","Understand BIM tools"]
[null,"C1.S2","Stay up to date on BIM trends, current developments and new directions of BIM technologies"]
[null,"C2","Apply information management"]
[null,"C2.K1","Principle of data mining, data base and back up in the CDE (Common Data Environment)"]
[null,"C2.K3","Principle of data security and administrative law in the archiving of data in a CDE (Common Data Environment)      "]
[null,"C2.K4","Principle of information management in building sustainability and lean design"]
[null,"C2.S2","Identify which graphic and/or non-graphic information are necessary for a better management of works and for define the completeness of the Information Delivery Plan in relation to energy performance"]
[]
[]
[]
[]
[]
[]
[]
[]
[]
[]
[null,"List of Competences"]
[]
[null,"BIM Model Evaluator",null,null,null,null,null,null,"Handover and Close Out"]
[null,"N","Competence",null,null,null,null,null,null,null,null,null,"EQF Level",null,null,"Level"]
[null,"C2.S3","Archive the model ensuring that the information provided is kept intact and not manipulated for any future use"]
[null,"C2.S5","Evaluate the completeness of the handover strategy"]
[null,"C2.S6","Verify the correspondence between the \"as built\" and the final BIM model"]
[null,"C2.S7","Identify requirements for the management of data in the CDE (Common Data Environment) for any professionals involved in the process"]
[null,"C3","Apply procurement management"]
[null,"C3.K3","Legal and technical aspects on green procurement, state and rules for using public funding and international good practices of energy performance contracting"]
[null,"C3.S5","Define building environmental impact as part of the contract"]
[null,"C4","Use BIM technology"]
[null,"C4.K7","Techniques of automatic code checking and management of software e-permit"]
[null,"C4.S8","Produce a visualization design in order to report back to costumers, users and reviewers"]
[null,"C5","Analyse the BIM Model"]
[null,"C5.K1","Principle of global environmental impact of different building products and technologies (RES use, insulation, HVAC systems and building automation systems)"]
[null,"C5.K3","Principle of integrated design and data transferring, with particular knowledge of IFC (Industry Foundation Classes) structure using international standard"]
[null,"C5.S4","Validate BIM Model"]

{"sheet":"SPE7","index":40,"n_rows":58,"n_cols":20,"rows_kept":58,"cut":false,"hidden":false,"merged":[[27,2,27,11],[20,2,20,11],[21,2,21,11],[42,2,42,11],[26,2,26,11],[47,2,47,11],[40,2,40,11],[44,2,44,11],[28,2,28,11],[29,2,29,11],[2,0,3,0],[2,1,3,19],[4,1,4,7],[4,8,4,19],[5,2,5,11],[5,12,5,19],[53,2,53,11],[36,0,37,0],[36,1,37,19],[38,1,38,7],[38,8,38,19],[33,2,33,11],[34,2,34,11],[35,2,35,11],[69,2,69,11],[41,2,41,11],[64,2,64,11],[65,2,65,11],[66,2,66,11],[57,2,57,11],[49,2,49,11],[67,2,67,11],[68,2,68,11],[60,2,60,11],[61,2,61,11],[62,2,62,11],[63,2,63,11],[59,2,59,11],[45,2,45,11],[58,2,58,11],[56,2,56,11],[48,2,48,11],[51,2,51,11],[54,2,54,11],[25,2,25,11],[55,2,55,11],[7,2,7,11],[8,2,8,11],[9,2,9,11],[10,2,10,11],[30,2,30,11],[31,2,31,11],[32,2,32,11],[39,2,39,11],[15,2,15,11],[16,2,16,11],[17,2,17,11],[18,2,18,11],[6,2,6,11],[12,2,12,11],[13,2,13,11],[14,2,14,11],[24,2,24,11],[23,2,23,11],[22,2,22,19],[19,2,19,19],[11,2,11,11],[52,2,52,19],[46,2,46,19],[43,2,43,19],[39,12,39,19],[50,2,50,11]]}
[]
[]
[null,"List of Competences"]
[]
[null,"BIM Specialist-Expert",null,null,null,null,null,null,"Handover and Close Out"]
[null,"N","Competence",null,null,null,null,null,null,null,null,null,"EQF Level"]
[null,"C0","Have basic BIM knowledge and skills",null,null,null,null,null,null,null,null,null,1,2,3,4,5,6,7,8]
[null,"C0.K1","BIM basic concepts, terminology, principles, strategies and its value proposition"]
[null,"C0.K2","Benefits and uses of BIM compared to traditional methods for improving energy efficiency of new or existing buildings"]
[null,"C0.K3","Project information development cycle: information specification, development, exchange and maintenance throughout all the building life cycle"]
[null,"C0.K4","Reasons for open and interoperable solutions to ensure collaboration among professionals of different disciplines"]
[null,"C0.K5","Methodology to identify, plan, develop and evaluate organization's BIM implementation capabilities and BIM uses"]
[null,"C0.K6","Relevance of maintenance for maintaing the foreseen energy performance"]
[null,"C0.S1","Read a BIM Execution Plan (BEP)"]
[null,"C0.S2","Read a Information Delivery Manual"]
[null,"C0.S3","Identify information requirements for his own role"]
[null,"C0.S4","Identify the format to read information and transfer information within the supply chain"]
[null,"C0.S5","Identify the EIR (Employer Information Requirements)"]
[null,"C0.S6","Identify and/or verify the stages of PIM (Project Information Management)"]
[null,"C1","Understand BIM tools"]
[null,"C1.S1","Specialised skills to incorporate information into BIM Model, evaluating openBIM software"]
[null,"C1.S2","Stay up to date on BIM trends, current developments and new directions of BIM technologies"]
[null,"C2","Apply information management"]
[null,"C2.K2","Principle of data transferring among different software and/or data federating into an integrated design"]
[null,"C2.K3","Principle of data security and administrative law in the archiving of data in a CDE (Common Data Environment)      "]
[null,"C2.K4","Principle of information management in building sustainability and lean design"]
[]
[]
[]
[]
[]
[]
[]
[]
[]
[]
[null,"List of Competences"]
[]
[null,"BIM Specialist-Expert",null,null,null,null,null,null,"Handover and Close Out"]
[null,"N","Competence",null,null,null,null,null,null,null,null,null,"EQF Level",null,null,"Level"]
[null,"C2.S2","Identify which graphic and/or non-graphic information are necessary for a better management of works and for define the completeness of the Information Delivery Plan in relation to energy performance"]
[null,"C2.S5","Evaluate the completeness of the handover strategy"]
[null,"C2.S6","Verify the correspondence between the \"as built\" and the final BIM model"]
[null,"C3","Apply procurement management"]
[null,"C3.K3","Legal and technical aspects on green procurement, state and rules for using public funding and international good practices of energy performance contracting"]
[null,"C3.S3","List and collaborate with several stakeholders who participate in the sustainable project, distinguishing roles/needs and involving them in the information delivery plan preparation and management"]
[null,"C4","Use BIM technology"]
[null,"C4.K1","Techniques and principles of integrated digital production and rendering"]
[null,"C4.K6","Design techniques for different scenarios for new resilient buildings to future climate changes and for the refurbishment of existing buildings"]
[null,"C4.K7","Techniques of automatic code checking and management of software e-permit"]
[null,"C4.S4","Use laser scanning in order to produce a point of cloud of existing buildings, comparing and evaluating facilities and related systems"]
[null,"C4.S5","Use BIM enabled simulation techniques to reduce the environmental impact"]
[null,"C5","Analyse the BIM Model"]
[null,"C5.K1","Principle of global environmental impact of different building products and technologies (RES use, insulation, HVAC systems and building automation systems)"]
[null,"C5.K3","Principle of integrated design and data transferring, with particular knowledge of IFC (Industry Foundation Classes) structure using international standard"]
[null,"C5.S3","Apply BIM enabled energy and lighting analysis with periodic monitoring"]
[null,"C5.S4","Validate BIM Model"]
[null,"C5.S6","Use BIM models to communicate installation instructions"]

{"sheet":"USE7","index":41,"n_rows":44,"n_cols":20,"rows_kept":44,"cut":false,"hidden":false,"merged":[[58,2,58,11],[67,2,67,11],[43,2,43,11],[56,2,56,11],[57,2,57,11],[29,2,29,11],[61,2,61,11],[34,2,34,11],[35,2,35,11],[49,2,49,11],[69,2,69,11],[5,2,5,11],[62,2,62,11],[63,2,63,11],[64,2,64,11],[65,2,65,11],[66,2,66,11],[40,2,40,11],[25,2,25,11],[41,2,41,11],[6,2,6,11],[17,2,17,11],[18,2,18,11],[19,2,19,11],[68,2,68,11],[54,2,54,11],[55,2,55,11],[31,2,31,11],[32,2,32,11],[7,2,7,11],[2,0,3,0],[2,1,3,19],[4,1,4,7],[4,8,4,19],[59,2,59,11],[60,2,60,11],[28,2,28,11],[27,2,27,11],[30,2,30,11],[33,2,33,11],[8,2,8,11],[9,2,9,11],[10,2,10,11],[11,2,11,11],[12,2,12,11],[13,2,13,11],[15,2,15,11],[20,2,20,11],[21,2,21,11],[26,2,26,11],[23,2,23,11],[24,2,24,11],[36,0,37,0],[36,1,37,19],[38,1,38,7],[38,8,38,19],[39,2,39,11],[48,2,48,11],[44,2,44,11],[45,2,45,11],[46,2,46,11],[47,2,47,11],[50,2,50,11],[51,2,51,11],[52,2,52,11],[53,2,53,11],[5,12,5,19],[42,2,42,19],[22,2,22,19],[16,2,16,19],[39,12,39,19],[14,2,14,11]]}
[]
[]
[null,"List of Competences"]
[]
[null,"BIM User",null,null,null,null,null,null,"Handover and Close Out"]
[null,"N","Competence",null,null,null,null,null,null,null,null,null,"EQF Level"]
[null,"C0","Have basic BIM knowledge and skills",null,null,null,null,null,null,null,null,null,1,2,3,4,5,6,7,8]
[null,"C0.K1","BIM basic concepts, terminology, principles, strategies and its value proposition"]
[null,"C0.K2","Benefits and uses of BIM compared to traditional methods for improving energy efficiency of new or existing buildings"]
[null,"C0.K3","Project information development cycle: information specification, development, exchange and maintenance throughout all the building life cycle"]
[null,"C0.K4","Reasons for open and interoperable solutions to ensure collaboration among professionals of different disciplines"]
[null,"C0.K6","Relevance of maintenance for maintaing the foreseen energy performance"]
[null,"C0.S2","Read a Information Delivery Manual"]
[null,"C0.S3","Identify information requirements for his own role"]
[null,"C0.S5","Identify the EIR (Employer Information Requirements)"]
[null,"C0.S6","Identify and/or verify the stages of PIM (Project Information Management)"]
[null,"C2","Apply information management"]
[null,"C2.K2","Principle of data transferring among different software and/or data federating into an integrated design"]
[null,"C2.K4","Principle of information management in building sustainability and lean design"]
[null,"C2.S1","Manage and coordinate information related to energy performance"]
[null,"C2.S5","Evaluate the completeness of the handover strategy"]
[null,"C2.S6","Verify the correspondence between the \"as built\" and the final BIM model"]
[null,"C3","Apply procurement management"]
[null,"C3.K3","Legal and technical aspects on green procurement, state and rules for using public funding and international good practices of energy performance contracting"]
[null,"C3.S3","List and collaborate with several stakeholders who participate in the sustainable project, distinguishing roles/needs and involving them in the information delivery plan preparation and management"]
[null,"C3.S4","Apply change management, identifying and handling deviations / breach of the contract with particular guarantees"]
[]
[]
[]
[]
[]
[]
[]
[]
[]
[]
[null,"List of Competences"]
[]
[null,"BIM User",null,null,null,null,null,null,"Handover and Close Out"]
[null,"N","Competence",null,null,null,null,null,null,null,null,null,"EQF Level",null,null,"Level"]
[null,"C3.S5","Negotiate and take necessary legal steps if the contractual requirements were not met"]
[null,"C3.S5","Define building environmental impact as part of the contract"]
[null,"C5","Analyse the BIM Model"]
[null,"C5.S6","Use BIM models to communicate installation instructions"]

{"sheet":"MAN8","index":42,"n_rows":75,"n_cols":20,"rows_kept":75,"cut":false,"hidden":false,"merged":[[20,2,20,11],[24,2,24,11],[21,2,21,11],[22,2,22,11],[26,2,26,11],[27,2,27,11],[23,2,23,11],[63,2,63,11],[64,2,64,11],[48,2,48,11],[42,2,42,11],[43,2,43,11],[45,2,45,11],[58,2,58,11],[54,2,54,11],[41,2,41,11],[52,2,52,11],[40,2,40,11],[28,2,28,11],[46,2,46,11],[53,2,53,11],[44,2,44,11],[6,2,6,11],[2,0,3,0],[2,1,3,19],[4,1,4,7],[4,8,4,19],[5,2,5,11],[5,12,5,19],[7,2,7,11],[8,2,8,11],[9,2,9,11],[15,2,15,11],[16,2,16,11],[10,2,10,11],[11,2,11,11],[12,2,12,11],[13,2,13,11],[14,2,14,11],[36,0,37,0],[36,1,37,19],[30,2,30,11],[31,2,31,11],[32,2,32,11],[33,2,33,11],[34,2,34,11],[35,2,35,11],[87,2,87,11],[17,2,17,11],[18,2,18,11],[65,2,65,11],[66,2,66,11],[67,2,67,11],[29,2,29,11],[55,2,55,11],[38,1,38,7],[62,2,62,11],[75,2,75,11],[76,2,76,11],[78,2,78,11],[103,2,103,11],[96,2,96,11],[97,2,97,11],[98,2,98,11],[99,2,99,11],[89,2,89,11],[90,2,90,11],[69,2,69,11],[77,2,77,11],[51,2,51,11],[84,2,84,11],[88,2,88,11],[83,2,83,11],[80,2,80,11],[81,2,81,11],[82,2,82,11],[86,2,86,11],[101,2,101,11],[102,2,102,11],[92,2,92,11],[93,2,93,11],[94,2,94,11],[79,2,79,11],[100,2,100,11],[91,2,91,11],[85,2,85,11],[95,2,95,11],[70,0,71,0],[70,1,71,19],[72,1,72,7],[72,8,72,19],[74,2,74,11],[56,2,56,19],[73,12,73,19],[73,2,73,11],[68,2,68,11],[59,2,59,11],[19,2,19,19],[25,2,25,19],[39,12,39,19],[57,2,57,11],[60,2,60,11],[61,2,61,11],[38,8,38,19],[39,2,39,11],[47,2,47,11],[49,2,49,11]]}
[]
[]
[null,"List of Competences"]
[]
[null,"BIM Manager",null,null,null,null,null,null,"In Use"]
[null,"N","Competence",null,null,null,null,null,null,null,null,null,"EQF Level"]
[null,"C0","Have basic BIM knowledge and skills",null,null,null,null,null,null,null,null,null,1,2,3,4,5,6,7,8]
[null,"C0.K1","BIM basic concepts, terminology, principles, strategies and its value proposition"]
[null,"C0.K2","Benefits and uses of BIM compared to traditional methods for improving energy efficiency of new or existing buildings"]
[null,"C0.K3","Project information development cycle: information specification, development, exchange and maintenance throughout all the building life cycle"]
[null,"C0.K4","Reasons for open and interoperable solutions to ensure collaboration among professionals of different disciplines"]
[null,"C0.K5","Methodology to identify, plan, develop and evaluate organization's BIM implementation capabilities and BIM uses"]
[null,"C0.K6","Relevance of maintenance for maintaing the foreseen energy performance"]
[null,"C0.S1","Read a BIM Execution Plan (BEP)"]
[null,"C0.S2","Read a Information Delivery Manual"]
[null,"C0.S3","Identify information requirements for his own role"]
[null,"C0.S4","Identify the format to read information and transfer information within the supply chain"]
[null,"C0.S5","Identify the EIR (Employer Information Requirements)"]
[null,"C0.S6","Identify and/or verify the stages of PIM (Project Information Management)"]
[null,"C1","Understand BIM tools"]
[null,"C1.K1","Principle of economic subjects for the cost estimation and evaluation of energy refurbishment"]
[null,"C1.S1","Specialised skills to incorporate information into BIM Model, evaluating openBIM software"]
[null,"C1.S2","Stay up to date on BIM trends, current developments and new directions of BIM technologies"]
[null,"C1.S3","Decrease the life cycle cost of the building using methods described in ISO 15686-5"]
[null,"C1.S4","Evaluate and compare different plans and related Return of Investments using methods described in ISO 15686-5"]
[null,"C2","Apply information management"]
[]
[]
[]
[]
[]
[]
[]
[]
[]
[]
[null,"List of Competences"]
[]
[null,"BIM Manager",null,null,null,null,null,null,"In Use"]
[null,"N","Competence",null,null,null,null,null,null,null,null,null,"EQF Level",null,null,"Level"]
[null,"C2.K1","Principle of data mining, data base and back up in the CDE (Common Data Environment)"]
[null,"C2.K2","Principle of data transferring among different software and/or data federating into an integrated design"]
[null,"C2.K3","Principle of data security and administrative law in the archiving of data in a CDE (Common Data Environment)      "]
[null,"C2.K4","Principle of information management in building sustainability and lean design"]
[null,"C2.K5","Principle of reusing and recycling of materials and components of a building"]
[null,"C2.S1","Manage and coordinate information related to energy performance"]
[null,"C2.S3","Archive the model ensuring that the information provided is kept intact and not manipulated for any future use"]
[null,"C2.S4","Evaluate the completeness of the maintenance plan to be used in EPC (Energy Performance Contracting)"]
[null,"C2.S7","Identify requirements for the management of data in the CDE (Common Data Environment) for any professionals involved in the process"]
[null,"C2.S8","Transfer building information using BIM to facility managers and final users"]
[null,"C3","Apply procurement management"]
[null,"C3.K3","Legal and technical aspects on green procurement, state and rules for using public funding and international good practices of energy performance contracting"]
[null,"C3.K4","Strategies for training programs to increase energy efficiency with the support of BIM"]
[null,"C3.S3","List and collaborate with several stakeholders who participate in the sustainable project, distinguishing roles/needs and involving them in the information delivery plan preparation and management"]
[null,"C3.S4","Apply change management, identifying and handling deviations / breach of the contract with particular guarantees"]
[null,"C3.S5","Negotiate and take necessary legal steps if the contractual requirements were not met"]
[null,"C5","Analyse the BIM Model"]
[null,"C5.K1","Principle of global environmental impact of different building products and technologies (RES use, insulation, HVAC systems and building automation systems)"]
[null,"C5.K2","Techniques of passive measures needed for the management of nZEB"]
[null,"C5.K3","Principle of integrated design and data transferring, with particular knowledge of IFC (Industry Foundation Classes) structure using international standard"]
[]
[]
[]
[]
[]
[]
[]
[]
[]
[]
[null,"List of Competences"]
[]
[null,"BIM Manager",null,null,null,null,null,null,"In Use"]
[null,"N","Competence",null,null,null,null,null,null,null,null,null,"EQF Level"]
[null,"C5.S6","Use BIM models to communicate installation instructions"]

{"sheet":"COO8","index":43,"n_rows":82,"n_cols":20,"rows_kept":82,"cut":false,"hidden":false,"merged":[[76,2,76,11],[79,2,79,11],[57,2,57,11],[56,2,56,11],[63,2,63,11],[64,2,64,11],[65,2,65,11],[66,2,66,11],[36,1,37,19],[54,2,54,11],[31,2,31,11],[32,2,32,11],[55,2,55,11],[53,2,53,19],[33,2,33,11],[40,2,40,11],[41,2,41,11],[42,2,42,11],[43,2,43,11],[50,2,50,11],[49,2,49,19],[51,2,51,11],[52,2,52,11],[45,2,45,11],[46,2,46,11],[44,2,44,11],[47,2,47,11],[38,8,38,19],[39,2,39,11],[2,0,3,0],[2,1,3,19],[4,1,4,7],[4,8,4,19],[5,2,5,11],[5,12,5,19],[10,2,10,11],[36,0,37,0],[11,2,11,11],[12,2,12,11],[13,2,13,11],[14,2,14,11],[15,2,15,11],[6,2,6,11],[7,2,7,11],[8,2,8,11],[9,2,9,11],[85,2,85,11],[48,2,48,11],[74,2,74,11],[86,2,86,11],[59,2,59,19],[60,2,60,11],[61,2,61,11],[62,2,62,11],[82,2,82,11],[58,2,58,11],[84,2,84,11],[67,2,67,11],[68,2,68,11],[69,2,69,11],[103,2,103,11],[75,2,75,11],[77,2,77,11],[78,2,78,11],[99,2,99,11],[87,2,87,11],[100,2,100,11],[101,2,101,11],[102,2,102,11],[96,2,96,11],[97,2,97,11],[98,2,98,11],[95,2,95,11],[93,2,93,11],[94,2,94,11],[88,2,88,11],[91,2,91,11],[92,2,92,11],[70,0,71,0],[70,1,71,19],[72,1,72,7],[72,8,72,19],[73,2,73,11],[90,2,90,11],[89,2,89,11],[80,2,80,11],[81,2,81,11],[83,2,83,11],[16,2,16,11],[17,2,17,11],[18,2,18,11],[25,2,25,11],[26,2,26,11],[27,2,27,11],[20,2,20,11],[21,2,21,11],[24,2,24,11],[19,2,19,19],[22,2,22,19],[28,2,28,11],[29,2,29,11],[39,12,39,19],[73,12,73,19],[30,2,30,11],[34,2,34,11],[23,2,23,11],[35,2,35,11],[38,1,38,7]]}
[]
[]
[null,"List of Competences"]
[]
[null,"BIM Coordinator",null,null,null,null,null,null,"In Use"]
[null,"N","Competence",null,null,null,null,null,null,null,null,null,"EQF Level"]
[null,"C0","Have basic BIM knowledge and skills",null,null,null,null,null,null,null,null,null,1,2,3,4,5,6,7,8]
[null,"C0.K1","BIM basic concepts, terminology, principles, strategies and its value proposition"]
[null,"C0.K2","Benefits and uses of BIM compared to traditional methods for improving energy efficiency of new or existing buildings"]
[null,"C0.K3","Project information development cycle: information specification, development, exchange and maintenance throughout all the building life cycle"]
[null,"C0.K4","Reasons for open and interoperable solutions to ensure collaboration among professionals of different disciplines"]
[null,"C0.K5","Methodology to identify, plan, develop and evaluate organization's BIM implementation capabilities and BIM uses"]
[null,"C0.K6","Relevance of maintenance for maintaing the foreseen energy performance"]
[null,"C0.S1","Read a BIM Execution Plan (BEP)"]
[null,"C0.S2","Read a Information Delivery Manual"]
[null,"C0.S3","Identify information requirements for his own role"]
[null,"C0.S4","Identify the format to read information and transfer information within the supply chain"]
[null,"C0.S5","Identify the EIR (Employer Information Requirements)"]
[null,"C0.S6","Identify and/or verify the stages of PIM (Project Information Management)"]
[null,"C1","Understand BIM tools"]
[null,"C1.S1","Specialised skills to incorporate information into BIM Model, evaluating openBIM software"]
[null,"C1.S2","Stay up to date on BIM trends, current developments and new directions of BIM technologies"]
[null,"C2","Apply information management"]
[null,"C2.K1","Principle of data mining, data base and back up in the CDE (Common Data Environment)"]
[null,"C2.K2","Principle of data transferring among different software and/or data federating into an integrated design"]
[null,"C2.K3","Principle of data security and administrative law in the archiving of data in a CDE (Common Data Environment)      "]
[]
[]
[]
[]
[]
[]
[]
[]
[]
[]
[null,"List of Competences"]
[]
[null,"BIM Coordinator",null,null,null,null,null,null,"In Use"]
[null,"N","Competence",null,null,null,null,null,null,null,null,null,"EQF Level",null,null,"Level"]
[null,"C2.K4","Principle of information management in building sustainability and lean design"]
[null,"C2.S1","Manage and coordinate information related to energy performance"]
[null,"C2.S2","Identify which graphic and/or non-graphic information are necessary for a better management of works and for define the completeness of the Information Delivery Plan in relation to energy performance"]
[null,"C2.S3","Archive the model ensuring that the information provided is kept intact and not manipulated for any future use"]
[null,"C2.S4","Evaluate the completeness of the maintenance plan to be used in EPC (Energy Performance Contracting)"]
[null,"C2.S7","Identify requirements for the management of data in the CDE (Common Data Environment) for any professionals involved in the process"]
[null,"C2.S8","Transfer building information using BIM to facility managers and final users"]
[null,"C2.S10","Ensure the update of the BIM Model / Technical Specification when a maintenance is performed"]
[null,"C2.S11","Use BIM for assessing the reusability and recycling of building materials and components"]
[null,"C3","Apply procurement management"]
[null,"C3.K3","Legal and technical aspects on green procurement, state and rules for using public funding and international good practices of energy performance contracting"]
[null,"C3.K4","Strategies for training programs to increase energy efficiency with the support of BIM"]
[null,"C3.S3","List and collaborate with several stakeholders who participate in the sustainable project, distinguishing roles/needs and involving them in the information delivery plan preparation and management"]
[null,"C4","Use BIM technology"]
[null,"C4.K1","Techniques and principles of integrated digital production and rendering"]
[null,"C4.K6","Design techniques for different scenarios for new resilient buildings to future climate changes and for the refurbishment of existing buildings"]
[null,"C4.K7","Techniques of automatic code checking and management of software e-permit"]
[null,"C4.S5","Use BIM enabled simulation techniques to reduce the environmental impact"]
[null,"C4.S6","Integrate different RES (Renewable Energy Sources) and energy efficiency systems into buildings without clash detection"]
[null,"C5","Analyse the BIM Model"]
[]
[]
[]
[]
[]
[]
[]
[]
[]
[]
[null,"List of Competences"]
[]
[null,"BIM Coordinator",null,null,null,null,null,null,"In Use"]
[null,"N","Competence",null,null,null,null,null,null,null,null,null,"EQF Level",null,null,"Level"]
[null,"C5.K1","Principle of global environmental impact of different building products and technologies (RES use, insulation, HVAC systems and building automation systems)"]
[null,"C5.K2","Techniques of passive measures needed for the management of nZEB"]
[null,"C5.K3","Principle of integrated design and data transferring, with particular knowledge of IFC (Industry Foundation Classes) structure using international standard"]
[null,"C5.S1","Coordinate the work of different disciplines in order to obtain a consolidate BIM model that satisfy all the requirements"]
[null,"C5.S2","Apply Quality Management and coordinate team members of different disciplines"]
[null,"C5.S3","Apply BIM enabled energy and lighting analysis with periodic monitoring"]
[null,"C5.S4","Validate BIM Model"]
[null,"C5.S6","Use BIM models to communicate installation instructions"]

{"sheet":"MOD8","index":44,"n_rows":53,"n_cols":20,"rows_kept":53,"cut":false,"hidden":false,"merged":[[22,2,22,11],[50,2,50,11],[43,2,43,11],[24,2,24,11],[69,2,69,11],[63,2,63,11],[64,2,64,11],[65,2,65,11],[66,2,66,11],[67,2,67,11],[68,2,68,11],[60,2,60,11],[61,2,61,11],[62,2,62,11],[52,2,52,11],[56,2,56,11],[54,2,54,11],[57,2,57,11],[58,2,58,11],[59,2,59,11],[51,2,51,11],[45,2,45,11],[47,2,47,11],[53,2,53,11],[55,2,55,11],[49,2,49,11],[2,0,3,0],[2,1,3,19],[4,1,4,7],[4,8,4,19],[5,2,5,11],[5,12,5,19],[6,2,6,11],[7,2,7,11],[8,2,8,11],[9,2,9,11],[10,2,10,11],[48,2,48,19],[44,2,44,19],[46,2,46,19],[25,2,25,11],[20,2,20,11],[11,2,11,11],[12,2,12,11],[13,2,13,11],[14,2,14,11],[15,2,15,11],[16,2,16,11],[32,2,32,11],[33,2,33,11],[17,2,17,11],[18,2,18,11],[21,2,21,11],[40,2,40,11],[34,2,34,11],[35,2,35,11],[23,2,23,19],[19,2,19,19],[26,2,26,11],[27,2,27,11],[28,2,28,11],[29,2,29,11],[30,2,30,11],[31,2,31,11],[42,2,42,11],[36,0,37,0],[36,1,37,19],[38,1,38,7],[38,8,38,19],[39,2,39,11],[39,12,39,19],[41,2,41,11]]}
[]
[]
[null,"List of Competences"]
[]
[null,"BIM Model Evaluator",null,null,null,null,null,null,"In Use"]
[null,"N","Competence",null,null,null,null,null,null,null,null,null,"EQF Level"]
[null,"C0","Have basic BIM knowledge and skills",null,null,null,null,null,null,null,null,null,1,2,3,4,5,6,7,8]
[null,"C0.K1","BIM basic concepts, terminology, principles, strategies and its value proposition"]
[null,"C0.K2","Benefits and uses of BIM compared to traditional methods for improving energy efficiency of new or existing buildings"]
[null,"C0.K3","Project information development cycle: information specification, development, exchange and maintenance throughout all the building life cycle"]
[null,"C0.K4","Reasons for open and interoperable solutions to ensure collaboration among professionals of different disciplines"]
[null,"C0.K5","Methodology to identify, plan, develop and evaluate organization's BIM implementation capabilities and BIM uses"]
[null,"C0.K6","Relevance of maintenance for maintaing the foreseen energy performance"]
[null,"C0.S1","Read a BIM Execution Plan (BEP)"]
[null,"C0.S2","Read a Information Delivery Manual"]
[null,"C0.S3","Identify information requirements for his own role"]
[null,"C0.S4","Identify the format to read information and transfer information within the supply chain"]
[null,"C0.S5","Identify the EIR (Employer Information Requirements)"]
[null,"C0.S6","Identify and/or verify the stages of PIM (Project Information Management)"]
[null,"C1","Understand BIM tools"]
[null,"C1.K1","Principle of economic subjects for the cost estimation and evaluation of energy refurbishment"]
[null,"C1.S2","Stay up to date on BIM trends, current developments and new directions of BIM technologies"]
[null,"C1.S4","Evaluate and compare different plans and related Return of Investments using methods described in ISO 15686-5"]
[null,"C2","Apply information management"]
[null,"C2.K1","Principle of data mining, data base and back up in the CDE (Common Data Environment)"]
[null,"C2.K3","Principle of data security and administrative law in the archiving of data in a CDE (Common Data Environment)      "]
[]
[]
[]
[]
[]
[]
[]
[]
[]
[]
[null,"List of Competences"]
[]
[null,"BIM Model Evaluator",null,null,null,null,null,null,"In Use"]
[null,"N","Competence",null,null,null,null,null,null,null,null,null,"EQF Level",null,null,"Level"]
[null,"C2.K4","Principle of information management in building sustainability and lean design"]
[null,"C2.S2","Identify which graphic and/or non-graphic information are necessary for a better management of works and for define the completeness of the Information Delivery Plan in relation to energy performance"]
[null,"C2.S3","Archive the model ensuring that the information provided is kept intact and not manipulated for any future use"]
[null,"C2.S7","Identify requirements for the management of data in the CDE (Common Data Environment) for any professionals involved in the process"]
[null,"C3","Apply procurement management"]
[null,"C3.K3","Legal and technical aspects on green procurement, state and rules for using public funding and international good practices of energy performance contracting"]
[null,"C4","Use BIM technology"]
[null,"C4.K7","Techniques of automatic code checking and management of software e-permit"]
[null,"C5","Analyse the BIM Model"]
[null,"C5.K1","Principle of global environmental impact of different building products and technologies (RES use, insulation, HVAC systems and building automation systems)"]
[null,"C5.K2","Techniques of passive measures needed for the management of nZEB"]
[null,"C5.K3","Principle of integrated design and data transferring, with particular knowledge of IFC (Industry Foundation Classes) structure using international standard"]
[null,"C5.S4","Validate BIM Model"]

{"sheet":"SPE8","index":45,"n_rows":59,"n_cols":20,"rows_kept":59,"cut":false,"hidden":false,"merged":[[28,2,28,11],[7,2,7,11],[8,2,8,11],[2,0,3,0],[2,1,3,19],[4,1,4,7],[4,8,4,19],[5,2,5,11],[6,2,6,11],[5,12,5,19],[54,2,54,11],[47,2,47,11],[44,2,44,11],[38,1,38,7],[38,8,38,19],[42,2,42,11],[36,0,37,0],[36,1,37,19],[55,2,55,11],[40,2,40,11],[50,2,50,11],[39,2,39,11],[48,2,48,11],[49,2,49,11],[45,2,45,11],[53,2,53,19],[66,2,66,11],[65,2,65,11],[59,2,59,11],[60,2,60,11],[56,2,56,11],[67,2,67,11],[58,2,58,11],[68,2,68,11],[69,2,69,11],[41,2,41,11],[52,2,52,11],[61,2,61,11],[62,2,62,11],[63,2,63,11],[51,2,51,11],[64,2,64,11],[57,2,57,11],[9,2,9,11],[10,2,10,11],[16,2,16,11],[17,2,17,11],[18,2,18,11],[31,2,31,11],[23,2,23,11],[29,2,29,11],[26,2,26,11],[27,2,27,11],[11,2,11,11],[12,2,12,11],[13,2,13,11],[14,2,14,11],[15,2,15,11],[25,2,25,11],[20,2,20,11],[21,2,21,11],[24,2,24,11],[46,2,46,19],[43,2,43,19],[22,2,22,19],[19,2,19,19],[39,12,39,19],[30,2,30,11],[34,2,34,11],[35,2,35,11],[32,2,32,11],[33,2,33,11]]}
[]
[]
[null,"List of Competences"]
[]
[null,"BIM Specialist-Expert",null,null,null,null,null,null,"In Use"]
[null,"N","Competence",null,null,null,null,null,null,null,null,null,"EQF Level"]
[null,"C0","Have basic BIM knowledge and skills",null,null,null,null,null,null,null,null,null,1,2,3,4,5,6,7,8]
[null,"C0.K1","BIM basic concepts, terminology, principles, strategies and its value proposition"]
[null,"C0.K2","Benefits and uses of BIM compared to traditional methods for improving energy efficiency of new or existing buildings"]
[null,"C0.K3","Project information development cycle: information specification, development, exchange and maintenance throughout all the building life cycle"]
[null,"C0.K4","Reasons for open and interoperable solutions to ensure collaboration among professionals of different disciplines"]
[null,"C0.K5","Methodology to identify, plan, develop and evaluate organization's BIM implementation capabilities and BIM uses"]
[null,"C0.K6","Relevance of maintenance for maintaing the foreseen energy performance"]
[null,"C0.S1","Read a BIM Execution Plan (BEP)"]
[null,"C0.S2","Read a Information Delivery Manual"]
[null,"C0.S3","Identify information requirements for his own role"]
[null,"C0.S4","Identify the format to read information and transfer information within the supply chain"]
[null,"C0.S5","Identify the EIR (Employer Information Requirements)"]
[null,"C0.S6","Identify and/or verify the stages of PIM (Project Information Management)"]
[null,"C1","Understand BIM tools"]
[null,"C1.S1","Specialised skills to incorporate information into BIM Model, evaluating openBIM software"]
[null,"C1.S2","Stay up to date on BIM trends, current developments and new directions of BIM technologies"]
[null,"C2","Apply information management"]
[null,"C2.K2","Principle of data transferring among different software and/or data federating into an integrated design"]
[null,"C2.K3","Principle of data security and administrative law in the archiving of data in a CDE (Common Data Environment)      "]
[null,"C2.K4","Principle of information management in building sustainability and lean design"]
[]
[]
[]
[]
[]
[]
[]
[]
[]
[]
[null,"List of Competences"]
[]
[null,"BIM Specialist-Expert",null,null,null,null,null,null,"In Use"]
[null,"N","Competence",null,null,null,null,null,null,null,null,null,"EQF Level",null,null,"Level"]
[null,"C2.S2","Identify which graphic and/or non-graphic information are necessary for a better management of works and for define the completeness of the Information Delivery Plan in relation to energy performance"]
[null,"C2.S4","Evaluate the completeness of the maintenance plan to be used in EPC (Energy Performance Contracting)"]
[null,"C2.S11","Use BIM for assessing the reusability and recycling of building materials and components"]
[null,"C3","Apply procurement management"]
[null,"C3.K3","Legal and technical aspects on green procurement, state and rules for using public funding and international good practices of energy performance contracting"]
[null,"C3.S3","List and collaborate with several stakeholders who participate in the sustainable project, distinguishing roles/needs and involving them in the information delivery plan preparation and management"]
[null,"C4","Use BIM technology"]
[null,"C4.K1","Techniques and principles of integrated digital production and rendering"]
[null,"C4.K6","Design techniques for different scenarios for new resilient buildings to future climate changes and for the refurbishment of existing buildings"]
[null,"C4.K7","Techniques of automatic code checking and management of software e-permit"]
[null,"C4.S4","Use laser scanning in order to produce a point of cloud of existing buildings, comparing and evaluating facilities and related systems"]
[null,"C4.S5","Use BIM enabled simulation techniques to reduce the environmental impact"]
[null,"C4.S6","Integrate different RES (Renewable Energy Sources) and energy efficiency systems into buildings without clash detection"]
[null,"C5","Analyse the BIM Model"]
[null,"C5.K1","Principle of global environmental impact of different building products and technologies (RES use, insulation, HVAC systems and building automation systems)"]
[null,"C5.K3","Principle of integrated design and data transferring, with particular knowledge of IFC (Industry Foundation Classes) structure using international standard"]
[null,"C5.S3","Apply BIM enabled energy and lighting analysis with periodic monitoring"]
[null,"C5.S4","Validate BIM Model"]
[null,"C5.S6","Use BIM models to communicate installation instructions"]

{"sheet":"USE8","index":46,"n_rows":44,"n_cols":20,"rows_kept":44,"cut":false,"hidden":false,"merged":[[50,2,50,11],[44,2,44,11],[42,2,42,11],[33,2,33,11],[34,2,34,11],[35,2,35,11],[43,2,43,11],[40,2,40,11],[51,2,51,11],[52,2,52,11],[55,2,55,11],[45,2,45,11],[46,2,46,11],[47,2,47,11],[48,2,48,11],[53,2,53,11],[54,2,54,11],[49,2,49,11],[60,2,60,11],[56,2,56,11],[57,2,57,11],[58,2,58,11],[68,2,68,11],[61,2,61,11],[67,2,67,11],[26,2,26,11],[69,2,69,11],[5,2,5,11],[62,2,62,11],[63,2,63,11],[64,2,64,11],[65,2,65,11],[66,2,66,11],[27,2,27,11],[59,2,59,11],[7,2,7,11],[8,2,8,11],[9,2,9,11],[28,2,28,11],[24,2,24,11],[17,2,17,11],[18,2,18,11],[20,2,20,11],[25,2,25,11],[19,2,19,11],[13,2,13,11],[14,2,14,11],[15,2,15,11],[31,2,31,11],[32,2,32,11],[2,0,3,0],[2,1,3,19],[4,1,4,7],[4,8,4,19],[6,2,6,11],[23,2,23,11],[21,2,21,11],[5,12,5,19],[41,2,41,19],[22,2,22,19],[16,2,16,19],[39,12,39,19],[10,2,10,11],[11,2,11,11],[12,2,12,11],[36,0,37,0],[36,1,37,19],[38,1,38,7],[38,8,38,19],[39,2,39,11],[29,2,29,11],[30,2,30,11]]}
[]
[]
[null,"List of Competences"]
[]
[null,"BIM User",null,null,null,null,null,null,"In Use"]
[null,"N","Competence",null,null,null,null,null,null,null,null,null,"EQF Level"]
[null,"C0","Have basic BIM knowledge and skills",null,null,null,null,null,null,null,null,null,1,2,3,4,5,6,7,8]
[null,"C0.K1","BIM basic concepts, terminology, principles, strategies and its value proposition"]
[null,"C0.K2","Benefits and uses of BIM compared to traditional methods for improving energy efficiency of new or existing buildings"]
[null,"C0.K3","Project information development cycle: information specification, development, exchange and maintenance throughout all the building life cycle"]
[null,"C0.K4","Reasons for open and interoperable solutions to ensure collaboration among professionals of different disciplines"]
[null,"C0.K6","Relevance of maintenance for maintaing the foreseen energy performance"]
[null,"C0.S2","Read a Information Delivery Manual"]
[null,"C0.S3","Identify information requirements for his own role"]
[null,"C0.S5","Identify the EIR (Employer Information Requirements)"]
[null,"C0.S6","Identify and/or verify the stages of PIM (Project Information Management)"]
[null,"C2","Apply information management"]
[null,"C2.K2","Principle of data transferring among different software and/or data federating into an integrated design"]
[null,"C2.K4","Principle of information management in building sustainability and lean design"]
[null,"C2.K5","Principle of reusing and recycling of materials and components of a building"]
[null,"C2.S1","Manage and coordinate information related to energy performance"]
[null,"C2.S10","Ensure the update of the BIM Model / Technical Specification when a maintenance is performed"]
[null,"C3","Apply procurement management"]
[null,"C3.K3","Legal and technical aspects on green procurement, state and rules for using public funding and international good practices of energy performance contracting"]
[null,"C3.S3","List and collaborate with several stakeholders who participate in the sustainable project, distinguishing roles/needs and involving them in the information delivery plan preparation and management"]
[null,"C3.S4","Apply change management, identifying and handling deviations / breach of the contract with particular guarantees"]
[]
[]
[]
[]
[]
[]
[]
[]
[]
[]
[null,"List of Competences"]
[]
[null,"BIM User",null,null,null,null,null,null,"In Use"]
[null,"N","Competence",null,null,null,null,null,null,null,null,null,"EQF Level",null,null,"Level"]
[null,"C3.S5","Negotiate and take necessary legal steps if the contractual requirements were not met"]
[null,"C5","Analyse the BIM Model"]
[null,"C5.K2","Techniques of passive measures needed for the management of nZEB"]
[null,"C5.S6","Use BIM models to communicate installation instructions"]